{"text_format":"1","workbook":"xlsx","n_sheets":4,"sheets":["SOV","notes","Dropdown Lists","Lookup Lists"],"not_rendered":{"charts":0,"images":2,"macros":1,"external_links":0,"defined_names":117,"comments":1,"pivot_tables":0},"unopened":[],"bounds":{"document_bytes":16777216,"sheet_cells":100000,"rows_first":2000,"rows_last":500,"rows_between":2000,"halvings":0,"cell_chars":16384,"cell_head_chars":4096},"cells_cut":0,"cells_raw":0,"read":"whole","date_system":"1900"}

{"sheet":"SOV","index":0,"n_rows":1167,"n_cols":53,"rows_kept":1167,"cut":false,"hidden":false,"merged":[[1,1,4,4],[0,3,0,4]]}
[null,null,null,"Application &\nSchedule of Values",null,null,"Named Insured:"]
[null,"Any person who knowingly and with intent to defraud any insurance company files an application for insurance or statement of claim containing any materially false or misleading information, or conceals for the purpose of misleading, information concerning any fact material thereto, commits a fraudulent insurance act, which is a crime and subjects the person to criminal and (NY; substantial) civil penalties.  In some states insurance benfits may also be denied.  By submission of this application the insured and the agent represent that all information is true and correct to the best of their knowledge and that they have not deleted or altered the questions herein. ",null,null,null,null,"Policy effective date:"]
[null,null,null,null,null,null,"Policy expire date:",null,null,null,null,null,null,null,null,null,null,null,null,null,null,null,"Additional Property Coverage","Additional Property Coverage","Additional Property Coverage","Additional Property Coverage","Additional Property Coverage","Additional Property Coverage"]
[null,null,null,null,null,null,null,null,null,null,null,null,null,null,null,null,null,null,null,null,null,null,"Sublimit","Sublimit","Sublimit","Sublimit","Sublimit","Sublimit",null,null,null,"<--Blanket Deductible"]
[null,null,null,null,null,null,null,null,null,null,null,null,null,null,null,{"$f":"SUM(P14:P1048576)","v":0},{"$f":"SUM(Q14:Q1048576)","v":0},{"$f":"SUM(R14:R1048576)","v":0},{"$f":"SUM(S14:S1048576)","v":0},{"$f":"SUM(T14:T1048576)","v":0},null,{"$f":"SUM(V14:V1048576)","v":0},0,0,0,0,0,0,0,"www.maprisk.com","DEDUCTIBLE INSTRUCTIONS (double-click)"]
[]
[]
[]
[]
[]
[]
[null,null,null,null,null,null,null,null,null,null,null,null,null,"unknown"]
["RowNum","Swimming Pool or Spa? (select if Yes; otherwise, leave blank)","Location Name (e.g. 1-1, 1-2, 2-1; Building A, Building B; Swimming Pool; Tennis Court; Garage; Trading Post; etc…)","Street Address","City","State Code","ZIP code","County","ISO Construction","ATC Occupancy","# of Stories","Square Footage","Original Year Built","Year Roof covering last fully replaced (Unknown for Unknown)","Shape of roof ","Building","Additional Property Coverage","Business Personal Property","Business Income","Improvements and Betterments","Building Ordinance Coverage A","Building Ordinance Coverage B & C","Pool","Tennis Court","Sign","EnterOther1","EnterOther2","EnterOther3","Total TIV Reported","Distance to Coast (mi)","Chosen deductible (2,3,5,10) -- Named Storm (NS%)","Deductible Type","Basement","Building Frame to Foundation Connection","Construction Quality","Type of Roof Covering","Roof Anchorage\n(if ISO 1 OR 2 or any other with wood framed roof)","Exterior Wall Cladding","Roof Equipment Hurricane Bracing","Roof Sheathing Attachment","Opening Protection",null,"Unit deductible:\n\nBUILDING","Unit deductible: \n\nADDITIONAL PROPERTY COVERAGE","Unit deductible:\n\nBUSINESS PERSONAL PROPERTY","Unit deductible:\n\nBUSINESS INCOME",null,"Pool Sublimit","Tennis Court Sublimit","Sign Sublimit","EnterOther1 Sublimit","EnterOther2 Sublimit","EnterOther3 Sublimit"]
[{"$f":"ROW(A14)-ROWS($A$1:$A$13)","v":1},null,null,null,null,null,null,null,null,null,null,null,null,null,null,null,{"$f":"SUM(IF(AND(W$3=\"Additional Property Coverage\",W$4=\"Sublimit\"),W14,0),IF(AND(X$3=\"Additional Property Coverage\",X$4=\"Sublimit\"),X14,0),IF(AND(Y$3=\"Additional Property Coverage\",Y$4=\"Sublimit\"),Y14,0),IF(AND(Z$3=\"Additional Property Coverage\",Z$4=\"Sublimit\"),Z14,0),IF(AND(AA$3=\"Additional Property Coverage\",AA$4=\"Sublimit\"),AA14,0),IF(AND(AB$3=\"Additional Property Coverage\",AB$4=\"Sublimit\"),AB14,0))","v":0},null,null,null,null,null,null,null,null,null,null,null,{"$f":"IF(SUM(P14,Q14:T14,W14:AB14)>0,SUM(P14,Q14:T14)+SUMIFS(W14:AB14,$W$4:$AB$4,\"Coverage\"),\"\")","v":""},null,null,{"$f":"IF(OR(ISBLANK(AE14),AE14=\"\"),\"\",\"per unit\")","v":""},null,null,null,null,null,null,null,null,null,null,{"$f":"IF(AND(ISBLANK(blanket_deductible),P14>0,AF14=\"per unit\"),$AE14,0)","v":0},{"$f":"IF(AND(ISBLANK(blanket_deductible),Q14>0,AF14=\"per unit\"),$AE14,0)","v":0},{"$f":"IF(AND(ISBLANK(blanket_deductible),R14>0,AF14=\"per unit\"),$AE14,0)","v":0},{"$f":"IF(AND(ISBLANK(blanket_deductible),S14>0,AF14=\"per unit\"),$AE14,0)","v":0},null,{"$f":"IF(ISNUMBER(W14),$W$4,\"\")","v":""},{"$f":"IF(ISNUMBER(X14),$X$4,\"\")","v":""},{"$f":"IF(ISNUMBER(Y14),$Y$4,\"\")","v":""},{"$f":"IF(ISNUMBER(Z14),$Z$4,\"\")","v":""},{"$f":"IF(ISNUMBER(AA14),$AA$4,\"\")","v":""},{"$f":"IF(ISNUMBER(AB14),$AB$4,\"\")","v":""}]
[{"$f":"ROW(A15)-ROWS($A$1:$A$13)","v":2},null,null,null,null,null,null,null,null,null,null,null,null,null,null,null,0,null,null,null,null,null,null,null,null,null,null,null,"",null,null,"",null,null,null,null,null,null,null,null,null,null,0,0,0,0,null,"","","","","",""]
[3,null,null,null,null,null,null,null,null,null,null,null,null,null,null,null,0,null,null,null,null,null,null,null,null,null,null,null,"",null,null,"",null,null,null,null,null,null,null,null,null,null,0,0,0,0,null,"","","","","",""]
[4,null,null,null,null,null,null,null,null,null,null,null,null,null,null,null,0,null,null,null,null,null,null,null,null,null,null,null,"",null,null,"",null,null,null,null,null,null,null,null,null,null,0,0,0,0,null,"","","","","",""]
[5,null,null,null,null,null,null,null,null,null,null,null,null,null,null,null,0,null,null,null,null,null,null,null,null,null,null,null,"",null,null,"",null,null,null,null,null,null,null,null,null,null,0,0,0,0,null,"","","","","",""]
[6,null,null,null,null,null,null,null,null,null,null,null,null,null,null,null,0,null,null,null,null,null,null,null,null,null,null,null,"",null,null,"",null,null,null,null,null,null,null,null,null,null,0,0,0,0,null,"","","","","",""]
[7,null,null,null,null,null,null,null,null,null,null,null,null,null,null,null,0,null,null,null,null,null,null,null,null,null,null,null,"",null,null,"",null,null,null,null,null,null,null,null,null,null,0,0,0,0,null,"","","","","",""]
[8,null,null,null,null,null,null,null,null,null,null,null,null,null,null,null,0,null,null,null,null,null,null,null,null,null,null,null,"",null,null,"",null,null,null,null,null,null,null,null,null,null,0,0,0,0,null,"","","","","",""]
[9,null,null,null,null,null,null,null,null,null,null,null,null,null,null,null,0,null,null,null,null,null,null,null,null,null,null,null,"",null,null,"",null,null,null,null,null,null,null,null,null,null,0,0,0,0,null,"","","","","",""]
[10,null,null,null,null,null,null,null,null,null,null,null,null,null,null,null,0,null,null,null,null,null,null,null,null,null,null,null,"",null,null,"",null,null,null,null,null,null,null,null,null,null,0,0,0,0,null,"","","","","",""]
[11,null,null,null,null,null,null,null,null,null,null,null,null,null,null,null,0,null,null,null,null,null,null,null,null,null,null,null,"",null,null,"",null,null,null,null,null,null,null,null,null,null,0,0,0,0,null,"","","","","",""]
[12,null,null,null,null,null,null,null,null,null,null,null,null,null,null,null,0,null,null,null,null,null,null,null,null,null,null,null,"",null,null,"",null,null,null,null,null,null,null,null,null,null,0,0,0,0,null,"","","","","",""]
[13,null,null,null,null,null,null,null,null,null,null,null,null,null,null,null,0,null,null,null,null,null,null,null,null,null,null,null,"",null,null,"",null,null,null,null,null,null,null,null,null,null,0,0,0,0,null,"","","","","",""]
[14,null,null,null,null,null,null,null,null,null,null,null,null,null,null,null,0,null,null,null,null,null,null,null,null,null,null,null,"",null,null,"",null,null,null,null,null,null,null,null,null,null,0,0,0,0,null,"","","","","",""]
[15,null,null,null,null,null,null,null,null,null,null,null,null,null,null,null,0,null,null,null,null,null,null,null,null,null,null,null,"",null,null,"",null,null,null,null,null,null,null,null,null,null,0,0,0,0,null,"","","","","",""]
[16,null,null,null,null,null,null,null,null,null,null,null,null,null,null,null,0,null,null,null,null,null,null,null,null,null,null,null,"",null,null,"",null,null,null,null,null,null,null,null,null,null,0,0,0,0,null,"","","","","",""]
[17,null,null,null,null,null,null,null,null,null,null,null,null,null,null,null,0,null,null,null,null,null,null,null,null,null,null,null,"",null,null,"",null,null,null,null,null,null,null,null,null,null,0,0,0,0,null,"","","","","",""]
[18,null,null,null,null,null,null,null,null,null,null,null,null,null,null,null,0,null,null,null,null,null,null,null,null,null,null,null,"",null,null,"",null,null,null,null,null,null,null,null,null,null,0,0,0,0,null,"","","","","",""]
[19,null,null,null,null,null,null,null,null,null,null,null,null,null,null,null,0,null,null,null,null,null,null,null,null,null,null,null,"",null,null,"",null,null,null,null,null,null,null,null,null,null,0,0,0,0,null,"","","","","",""]
[20,null,null,null,null,null,null,null,null,null,null,null,null,null,null,null,0,null,null,null,null,null,null,null,null,null,null,null,"",null,null,"",null,null,null,null,null,null,null,null,null,null,0,0,0,0,null,"","","","","",""]
[21,null,null,null,null,null,null,null,null,null,null,null,null,null,null,null,0,null,null,null,null,null,null,null,null,null,null,null,"",null,null,"",null,null,null,null,null,null,null,null,null,null,0,0,0,0,null,"","","","","",""]
[22,null,null,null,null,null,null,null,null,null,null,null,null,null,null,null,0,null,null,null,null,null,null,null,null,null,null,null,"",null,null,"",null,null,null,null,null,null,null,null,null,null,0,0,0,0,null,"","","","","",""]
[23,null,null,null,null,null,null,null,null,null,null,null,null,null,null,null,0,null,null,null,null,null,null,null,null,null,null,null,"",null,null,"",null,null,null,null,null,null,null,null,null,null,0,0,0,0,null,"","","","","",""]
[24,null,null,null,null,null,null,null,null,null,null,null,null,null,null,null,0,null,null,null,null,null,null,null,null,null,null,null,"",null,null,"",null,null,null,null,null,null,null,null,null,null,0,0,0,0,null,"","","","","",""]
[25,null,null,null,null,null,null,null,null,null,null,null,null,null,null,null,0,null,null,null,null,null,null,null,null,null,null,null,"",null,null,"",null,null,null,null,null,null,null,null,null,null,0,0,0,0,null,"","","","","",""]
[26,null,null,null,null,null,null,null,null,null,null,null,null,null,null,null,0,null,null,null,null,null,null,null,null,null,null,null,"",null,null,"",null,null,null,null,null,null,null,null,null,null,0,0,0,0,null,"","","","","",""]
[27,null,null,null,null,null,null,null,null,null,null,null,null,null,null,null,0,null,null,null,null,null,null,null,null,null,null,null,"",null,null,"",null,null,null,null,null,null,null,null,null,null,0,0,0,0,null,"","","","","",""]
[28,null,null,null,null,null,null,null,null,null,null,null,null,null,null,null,0,null,null,null,null,null,null,null,null,null,null,null,"",null,null,"",null,null,null,null,null,null,null,null,null,null,0,0,0,0,null,"","","","","",""]
[29,null,null,null,null,null,null,null,null,null,null,null,null,null,null,null,0,null,null,null,null,null,null,null,null,null,null,null,"",null,null,"",null,null,null,null,null,null,null,null,null,null,0,0,0,0,null,"","","","","",""]
[30,null,null,null,null,null,null,null,null,null,null,null,null,null,null,null,0,null,null,null,null,null,null,null,null,null,null,null,"",null,null,"",null,null,null,null,null,null,null,null,null,null,0,0,0,0,null,"","","","","",""]
[31,null,null,null,null,null,null,null,null,null,null,null,null,null,null,null,0,null,null,null,null,null,null,null,null,null,null,null,"",null,null,"",null,null,null,null,null,null,null,null,null,null,0,0,0,0,null,"","","","","",""]
[32,null,null,null,null,null,null,null,null,null,null,null,null,null,null,null,0,null,null,null,null,null,null,null,null,null,null,null,"",null,null,"",null,null,null,null,null,null,null,null,null,null,0,0,0,0,null,"","","","","",""]
[33,null,null,null,null,null,null,null,null,null,null,null,null,null,null,null,0,null,null,null,null,null,null,null,null,null,null,null,"",null,null,"",null,null,null,null,null,null,null,null,null,null,0,0,0,0,null,"","","","","",""]
[34,null,null,null,null,null,null,null,null,null,null,null,null,null,null,null,0,null,null,null,null,null,null,null,null,null,null,null,"",null,null,"",null,null,null,null,null,null,null,null,null,null,0,0,0,0,null,"","","","","",""]
[35,null,null,null,null,null,null,null,null,null,null,null,null,null,null,null,0,null,null,null,null,null,null,null,null,null,null,null,"",null,null,"",null,null,null,null,null,null,null,null,null,null,0,0,0,0,null,"","","","","",""]
[36,null,null,null,null,null,null,null,null,null,null,null,null,null,null,null,0,null,null,null,null,null,null,null,null,null,null,null,"",null,null,"",null,null,null,null,null,null,null,null,null,null,0,0,0,0,null,"","","","","",""]
[37,null,null,null,null,null,null,null,null,null,null,null,null,null,null,null,0,null,null,null,null,null,null,null,null,null,null,null,"",null,null,"",null,null,null,null,null,null,null,null,null,null,0,0,0,0,null,"","","","","",""]
[38,null,null,null,null,null,null,null,null,null,null,null,null,null,null,null,0,null,null,null,null,null,null,null,null,null,null,null,"",null,null,"",null,null,null,null,null,null,null,null,null,null,0,0,0,0,null,"","","","","",""]
[39,null,null,null,null,null,null,null,null,null,null,null,null,null,null,null,0,null,null,null,null,null,null,null,null,null,null,null,"",null,null,"",null,null,null,null,null,null,null,null,null,null,0,0,0,0,null,"","","","","",""]
[40,null,null,null,null,null,null,null,null,null,null,null,null,null,null,null,0,null,null,null,null,null,null,null,null,null,null,null,"",null,null,"",null,null,null,null,null,null,null,null,null,null,0,0,0,0,null,"","","","","",""]
[41,null,null,null,null,null,null,null,null,null,null,null,null,null,null,null,0,null,null,null,null,null,null,null,null,null,null,null,"",null,null,"",null,null,null,null,null,null,null,null,null,null,0,0,0,0,null,"","","","","",""]
[42,null,null,null,null,null,null,null,null,null,null,null,null,null,null,null,0,null,null,null,null,null,null,null,null,null,null,null,"",null,null,"",null,null,null,null,null,null,null,null,null,null,0,0,0,0,null,"","","","","",""]
[43,null,null,null,null,null,null,null,null,null,null,null,null,null,null,null,0,null,null,null,null,null,null,null,null,null,null,null,"",null,null,"",null,null,null,null,null,null,null,null,null,null,0,0,0,0,null,"","","","","",""]
[44,null,null,null,null,null,null,null,null,null,null,null,null,null,null,null,0,null,null,null,null,null,null,null,null,null,null,null,"",null,null,"",null,null,null,null,null,null,null,null,null,null,0,0,0,0,null,"","","","","",""]
[45,null,null,null,null,null,null,null,null,null,null,null,null,null,null,null,0,null,null,null,null,null,null,null,null,null,null,null,"",null,null,"",null,null,null,null,null,null,null,null,null,null,0,0,0,0,null,"","","","","",""]
[46,null,null,null,null,null,null,null,null,null,null,null,null,null,null,null,0,null,null,null,null,null,null,null,null,null,null,null,"",null,null,"",null,null,null,null,null,null,null,null,null,null,0,0,0,0,null,"","","","","",""]
[47,null,null,null,null,null,null,null,null,null,null,null,null,null,null,null,0,null,null,null,null,null,null,null,null,null,null,null,"",null,null,"",null,null,null,null,null,null,null,null,null,null,0,0,0,0,null,"","","","","",""]
[48,null,null,null,null,null,null,null,null,null,null,null,null,null,null,null,0,null,null,null,null,null,null,null,null,null,null,null,"",null,null,"",null,null,null,null,null,null,null,null,null,null,0,0,0,0,null,"","","","","",""]
[49,null,null,null,null,null,null,null,null,null,null,null,null,null,null,null,0,null,null,null,null,null,null,null,null,null,null,null,"",null,null,"",null,null,null,null,null,null,null,null,null,null,0,0,0,0,null,"","","","","",""]
[50,null,null,null,null,null,null,null,null,null,null,null,null,null,null,null,0,null,null,null,null,null,null,null,null,null,null,null,"",null,null,"",null,null,null,null,null,null,null,null,null,null,0,0,0,0,null,"","","","","",""]
[51,null,null,null,null,null,null,null,null,null,null,null,null,null,null,null,0,null,null,null,null,null,null,null,null,null,null,null,"",null,null,"",null,null,null,null,null,null,null,null,null,null,0,0,0,0,null,"","","","","",""]
[52,null,null,null,null,null,null,null,null,null,null,null,null,null,null,null,0,null,null,null,null,null,null,null,null,null,null,null,"",null,null,"",null,null,null,null,null,null,null,null,null,null,0,0,0,0,null,"","","","","",""]
[53,null,null,null,null,null,null,null,null,null,null,null,null,null,null,null,0,null,null,null,null,null,null,null,null,null,null,null,"",null,null,"",null,null,null,null,null,null,null,null,null,null,0,0,0,0,null,"","","","","",""]
[54,null,null,null,null,null,null,null,null,null,null,null,null,null,null,null,0,null,null,null,null,null,null,null,null,null,null,null,"",null,null,"",null,null,null,null,null,null,null,null,null,null,0,0,0,0,null,"","","","","",""]
[55,null,null,null,null,null,null,null,null,null,null,null,null,null,null,null,0,null,null,null,null,null,null,null,null,null,null,null,"",null,null,"",null,null,null,null,null,null,null,null,null,null,0,0,0,0,null,"","","","","",""]
[56,null,null,null,null,null,null,null,null,null,null,null,null,null,null,null,0,null,null,null,null,null,null,null,null,null,null,null,"",null,null,"",null,null,null,null,null,null,null,null,null,null,0,0,0,0,null,"","","","","",""]
[57,null,null,null,null,null,null,null,null,null,null,null,null,null,null,null,0,null,null,null,null,null,null,null,null,null,null,null,"",null,null,"",null,null,null,null,null,null,null,null,null,null,0,0,0,0,null,"","","","","",""]
[58,null,null,null,null,null,null,null,null,null,null,null,null,null,null,null,0,null,null,null,null,null,null,null,null,null,null,null,"",null,null,"",null,null,null,null,null,null,null,null,null,null,0,0,0,0,null,"","","","","",""]
[59,null,null,null,null,null,null,null,null,null,null,null,null,null,null,null,0,null,null,null,null,null,null,null,null,null,null,null,"",null,null,"",null,null,null,null,null,null,null,null,null,null,0,0,0,0,null,"","","","","",""]
[60,null,null,null,null,null,null,null,null,null,null,null,null,null,null,null,0,null,null,null,null,null,null,null,null,null,null,null,"",null,null,"",null,null,null,null,null,null,null,null,null,null,0,0,0,0,null,"","","","","",""]
[61,null,null,null,null,null,null,null,null,null,null,null,null,null,null,null,0,null,null,null,null,null,null,null,null,null,null,null,"",null,null,"",null,null,null,null,null,null,null,null,null,null,0,0,0,0,null,"","","","","",""]
[62,null,null,null,null,null,null,null,null,null,null,null,null,null,null,null,0,null,null,null,null,null,null,null,null,null,null,null,"",null,null,"",null,null,null,null,null,null,null,null,null,null,0,0,0,0,null,"","","","","",""]
[63,null,null,null,null,null,null,null,null,null,null,null,null,null,null,null,0,null,null,null,null,null,null,null,null,null,null,null,"",null,null,"",null,null,null,null,null,null,null,null,null,null,0,0,0,0,null,"","","","","",""]
[64,null,null,null,null,null,null,null,null,null,null,null,null,null,null,null,0,null,null,null,null,null,null,null,null,null,null,null,"",null,null,"",null,null,null,null,null,null,null,null,null,null,0,0,0,0,null,"","","","","",""]
[65,null,null,null,null,null,null,null,null,null,null,null,null,null,null,null,{"$f":"SUM(IF(AND(W$3=\"Additional Property Coverage\",W$4=\"Sublimit\"),W78,0),IF(AND(X$3=\"Additional Property Coverage\",X$4=\"Sublimit\"),X78,0),IF(AND(Y$3=\"Additional Property Coverage\",Y$4=\"Sublimit\"),Y78,0),IF(AND(Z$3=\"Additional Property Coverage\",Z$4=\"Sublimit\"),Z78,0),IF(AND(AA$3=\"Additional Property Coverage\",AA$4=\"Sublimit\"),AA78,0),IF(AND(AB$3=\"Additional Property Coverage\",AB$4=\"Sublimit\"),AB78,0))","v":0},null,null,null,null,null,null,null,null,null,null,null,{"$f":"IF(SUM(P78,Q78:T78,W78:AB78)>0,SUM(P78,Q78:T78)+SUMIFS(W78:AB78,$W$4:$AB$4,\"Coverage\"),\"\")","v":""},null,null,"",null,null,null,null,null,null,null,null,null,null,{"$f":"IF(AND(ISBLANK(blanket_deductible),P78>0,AF78=\"per unit\"),$AE78,0)","v":0},{"$f":"IF(AND(ISBLANK(blanket_deductible),Q78>0,AF78=\"per unit\"),$AE78,0)","v":0},{"$f":"IF(AND(ISBLANK(blanket_deductible),R78>0,AF78=\"per unit\"),$AE78,0)","v":0},{"$f":"IF(AND(ISBLANK(blanket_deductible),S78>0,AF78=\"per unit\"),$AE78,0)","v":0},null,{"$f":"IF(ISNUMBER(W78),$W$4,\"\")","v":""},{"$f":"IF(ISNUMBER(X78),$X$4,\"\")","v":""},{"$f":"IF(ISNUMBER(Y78),$Y$4,\"\")","v":""},{"$f":"IF(ISNUMBER(Z78),$Z$4,\"\")","v":""},{"$f":"IF(ISNUMBER(AA78),$AA$4,\"\")","v":""},{"$f":"IF(ISNUMBER(AB78),$AB$4,\"\")","v":""}]
[{"$f":"ROW(A79)-ROWS($A$1:$A$13)","v":66},null,null,null,null,null,null,null,null,null,null,null,null,null,null,null,0,null,null,null,null,null,null,null,null,null,null,null,"",null,null,{"$f":"IF(OR(ISBLANK(AE79),AE79=\"\"),\"\",\"per unit\")","v":""},null,null,null,null,null,null,null,null,null,null,0,0,0,0,null,"","","","","",""]
[67,null,null,null,null,null,null,null,null,null,null,null,null,null,null,null,0,null,null,null,null,null,null,null,null,null,null,null,"",null,null,"",null,null,null,null,null,null,null,null,null,null,0,0,0,0,null,"","","","","",""]
[68,null,null,null,null,null,null,null,null,null,null,null,null,null,null,null,0,null,null,null,null,null,null,null,null,null,null,null,"",null,null,"",null,null,null,null,null,null,null,null,null,null,0,0,0,0,null,"","","","","",""]
[69,null,null,null,null,null,null,null,null,null,null,null,null,null,null,null,0,null,null,null,null,null,null,null,null,null,null,null,"",null,null,"",null,null,null,null,null,null,null,null,null,null,0,0,0,0,null,"","","","","",""]
[70,null,null,null,null,null,null,null,null,null,null,null,null,null,null,null,0,null,null,null,null,null,null,null,null,null,null,null,"",null,null,"",null,null,null,null,null,null,null,null,null,null,0,0,0,0,null,"","","","","",""]
[71,null,null,null,null,null,null,null,null,null,null,null,null,null,null,null,0,null,null,null,null,null,null,null,null,null,null,null,"",null,null,"",null,null,null,null,null,null,null,null,null,null,0,0,0,0,null,"","","","","",""]
[72,null,null,null,null,null,null,null,null,null,null,null,null,null,null,null,0,null,null,null,null,null,null,null,null,null,null,null,"",null,null,"",null,null,null,null,null,null,null,null,null,null,0,0,0,0,null,"","","","","",""]
[73,null,null,null,null,null,null,null,null,null,null,null,null,null,null,null,0,null,null,null,null,null,null,null,null,null,null,null,"",null,null,"",null,null,null,null,null,null,null,null,null,null,0,0,0,0,null,"","","","","",""]
[74,null,null,null,null,null,null,null,null,null,null,null,null,null,null,null,0,null,null,null,null,null,null,null,null,null,null,null,"",null,null,"",null,null,null,null,null,null,null,null,null,null,0,0,0,0,null,"","","","","",""]
[75,null,null,null,null,null,null,null,null,null,null,null,null,null,null,null,0,null,null,null,null,null,null,null,null,null,null,null,"",null,null,"",null,null,null,null,null,null,null,null,null,null,0,0,0,0,null,"","","","","",""]
[76,null,null,null,null,null,null,null,null,null,null,null,null,null,null,null,0,null,null,null,null,null,null,null,null,null,null,null,"",null,null,"",null,null,null,null,null,null,null,null,null,null,0,0,0,0,null,"","","","","",""]
[77,null,null,null,null,null,null,null,null,null,null,null,null,null,null,null,0,null,null,null,null,null,null,null,null,null,null,null,"",null,null,"",null,null,null,null,null,null,null,null,null,null,0,0,0,0,null,"","","","","",""]
[78,null,null,null,null,null,null,null,null,null,null,null,null,null,null,null,0,null,null,null,null,null,null,null,null,null,null,null,"",null,null,"",null,null,null,null,null,null,null,null,null,null,0,0,0,0,null,"","","","","",""]
[79,null,null,null,null,null,null,null,null,null,null,null,null,null,null,null,0,null,null,null,null,null,null,null,null,null,null,null,"",null,null,"",null,null,null,null,null,null,null,null,null,null,0,0,0,0,null,"","","","","",""]
[80,null,null,null,null,null,null,null,null,null,null,null,null,null,null,null,0,null,null,null,null,null,null,null,null,null,null,null,"",null,null,"",null,null,null,null,null,null,null,null,null,null,0,0,0,0,null,"","","","","",""]
[81,null,null,null,null,null,null,null,null,null,null,null,null,null,null,null,0,null,null,null,null,null,null,null,null,null,null,null,"",null,null,"",null,null,null,null,null,null,null,null,null,null,0,0,0,0,null,"","","","","",""]
[82,null,null,null,null,null,null,null,null,null,null,null,null,null,null,null,0,null,null,null,null,null,null,null,null,null,null,null,"",null,null,"",null,null,null,null,null,null,null,null,null,null,0,0,0,0,null,"","","","","",""]
[83,null,null,null,null,null,null,null,null,null,null,null,null,null,null,null,0,null,null,null,null,null,null,null,null,null,null,null,"",null,null,"",null,null,null,null,null,null,null,null,null,null,0,0,0,0,null,"","","","","",""]
[84,null,null,null,null,null,null,null,null,null,null,null,null,null,null,null,0,null,null,null,null,null,null,null,null,null,null,null,"",null,null,"",null,null,null,null,null,null,null,null,null,null,0,0,0,0,null,"","","","","",""]
[85,null,null,null,null,null,null,null,null,null,null,null,null,null,null,null,0,null,null,null,null,null,null,null,null,null,null,null,"",null,null,"",null,null,null,null,null,null,null,null,null,null,0,0,0,0,null,"","","","","",""]
[86,null,null,null,null,null,null,null,null,null,null,null,null,null,null,null,0,null,null,null,null,null,null,null,null,null,null,null,"",null,null,"",null,null,null,null,null,null,null,null,null,null,0,0,0,0,null,"","","","","",""]
[87,null,null,null,null,null,null,null,null,null,null,null,null,null,null,null,0,null,null,null,null,null,null,null,null,null,null,null,"",null,null,"",null,null,null,null,null,null,null,null,null,null,0,0,0,0,null,"","","","","",""]
[88,null,null,null,null,null,null,null,null,null,null,null,null,null,null,null,0,null,null,null,null,null,null,null,null,null,null,null,"",null,null,"",null,null,null,null,null,null,null,null,null,null,0,0,0,0,null,"","","","","",""]
[89,null,null,null,null,null,null,null,null,null,null,null,null,null,null,null,0,null,null,null,null,null,null,null,null,null,null,null,"",null,null,"",null,null,null,null,null,null,null,null,null,null,0,0,0,0,null,"","","","","",""]
[90,null,null,null,null,null,null,null,null,null,null,null,null,null,null,null,0,null,null,null,null,null,null,null,null,null,null,null,"",null,null,"",null,null,null,null,null,null,null,null,null,null,0,0,0,0,null,"","","","","",""]
[91,null,null,null,null,null,null,null,null,null,null,null,null,null,null,null,0,null,null,null,null,null,null,null,null,null,null,null,"",null,null,"",null,null,null,null,null,null,null,null,null,null,0,0,0,0,null,"","","","","",""]
[92,null,null,null,null,null,null,null,null,null,null,null,null,null,null,null,0,null,null,null,null,null,null,null,null,null,null,null,"",null,null,"",null,null,null,null,null,null,null,null,null,null,0,0,0,0,null,"","","","","",""]
[93,null,null,null,null,null,null,null,null,null,null,null,null,null,null,null,0,null,null,null,null,null,null,null,null,null,null,null,"",null,null,"",null,null,null,null,null,null,null,null,null,null,0,0,0,0,null,"","","","","",""]
[94,null,null,null,null,null,null,null,null,null,null,null,null,null,null,null,0,null,null,null,null,null,null,null,null,null,null,null,"",null,null,"",null,null,null,null,null,null,null,null,null,null,0,0,0,0,null,"","","","","",""]
[95,null,null,null,null,null,null,null,null,null,null,null,null,null,null,null,0,null,null,null,null,null,null,null,null,null,null,null,"",null,null,"",null,null,null,null,null,null,null,null,null,null,0,0,0,0,null,"","","","","",""]
[96,null,null,null,null,null,null,null,null,null,null,null,null,null,null,null,0,null,null,null,null,null,null,null,null,null,null,null,"",null,null,"",null,null,null,null,null,null,null,null,null,null,0,0,0,0,null,"","","","","",""]
[97,null,null,null,null,null,null,null,null,null,null,null,null,null,null,null,0,null,null,null,null,null,null,null,null,null,null,null,"",null,null,"",null,null,null,null,null,null,null,null,null,null,0,0,0,0,null,"","","","","",""]
[98,null,null,null,null,null,null,null,null,null,null,null,null,null,null,null,0,null,null,null,null,null,null,null,null,null,null,null,"",null,null,"",null,null,null,null,null,null,null,null,null,null,0,0,0,0,null,"","","","","",""]
[99,null,null,null,null,null,null,null,null,null,null,null,null,null,null,null,0,null,null,null,null,null,null,null,null,null,null,null,"",null,null,"",null,null,null,null,null,null,null,null,null,null,0,0,0,0,null,"","","","","",""]
[100,null,null,null,null,null,null,null,null,null,null,null,null,null,null,null,0,null,null,null,null,null,null,null,null,null,null,null,"",null,null,"",null,null,null,null,null,null,null,null,null,null,0,0,0,0,null,"","","","","",""]
[101,null,null,null,null,null,null,null,null,null,null,null,null,null,null,null,0,null,null,null,null,null,null,null,null,null,null,null,"",null,null,"",null,null,null,null,null,null,null,null,null,null,0,0,0,0,null,"","","","","",""]
[102,null,null,null,null,null,null,null,null,null,null,null,null,null,null,null,0,null,null,null,null,null,null,null,null,null,null,null,"",null,null,"",null,null,null,null,null,null,null,null,null,null,0,0,0,0,null,"","","","","",""]
[103,null,null,null,null,null,null,null,null,null,null,null,null,null,null,null,0,null,null,null,null,null,null,null,null,null,null,null,"",null,null,"",null,null,null,null,null,null,null,null,null,null,0,0,0,0,null,"","","","","",""]
[104,null,null,null,null,null,null,null,null,null,null,null,null,null,null,null,0,null,null,null,null,null,null,null,null,null,null,null,"",null,null,"",null,null,null,null,null,null,null,null,null,null,0,0,0,0,null,"","","","","",""]
[105,null,null,null,null,null,null,null,null,null,null,null,null,null,null,null,0,null,null,null,null,null,null,null,null,null,null,null,"",null,null,"",null,null,null,null,null,null,null,null,null,null,0,0,0,0,null,"","","","","",""]
[106,null,null,null,null,null,null,null,null,null,null,null,null,null,null,null,0,null,null,null,null,null,null,null,null,null,null,null,"",null,null,"",null,null,null,null,null,null,null,null,null,null,0,0,0,0,null,"","","","","",""]
[107,null,null,null,null,null,null,null,null,null,null,null,null,null,null,null,0,null,null,null,null,null,null,null,null,null,null,null,"",null,null,"",null,null,null,null,null,null,null,null,null,null,0,0,0,0,null,"","","","","",""]
[108,null,null,null,null,null,null,null,null,null,null,null,null,null,null,null,0,null,null,null,null,null,null,null,null,null,null,null,"",null,null,"",null,null,null,null,null,null,null,null,null,null,0,0,0,0,null,"","","","","",""]
[109,null,null,null,null,null,null,null,null,null,null,null,null,null,null,null,0,null,null,null,null,null,null,null,null,null,null,null,"",null,null,"",null,null,null,null,null,null,null,null,null,null,0,0,0,0,null,"","","","","",""]
[110,null,null,null,null,null,null,null,null,null,null,null,null,null,null,null,0,null,null,null,null,null,null,null,null,null,null,null,"",null,null,"",null,null,null,null,null,null,null,null,null,null,0,0,0,0,null,"","","","","",""]
[111,null,null,null,null,null,null,null,null,null,null,null,null,null,null,null,0,null,null,null,null,null,null,null,null,null,null,null,"",null,null,"",null,null,null,null,null,null,null,null,null,null,0,0,0,0,null,"","","","","",""]
[112,null,null,null,null,null,null,null,null,null,null,null,null,null,null,null,0,null,null,null,null,null,null,null,null,null,null,null,"",null,null,"",null,null,null,null,null,null,null,null,null,null,0,0,0,0,null,"","","","","",""]
[113,null,null,null,null,null,null,null,null,null,null,null,null,null,null,null,0,null,null,null,null,null,null,null,null,null,null,null,"",null,null,"",null,null,null,null,null,null,null,null,null,null,0,0,0,0,null,"","","","","",""]
[114,null,null,null,null,null,null,null,null,null,null,null,null,null,null,null,0,null,null,null,null,null,null,null,null,null,null,null,"",null,null,"",null,null,null,null,null,null,null,null,null,null,0,0,0,0,null,"","","","","",""]
[115,null,null,null,null,null,null,null,null,null,null,null,null,null,null,null,0,null,null,null,null,null,null,null,null,null,null,null,"",null,null,"",null,null,null,null,null,null,null,null,null,null,0,0,0,0,null,"","","","","",""]
[116,null,null,null,null,null,null,null,null,null,null,null,null,null,null,null,0,null,null,null,null,null,null,null,null,null,null,null,"",null,null,"",null,null,null,null,null,null,null,null,null,null,0,0,0,0,null,"","","","","",""]
[117,null,null,null,null,null,null,null,null,null,null,null,null,null,null,null,0,null,null,null,null,null,null,null,null,null,null,null,"",null,null,"",null,null,null,null,null,null,null,null,null,null,0,0,0,0,null,"","","","","",""]
[118,null,null,null,null,null,null,null,null,null,null,null,null,null,null,null,0,null,null,null,null,null,null,null,null,null,null,null,"",null,null,"",null,null,null,null,null,null,null,null,null,null,0,0,0,0,null,"","","","","",""]
[119,null,null,null,null,null,null,null,null,null,null,null,null,null,null,null,0,null,null,null,null,null,null,null,null,null,null,null,"",null,null,"",null,null,null,null,null,null,null,null,null,null,0,0,0,0,null,"","","","","",""]
[120,null,null,null,null,null,null,null,null,null,null,null,null,null,null,null,0,null,null,null,null,null,null,null,null,null,null,null,"",null,null,"",null,null,null,null,null,null,null,null,null,null,0,0,0,0,null,"","","","","",""]
[121,null,null,null,null,null,null,null,null,null,null,null,null,null,null,null,0,null,null,null,null,null,null,null,null,null,null,null,"",null,null,"",null,null,null,null,null,null,null,null,null,null,0,0,0,0,null,"","","","","",""]
[122,null,null,null,null,null,null,null,null,null,null,null,null,null,null,null,0,null,null,null,null,null,null,null,null,null,null,null,"",null,null,"",null,null,null,null,null,null,null,null,null,null,0,0,0,0,null,"","","","","",""]
[123,null,null,null,null,null,null,null,null,null,null,null,null,null,null,null,0,null,null,null,null,null,null,null,null,null,null,null,"",null,null,"",null,null,null,null,null,null,null,null,null,null,0,0,0,0,null,"","","","","",""]
[124,null,null,null,null,null,null,null,null,null,null,null,null,null,null,null,0,null,null,null,null,null,null,null,null,null,null,null,"",null,null,"",null,null,null,null,null,null,null,null,null,null,0,0,0,0,null,"","","","","",""]
[125,null,null,null,null,null,null,null,null,null,null,null,null,null,null,null,0,null,null,null,null,null,null,null,null,null,null,null,"",null,null,"",null,null,null,null,null,null,null,null,null,null,0,0,0,0,null,"","","","","",""]
[126,null,null,null,null,null,null,null,null,null,null,null,null,null,null,null,0,null,null,null,null,null,null,null,null,null,null,null,"",null,null,"",null,null,null,null,null,null,null,null,null,null,0,0,0,0,null,"","","","","",""]
[127,null,null,null,null,null,null,null,null,null,null,null,null,null,null,null,0,null,null,null,null,null,null,null,null,null,null,null,"",null,null,"",null,null,null,null,null,null,null,null,null,null,0,0,0,0,null,"","","","","",""]
[128,null,null,null,null,null,null,null,null,null,null,null,null,null,null,null,0,null,null,null,null,null,null,null,null,null,null,null,"",null,null,"",null,null,null,null,null,null,null,null,null,null,0,0,0,0,null,"","","","","",""]
[129,null,null,null,null,null,null,null,null,null,null,null,null,null,null,null,{"$f":"SUM(IF(AND(W$3=\"Additional Property Coverage\",W$4=\"Sublimit\"),W142,0),IF(AND(X$3=\"Additional Property Coverage\",X$4=\"Sublimit\"),X142,0),IF(AND(Y$3=\"Additional Property Coverage\",Y$4=\"Sublimit\"),Y142,0),IF(AND(Z$3=\"Additional Property Coverage\",Z$4=\"Sublimit\"),Z142,0),IF(AND(AA$3=\"Additional Property Coverage\",AA$4=\"Sublimit\"),AA142,0),IF(AND(AB$3=\"Additional Property Coverage\",AB$4=\"Sublimit\"),AB142,0))","v":0},null,null,null,null,null,null,null,null,null,null,null,{"$f":"IF(SUM(P142,Q142:T142,W142:AB142)>0,SUM(P142,Q142:T142)+SUMIFS(W142:AB142,$W$4:$AB$4,\"Coverage\"),\"\")","v":""},null,null,"",null,null,null,null,null,null,null,null,null,null,{"$f":"IF(AND(ISBLANK(blanket_deductible),P142>0,AF142=\"per unit\"),$AE142,0)","v":0},{"$f":"IF(AND(ISBLANK(blanket_deductible),Q142>0,AF142=\"per unit\"),$AE142,0)","v":0},{"$f":"IF(AND(ISBLANK(blanket_deductible),R142>0,AF142=\"per unit\"),$AE142,0)","v":0},{"$f":"IF(AND(ISBLANK(blanket_deductible),S142>0,AF142=\"per unit\"),$AE142,0)","v":0},null,{"$f":"IF(ISNUMBER(W142),$W$4,\"\")","v":""},{"$f":"IF(ISNUMBER(X142),$X$4,\"\")","v":""},{"$f":"IF(ISNUMBER(Y142),$Y$4,\"\")","v":""},{"$f":"IF(ISNUMBER(Z142),$Z$4,\"\")","v":""},{"$f":"IF(ISNUMBER(AA142),$AA$4,\"\")","v":""},{"$f":"IF(ISNUMBER(AB142),$AB$4,\"\")","v":""}]
[{"$f":"ROW(A143)-ROWS($A$1:$A$13)","v":130},null,null,null,null,null,null,null,null,null,null,null,null,null,null,null,0,null,null,null,null,null,null,null,null,null,null,null,"",null,null,{"$f":"IF(OR(ISBLANK(AE143),AE143=\"\"),\"\",\"per unit\")","v":""},null,null,null,null,null,null,null,null,null,null,0,0,0,0,null,"","","","","",""]
[131,null,null,null,null,null,null,null,null,null,null,null,null,null,null,null,0,null,null,null,null,null,null,null,null,null,null,null,"",null,null,"",null,null,null,null,null,null,null,null,null,null,0,0,0,0,null,"","","","","",""]
[132,null,null,null,null,null,null,null,null,null,null,null,null,null,null,null,0,null,null,null,null,null,null,null,null,null,null,null,"",null,null,"",null,null,null,null,null,null,null,null,null,null,0,0,0,0,null,"","","","","",""]
[133,null,null,null,null,null,null,null,null,null,null,null,null,null,null,null,0,null,null,null,null,null,null,null,null,null,null,null,"",null,null,"",null,null,null,null,null,null,null,null,null,null,0,0,0,0,null,"","","","","",""]
[134,null,null,null,null,null,null,null,null,null,null,null,null,null,null,null,0,null,null,null,null,null,null,null,null,null,null,null,"",null,null,"",null,null,null,null,null,null,null,null,null,null,0,0,0,0,null,"","","","","",""]
[135,null,null,null,null,null,null,null,null,null,null,null,null,null,null,null,0,null,null,null,null,null,null,null,null,null,null,null,"",null,null,"",null,null,null,null,null,null,null,null,null,null,0,0,0,0,null,"","","","","",""]
[136,null,null,null,null,null,null,null,null,null,null,null,null,null,null,null,0,null,null,null,null,null,null,null,null,null,null,null,"",null,null,"",null,null,null,null,null,null,null,null,null,null,0,0,0,0,null,"","","","","",""]
[137,null,null,null,null,null,null,null,null,null,null,null,null,null,null,null,0,null,null,null,null,null,null,null,null,null,null,null,"",null,null,"",null,null,null,null,null,null,null,null,null,null,0,0,0,0,null,"","","","","",""]
[138,null,null,null,null,null,null,null,null,null,null,null,null,null,null,null,0,null,null,null,null,null,null,null,null,null,null,null,"",null,null,"",null,null,null,null,null,null,null,null,null,null,0,0,0,0,null,"","","","","",""]
[139,null,null,null,null,null,null,null,null,null,null,null,null,null,null,null,0,null,null,null,null,null,null,null,null,null,null,null,"",null,null,"",null,null,null,null,null,null,null,null,null,null,0,0,0,0,null,"","","","","",""]
[140,null,null,null,null,null,null,null,null,null,null,null,null,null,null,null,0,null,null,null,null,null,null,null,null,null,null,null,"",null,null,"",null,null,null,null,null,null,null,null,null,null,0,0,0,0,null,"","","","","",""]
[141,null,null,null,null,null,null,null,null,null,null,null,null,null,null,null,0,null,null,null,null,null,null,null,null,null,null,null,"",null,null,"",null,null,null,null,null,null,null,null,null,null,0,0,0,0,null,"","","","","",""]
[142,null,null,null,null,null,null,null,null,null,null,null,null,null,null,null,0,null,null,null,null,null,null,null,null,null,null,null,"",null,null,"",null,null,null,null,null,null,null,null,null,null,0,0,0,0,null,"","","","","",""]
[143,null,null,null,null,null,null,null,null,null,null,null,null,null,null,null,0,null,null,null,null,null,null,null,null,null,null,null,"",null,null,"",null,null,null,null,null,null,null,null,null,null,0,0,0,0,null,"","","","","",""]
[144,null,null,null,null,null,null,null,null,null,null,null,null,null,null,null,0,null,null,null,null,null,null,null,null,null,null,null,"",null,null,"",null,null,null,null,null,null,null,null,null,null,0,0,0,0,null,"","","","","",""]
[145,null,null,null,null,null,null,null,null,null,null,null,null,null,null,null,0,null,null,null,null,null,null,null,null,null,null,null,"",null,null,"",null,null,null,null,null,null,null,null,null,null,0,0,0,0,null,"","","","","",""]
[146,null,null,null,null,null,null,null,null,null,null,null,null,null,null,null,0,null,null,null,null,null,null,null,null,null,null,null,"",null,null,"",null,null,null,null,null,null,null,null,null,null,0,0,0,0,null,"","","","","",""]
[147,null,null,null,null,null,null,null,null,null,null,null,null,null,null,null,0,null,null,null,null,null,null,null,null,null,null,null,"",null,null,"",null,null,null,null,null,null,null,null,null,null,0,0,0,0,null,"","","","","",""]
[148,null,null,null,null,null,null,null,null,null,null,null,null,null,null,null,0,null,null,null,null,null,null,null,null,null,null,null,"",null,null,"",null,null,null,null,null,null,null,null,null,null,0,0,0,0,null,"","","","","",""]
[149,null,null,null,null,null,null,null,null,null,null,null,null,null,null,null,0,null,null,null,null,null,null,null,null,null,null,null,"",null,null,"",null,null,null,null,null,null,null,null,null,null,0,0,0,0,null,"","","","","",""]
[150,null,null,null,null,null,null,null,null,null,null,null,null,null,null,null,0,null,null,null,null,null,null,null,null,null,null,null,"",null,null,"",null,null,null,null,null,null,null,null,null,null,0,0,0,0,null,"","","","","",""]
[151,null,null,null,null,null,null,null,null,null,null,null,null,null,null,null,0,null,null,null,null,null,null,null,null,null,null,null,"",null,null,"",null,null,null,null,null,null,null,null,null,null,0,0,0,0,null,"","","","","",""]
[152,null,null,null,null,null,null,null,null,null,null,null,null,null,null,null,0,null,null,null,null,null,null,null,null,null,null,null,"",null,null,"",null,null,null,null,null,null,null,null,null,null,0,0,0,0,null,"","","","","",""]
[153,null,null,null,null,null,null,null,null,null,null,null,null,null,null,null,0,null,null,null,null,null,null,null,null,null,null,null,"",null,null,"",null,null,null,null,null,null,null,null,null,null,0,0,0,0,null,"","","","","",""]
[154,null,null,null,null,null,null,null,null,null,null,null,null,null,null,null,0,null,null,null,null,null,null,null,null,null,null,null,"",null,null,"",null,null,null,null,null,null,null,null,null,null,0,0,0,0,null,"","","","","",""]
[155,null,null,null,null,null,null,null,null,null,null,null,null,null,null,null,0,null,null,null,null,null,null,null,null,null,null,null,"",null,null,"",null,null,null,null,null,null,null,null,null,null,0,0,0,0,null,"","","","","",""]
[156,null,null,null,null,null,null,null,null,null,null,null,null,null,null,null,0,null,null,null,null,null,null,null,null,null,null,null,"",null,null,"",null,null,null,null,null,null,null,null,null,null,0,0,0,0,null,"","","","","",""]
[157,null,null,null,null,null,null,null,null,null,null,null,null,null,null,null,0,null,null,null,null,null,null,null,null,null,null,null,"",null,null,"",null,null,null,null,null,null,null,null,null,null,0,0,0,0,null,"","","","","",""]
[158,null,null,null,null,null,null,null,null,null,null,null,null,null,null,null,0,null,null,null,null,null,null,null,null,null,null,null,"",null,null,"",null,null,null,null,null,null,null,null,null,null,0,0,0,0,null,"","","","","",""]
[159,null,null,null,null,null,null,null,null,null,null,null,null,null,null,null,0,null,null,null,null,null,null,null,null,null,null,null,"",null,null,"",null,null,null,null,null,null,null,null,null,null,0,0,0,0,null,"","","","","",""]
[160,null,null,null,null,null,null,null,null,null,null,null,null,null,null,null,0,null,null,null,null,null,null,null,null,null,null,null,"",null,null,"",null,null,null,null,null,null,null,null,null,null,0,0,0,0,null,"","","","","",""]
[161,null,null,null,null,null,null,null,null,null,null,null,null,null,null,null,0,null,null,null,null,null,null,null,null,null,null,null,"",null,null,"",null,null,null,null,null,null,null,null,null,null,0,0,0,0,null,"","","","","",""]
[162,null,null,null,null,null,null,null,null,null,null,null,null,null,null,null,0,null,null,null,null,null,null,null,null,null,null,null,"",null,null,"",null,null,null,null,null,null,null,null,null,null,0,0,0,0,null,"","","","","",""]
[163,null,null,null,null,null,null,null,null,null,null,null,null,null,null,null,0,null,null,null,null,null,null,null,null,null,null,null,"",null,null,"",null,null,null,null,null,null,null,null,null,null,0,0,0,0,null,"","","","","",""]
[164,null,null,null,null,null,null,null,null,null,null,null,null,null,null,null,0,null,null,null,null,null,null,null,null,null,null,null,"",null,null,"",null,null,null,null,null,null,null,null,null,null,0,0,0,0,null,"","","","","",""]
[165,null,null,null,null,null,null,null,null,null,null,null,null,null,null,null,0,null,null,null,null,null,null,null,null,null,null,null,"",null,null,"",null,null,null,null,null,null,null,null,null,null,0,0,0,0,null,"","","","","",""]
[166,null,null,null,null,null,null,null,null,null,null,null,null,null,null,null,0,null,null,null,null,null,null,null,null,null,null,null,"",null,null,"",null,null,null,null,null,null,null,null,null,null,0,0,0,0,null,"","","","","",""]
[167,null,null,null,null,null,null,null,null,null,null,null,null,null,null,null,0,null,null,null,null,null,null,null,null,null,null,null,"",null,null,"",null,null,null,null,null,null,null,null,null,null,0,0,0,0,null,"","","","","",""]
[168,null,null,null,null,null,null,null,null,null,null,null,null,null,null,null,0,null,null,null,null,null,null,null,null,null,null,null,"",null,null,"",null,null,null,null,null,null,null,null,null,null,0,0,0,0,null,"","","","","",""]
[169,null,null,null,null,null,null,null,null,null,null,null,null,null,null,null,0,null,null,null,null,null,null,null,null,null,null,null,"",null,null,"",null,null,null,null,null,null,null,null,null,null,0,0,0,0,null,"","","","","",""]
[170,null,null,null,null,null,null,null,null,null,null,null,null,null,null,null,0,null,null,null,null,null,null,null,null,null,null,null,"",null,null,"",null,null,null,null,null,null,null,null,null,null,0,0,0,0,null,"","","","","",""]
[171,null,null,null,null,null,null,null,null,null,null,null,null,null,null,null,0,null,null,null,null,null,null,null,null,null,null,null,"",null,null,"",null,null,null,null,null,null,null,null,null,null,0,0,0,0,null,"","","","","",""]
[172,null,null,null,null,null,null,null,null,null,null,null,null,null,null,null,0,null,null,null,null,null,null,null,null,null,null,null,"",null,null,"",null,null,null,null,null,null,null,null,null,null,0,0,0,0,null,"","","","","",""]
[173,null,null,null,null,null,null,null,null,null,null,null,null,null,null,null,0,null,null,null,null,null,null,null,null,null,null,null,"",null,null,"",null,null,null,null,null,null,null,null,null,null,0,0,0,0,null,"","","","","",""]
[174,null,null,null,null,null,null,null,null,null,null,null,null,null,null,null,0,null,null,null,null,null,null,null,null,null,null,null,"",null,null,"",null,null,null,null,null,null,null,null,null,null,0,0,0,0,null,"","","","","",""]
[175,null,null,null,null,null,null,null,null,null,null,null,null,null,null,null,0,null,null,null,null,null,null,null,null,null,null,null,"",null,null,"",null,null,null,null,null,null,null,null,null,null,0,0,0,0,null,"","","","","",""]
[176,null,null,null,null,null,null,null,null,null,null,null,null,null,null,null,0,null,null,null,null,null,null,null,null,null,null,null,"",null,null,"",null,null,null,null,null,null,null,null,null,null,0,0,0,0,null,"","","","","",""]
[177,null,null,null,null,null,null,null,null,null,null,null,null,null,null,null,0,null,null,null,null,null,null,null,null,null,null,null,"",null,null,"",null,null,null,null,null,null,null,null,null,null,0,0,0,0,null,"","","","","",""]
[178,null,null,null,null,null,null,null,null,null,null,null,null,null,null,null,0,null,null,null,null,null,null,null,null,null,null,null,"",null,null,"",null,null,null,null,null,null,null,null,null,null,0,0,0,0,null,"","","","","",""]
[179,null,null,null,null,null,null,null,null,null,null,null,null,null,null,null,0,null,null,null,null,null,null,null,null,null,null,null,"",null,null,"",null,null,null,null,null,null,null,null,null,null,0,0,0,0,null,"","","","","",""]
[180,null,null,null,null,null,null,null,null,null,null,null,null,null,null,null,0,null,null,null,null,null,null,null,null,null,null,null,"",null,null,"",null,null,null,null,null,null,null,null,null,null,0,0,0,0,null,"","","","","",""]
[181,null,null,null,null,null,null,null,null,null,null,null,null,null,null,null,0,null,null,null,null,null,null,null,null,null,null,null,"",null,null,"",null,null,null,null,null,null,null,null,null,null,0,0,0,0,null,"","","","","",""]
[182,null,null,null,null,null,null,null,null,null,null,null,null,null,null,null,0,null,null,null,null,null,null,null,null,null,null,null,"",null,null,"",null,null,null,null,null,null,null,null,null,null,0,0,0,0,null,"","","","","",""]
[183,null,null,null,null,null,null,null,null,null,null,null,null,null,null,null,0,null,null,null,null,null,null,null,null,null,null,null,"",null,null,"",null,null,null,null,null,null,null,null,null,null,0,0,0,0,null,"","","","","",""]
[184,null,null,null,null,null,null,null,null,null,null,null,null,null,null,null,0,null,null,null,null,null,null,null,null,null,null,null,"",null,null,"",null,null,null,null,null,null,null,null,null,null,0,0,0,0,null,"","","","","",""]
[185,null,null,null,null,null,null,null,null,null,null,null,null,null,null,null,0,null,null,null,null,null,null,null,null,null,null,null,"",null,null,"",null,null,null,null,null,null,null,null,null,null,0,0,0,0,null,"","","","","",""]
[186,null,null,null,null,null,null,null,null,null,null,null,null,null,null,null,0,null,null,null,null,null,null,null,null,null,null,null,"",null,null,"",null,null,null,null,null,null,null,null,null,null,0,0,0,0,null,"","","","","",""]
[187,null,null,null,null,null,null,null,null,null,null,null,null,null,null,null,0,null,null,null,null,null,null,null,null,null,null,null,"",null,null,"",null,null,null,null,null,null,null,null,null,null,0,0,0,0,null,"","","","","",""]
[188,null,null,null,null,null,null,null,null,null,null,null,null,null,null,null,0,null,null,null,null,null,null,null,null,null,null,null,"",null,null,"",null,null,null,null,null,null,null,null,null,null,0,0,0,0,null,"","","","","",""]
[189,null,null,null,null,null,null,null,null,null,null,null,null,null,null,null,0,null,null,null,null,null,null,null,null,null,null,null,"",null,null,"",null,null,null,null,null,null,null,null,null,null,0,0,0,0,null,"","","","","",""]
[190,null,null,null,null,null,null,null,null,null,null,null,null,null,null,null,0,null,null,null,null,null,null,null,null,null,null,null,"",null,null,"",null,null,null,null,null,null,null,null,null,null,0,0,0,0,null,"","","","","",""]
[191,null,null,null,null,null,null,null,null,null,null,null,null,null,null,null,0,null,null,null,null,null,null,null,null,null,null,null,"",null,null,"",null,null,null,null,null,null,null,null,null,null,0,0,0,0,null,"","","","","",""]
[192,null,null,null,null,null,null,null,null,null,null,null,null,null,null,null,0,null,null,null,null,null,null,null,null,null,null,null,"",null,null,"",null,null,null,null,null,null,null,null,null,null,0,0,0,0,null,"","","","","",""]
[193,null,null,null,null,null,null,null,null,null,null,null,null,null,null,null,{"$f":"SUM(IF(AND(W$3=\"Additional Property Coverage\",W$4=\"Sublimit\"),W206,0),IF(AND(X$3=\"Additional Property Coverage\",X$4=\"Sublimit\"),X206,0),IF(AND(Y$3=\"Additional Property Coverage\",Y$4=\"Sublimit\"),Y206,0),IF(AND(Z$3=\"Additional Property Coverage\",Z$4=\"Sublimit\"),Z206,0),IF(AND(AA$3=\"Additional Property Coverage\",AA$4=\"Sublimit\"),AA206,0),IF(AND(AB$3=\"Additional Property Coverage\",AB$4=\"Sublimit\"),AB206,0))","v":0},null,null,null,null,null,null,null,null,null,null,null,{"$f":"IF(SUM(P206,Q206:T206,W206:AB206)>0,SUM(P206,Q206:T206)+SUMIFS(W206:AB206,$W$4:$AB$4,\"Coverage\"),\"\")","v":""},null,null,"",null,null,null,null,null,null,null,null,null,null,{"$f":"IF(AND(ISBLANK(blanket_deductible),P206>0,AF206=\"per unit\"),$AE206,0)","v":0},{"$f":"IF(AND(ISBLANK(blanket_deductible),Q206>0,AF206=\"per unit\"),$AE206,0)","v":0},{"$f":"IF(AND(ISBLANK(blanket_deductible),R206>0,AF206=\"per unit\"),$AE206,0)","v":0},{"$f":"IF(AND(ISBLANK(blanket_deductible),S206>0,AF206=\"per unit\"),$AE206,0)","v":0},null,{"$f":"IF(ISNUMBER(W206),$W$4,\"\")","v":""},{"$f":"IF(ISNUMBER(X206),$X$4,\"\")","v":""},{"$f":"IF(ISNUMBER(Y206),$Y$4,\"\")","v":""},{"$f":"IF(ISNUMBER(Z206),$Z$4,\"\")","v":""},{"$f":"IF(ISNUMBER(AA206),$AA$4,\"\")","v":""},{"$f":"IF(ISNUMBER(AB206),$AB$4,\"\")","v":""}]
[{"$f":"ROW(A207)-ROWS($A$1:$A$13)","v":194},null,null,null,null,null,null,null,null,null,null,null,null,null,null,null,0,null,null,null,null,null,null,null,null,null,null,null,"",null,null,{"$f":"IF(OR(ISBLANK(AE207),AE207=\"\"),\"\",\"per unit\")","v":""},null,null,null,null,null,null,null,null,null,null,0,0,0,0,null,"","","","","",""]
[195,null,null,null,null,null,null,null,null,null,null,null,null,null,null,null,0,null,null,null,null,null,null,null,null,null,null,null,"",null,null,"",null,null,null,null,null,null,null,null,null,null,0,0,0,0,null,"","","","","",""]
[196,null,null,null,null,null,null,null,null,null,null,null,null,null,null,null,0,null,null,null,null,null,null,null,null,null,null,null,"",null,null,"",null,null,null,null,null,null,null,null,null,null,0,0,0,0,null,"","","","","",""]
[197,null,null,null,null,null,null,null,null,null,null,null,null,null,null,null,0,null,null,null,null,null,null,null,null,null,null,null,"",null,null,"",null,null,null,null,null,null,null,null,null,null,0,0,0,0,null,"","","","","",""]
[198,null,null,null,null,null,null,null,null,null,null,null,null,null,null,null,0,null,null,null,null,null,null,null,null,null,null,null,"",null,null,"",null,null,null,null,null,null,null,null,null,null,0,0,0,0,null,"","","","","",""]
[199,null,null,null,null,null,null,null,null,null,null,null,null,null,null,null,0,null,null,null,null,null,null,null,null,null,null,null,"",null,null,"",null,null,null,null,null,null,null,null,null,null,0,0,0,0,null,"","","","","",""]
[200,null,null,null,null,null,null,null,null,null,null,null,null,null,null,null,0,null,null,null,null,null,null,null,null,null,null,null,"",null,null,"",null,null,null,null,null,null,null,null,null,null,0,0,0,0,null,"","","","","",""]
[201,null,null,null,null,null,null,null,null,null,null,null,null,null,null,null,0,null,null,null,null,null,null,null,null,null,null,null,"",null,null,"",null,null,null,null,null,null,null,null,null,null,0,0,0,0,null,"","","","","",""]
[202,null,null,null,null,null,null,null,null,null,null,null,null,null,null,null,0,null,null,null,null,null,null,null,null,null,null,null,"",null,null,"",null,null,null,null,null,null,null,null,null,null,0,0,0,0,null,"","","","","",""]
[203,null,null,null,null,null,null,null,null,null,null,null,null,null,null,null,0,null,null,null,null,null,null,null,null,null,null,null,"",null,null,"",null,null,null,null,null,null,null,null,null,null,0,0,0,0,null,"","","","","",""]
[204,null,null,null,null,null,null,null,null,null,null,null,null,null,null,null,0,null,null,null,null,null,null,null,null,null,null,null,"",null,null,"",null,null,null,null,null,null,null,null,null,null,0,0,0,0,null,"","","","","",""]
[205,null,null,null,null,null,null,null,null,null,null,null,null,null,null,null,0,null,null,null,null,null,null,null,null,null,null,null,"",null,null,"",null,null,null,null,null,null,null,null,null,null,0,0,0,0,null,"","","","","",""]
[206,null,null,null,null,null,null,null,null,null,null,null,null,null,null,null,0,null,null,null,null,null,null,null,null,null,null,null,"",null,null,"",null,null,null,null,null,null,null,null,null,null,0,0,0,0,null,"","","","","",""]
[207,null,null,null,null,null,null,null,null,null,null,null,null,null,null,null,0,null,null,null,null,null,null,null,null,null,null,null,"",null,null,"",null,null,null,null,null,null,null,null,null,null,0,0,0,0,null,"","","","","",""]
[208,null,null,null,null,null,null,null,null,null,null,null,null,null,null,null,0,null,null,null,null,null,null,null,null,null,null,null,"",null,null,"",null,null,null,null,null,null,null,null,null,null,0,0,0,0,null,"","","","","",""]
[209,null,null,null,null,null,null,null,null,null,null,null,null,null,null,null,0,null,null,null,null,null,null,null,null,null,null,null,"",null,null,"",null,null,null,null,null,null,null,null,null,null,0,0,0,0,null,"","","","","",""]
[210,null,null,null,null,null,null,null,null,null,null,null,null,null,null,null,0,null,null,null,null,null,null,null,null,null,null,null,"",null,null,"",null,null,null,null,null,null,null,null,null,null,0,0,0,0,null,"","","","","",""]
[211,null,null,null,null,null,null,null,null,null,null,null,null,null,null,null,0,null,null,null,null,null,null,null,null,null,null,null,"",null,null,"",null,null,null,null,null,null,null,null,null,null,0,0,0,0,null,"","","","","",""]
[212,null,null,null,null,null,null,null,null,null,null,null,null,null,null,null,0,null,null,null,null,null,null,null,null,null,null,null,"",null,null,"",null,null,null,null,null,null,null,null,null,null,0,0,0,0,null,"","","","","",""]
[213,null,null,null,null,null,null,null,null,null,null,null,null,null,null,null,0,null,null,null,null,null,null,null,null,null,null,null,"",null,null,"",null,null,null,null,null,null,null,null,null,null,0,0,0,0,null,"","","","","",""]
[214,null,null,null,null,null,null,null,null,null,null,null,null,null,null,null,0,null,null,null,null,null,null,null,null,null,null,null,"",null,null,"",null,null,null,null,null,null,null,null,null,null,0,0,0,0,null,"","","","","",""]
[215,null,null,null,null,null,null,null,null,null,null,null,null,null,null,null,0,null,null,null,null,null,null,null,null,null,null,null,"",null,null,"",null,null,null,null,null,null,null,null,null,null,0,0,0,0,null,"","","","","",""]
[216,null,null,null,null,null,null,null,null,null,null,null,null,null,null,null,0,null,null,null,null,null,null,null,null,null,null,null,"",null,null,"",null,null,null,null,null,null,null,null,null,null,0,0,0,0,null,"","","","","",""]
[217,null,null,null,null,null,null,null,null,null,null,null,null,null,null,null,0,null,null,null,null,null,null,null,null,null,null,null,"",null,null,"",null,null,null,null,null,null,null,null,null,null,0,0,0,0,null,"","","","","",""]
[218,null,null,null,null,null,null,null,null,null,null,null,null,null,null,null,0,null,null,null,null,null,null,null,null,null,null,null,"",null,null,"",null,null,null,null,null,null,null,null,null,null,0,0,0,0,null,"","","","","",""]
[219,null,null,null,null,null,null,null,null,null,null,null,null,null,null,null,0,null,null,null,null,null,null,null,null,null,null,null,"",null,null,"",null,null,null,null,null,null,null,null,null,null,0,0,0,0,null,"","","","","",""]
[220,null,null,null,null,null,null,null,null,null,null,null,null,null,null,null,0,null,null,null,null,null,null,null,null,null,null,null,"",null,null,"",null,null,null,null,null,null,null,null,null,null,0,0,0,0,null,"","","","","",""]
[221,null,null,null,null,null,null,null,null,null,null,null,null,null,null,null,0,null,null,null,null,null,null,null,null,null,null,null,"",null,null,"",null,null,null,null,null,null,null,null,null,null,0,0,0,0,null,"","","","","",""]
[222,null,null,null,null,null,null,null,null,null,null,null,null,null,null,null,0,null,null,null,null,null,null,null,null,null,null,null,"",null,null,"",null,null,null,null,null,null,null,null,null,null,0,0,0,0,null,"","","","","",""]
[223,null,null,null,null,null,null,null,null,null,null,null,null,null,null,null,0,null,null,null,null,null,null,null,null,null,null,null,"",null,null,"",null,null,null,null,null,null,null,null,null,null,0,0,0,0,null,"","","","","",""]
[224,null,null,null,null,null,null,null,null,null,null,null,null,null,null,null,0,null,null,null,null,null,null,null,null,null,null,null,"",null,null,"",null,null,null,null,null,null,null,null,null,null,0,0,0,0,null,"","","","","",""]
[225,null,null,null,null,null,null,null,null,null,null,null,null,null,null,null,0,null,null,null,null,null,null,null,null,null,null,null,"",null,null,"",null,null,null,null,null,null,null,null,null,null,0,0,0,0,null,"","","","","",""]
[226,null,null,null,null,null,null,null,null,null,null,null,null,null,null,null,0,null,null,null,null,null,null,null,null,null,null,null,"",null,null,"",null,null,null,null,null,null,null,null,null,null,0,0,0,0,null,"","","","","",""]
[227,null,null,null,null,null,null,null,null,null,null,null,null,null,null,null,0,null,null,null,null,null,null,null,null,null,null,null,"",null,null,"",null,null,null,null,null,null,null,null,null,null,0,0,0,0,null,"","","","","",""]
[228,null,null,null,null,null,null,null,null,null,null,null,null,null,null,null,0,null,null,null,null,null,null,null,null,null,null,null,"",null,null,"",null,null,null,null,null,null,null,null,null,null,0,0,0,0,null,"","","","","",""]
[229,null,null,null,null,null,null,null,null,null,null,null,null,null,null,null,0,null,null,null,null,null,null,null,null,null,null,null,"",null,null,"",null,null,null,null,null,null,null,null,null,null,0,0,0,0,null,"","","","","",""]
[230,null,null,null,null,null,null,null,null,null,null,null,null,null,null,null,0,null,null,null,null,null,null,null,null,null,null,null,"",null,null,"",null,null,null,null,null,null,null,null,null,null,0,0,0,0,null,"","","","","",""]
[231,null,null,null,null,null,null,null,null,null,null,null,null,null,null,null,0,null,null,null,null,null,null,null,null,null,null,null,"",null,null,"",null,null,null,null,null,null,null,null,null,null,0,0,0,0,null,"","","","","",""]
[232,null,null,null,null,null,null,null,null,null,null,null,null,null,null,null,0,null,null,null,null,null,null,null,null,null,null,null,"",null,null,"",null,null,null,null,null,null,null,null,null,null,0,0,0,0,null,"","","","","",""]
[233,null,null,null,null,null,null,null,null,null,null,null,null,null,null,null,0,null,null,null,null,null,null,null,null,null,null,null,"",null,null,"",null,null,null,null,null,null,null,null,null,null,0,0,0,0,null,"","","","","",""]
[234,null,null,null,null,null,null,null,null,null,null,null,null,null,null,null,0,null,null,null,null,null,null,null,null,null,null,null,"",null,null,"",null,null,null,null,null,null,null,null,null,null,0,0,0,0,null,"","","","","",""]
[235,null,null,null,null,null,null,null,null,null,null,null,null,null,null,null,0,null,null,null,null,null,null,null,null,null,null,null,"",null,null,"",null,null,null,null,null,null,null,null,null,null,0,0,0,0,null,"","","","","",""]
[236,null,null,null,null,null,null,null,null,null,null,null,null,null,null,null,0,null,null,null,null,null,null,null,null,null,null,null,"",null,null,"",null,null,null,null,null,null,null,null,null,null,0,0,0,0,null,"","","","","",""]
[237,null,null,null,null,null,null,null,null,null,null,null,null,null,null,null,0,null,null,null,null,null,null,null,null,null,null,null,"",null,null,"",null,null,null,null,null,null,null,null,null,null,0,0,0,0,null,"","","","","",""]
[238,null,null,null,null,null,null,null,null,null,null,null,null,null,null,null,0,null,null,null,null,null,null,null,null,null,null,null,"",null,null,"",null,null,null,null,null,null,null,null,null,null,0,0,0,0,null,"","","","","",""]
[239,null,null,null,null,null,null,null,null,null,null,null,null,null,null,null,0,null,null,null,null,null,null,null,null,null,null,null,"",null,null,"",null,null,null,null,null,null,null,null,null,null,0,0,0,0,null,"","","","","",""]
[240,null,null,null,null,null,null,null,null,null,null,null,null,null,null,null,0,null,null,null,null,null,null,null,null,null,null,null,"",null,null,"",null,null,null,null,null,null,null,null,null,null,0,0,0,0,null,"","","","","",""]
[241,null,null,null,null,null,null,null,null,null,null,null,null,null,null,null,0,null,null,null,null,null,null,null,null,null,null,null,"",null,null,"",null,null,null,null,null,null,null,null,null,null,0,0,0,0,null,"","","","","",""]
[242,null,null,null,null,null,null,null,null,null,null,null,null,null,null,null,0,null,null,null,null,null,null,null,null,null,null,null,"",null,null,"",null,null,null,null,null,null,null,null,null,null,0,0,0,0,null,"","","","","",""]
[243,null,null,null,null,null,null,null,null,null,null,null,null,null,null,null,0,null,null,null,null,null,null,null,null,null,null,null,"",null,null,"",null,null,null,null,null,null,null,null,null,null,0,0,0,0,null,"","","","","",""]
[244,null,null,null,null,null,null,null,null,null,null,null,null,null,null,null,0,null,null,null,null,null,null,null,null,null,null,null,"",null,null,"",null,null,null,null,null,null,null,null,null,null,0,0,0,0,null,"","","","","",""]
[245,null,null,null,null,null,null,null,null,null,null,null,null,null,null,null,0,null,null,null,null,null,null,null,null,null,null,null,"",null,null,"",null,null,null,null,null,null,null,null,null,null,0,0,0,0,null,"","","","","",""]
[246,null,null,null,null,null,null,null,null,null,null,null,null,null,null,null,0,null,null,null,null,null,null,null,null,null,null,null,"",null,null,"",null,null,null,null,null,null,null,null,null,null,0,0,0,0,null,"","","","","",""]
[247,null,null,null,null,null,null,null,null,null,null,null,null,null,null,null,0,null,null,null,null,null,null,null,null,null,null,null,"",null,null,"",null,null,null,null,null,null,null,null,null,null,0,0,0,0,null,"","","","","",""]
[248,null,null,null,null,null,null,null,null,null,null,null,null,null,null,null,0,null,null,null,null,null,null,null,null,null,null,null,"",null,null,"",null,null,null,null,null,null,null,null,null,null,0,0,0,0,null,"","","","","",""]
[249,null,null,null,null,null,null,null,null,null,null,null,null,null,null,null,0,null,null,null,null,null,null,null,null,null,null,null,"",null,null,"",null,null,null,null,null,null,null,null,null,null,0,0,0,0,null,"","","","","",""]
[250,null,null,null,null,null,null,null,null,null,null,null,null,null,null,null,0,null,null,null,null,null,null,null,null,null,null,null,"",null,null,"",null,null,null,null,null,null,null,null,null,null,0,0,0,0,null,"","","","","",""]
[251,null,null,null,null,null,null,null,null,null,null,null,null,null,null,null,0,null,null,null,null,null,null,null,null,null,null,null,"",null,null,"",null,null,null,null,null,null,null,null,null,null,0,0,0,0,null,"","","","","",""]
[252,null,null,null,null,null,null,null,null,null,null,null,null,null,null,null,0,null,null,null,null,null,null,null,null,null,null,null,"",null,null,"",null,null,null,null,null,null,null,null,null,null,0,0,0,0,null,"","","","","",""]
[253,null,null,null,null,null,null,null,null,null,null,null,null,null,null,null,0,null,null,null,null,null,null,null,null,null,null,null,"",null,null,"",null,null,null,null,null,null,null,null,null,null,0,0,0,0,null,"","","","","",""]
[254,null,null,null,null,null,null,null,null,null,null,null,null,null,null,null,0,null,null,null,null,null,null,null,null,null,null,null,"",null,null,"",null,null,null,null,null,null,null,null,null,null,0,0,0,0,null,"","","","","",""]
[255,null,null,null,null,null,null,null,null,null,null,null,null,null,null,null,0,null,null,null,null,null,null,null,null,null,null,null,"",null,null,"",null,null,null,null,null,null,null,null,null,null,0,0,0,0,null,"","","","","",""]
[256,null,null,null,null,null,null,null,null,null,null,null,null,null,null,null,0,null,null,null,null,null,null,null,null,null,null,null,"",null,null,"",null,null,null,null,null,null,null,null,null,null,0,0,0,0,null,"","","","","",""]
[257,null,null,null,null,null,null,null,null,null,null,null,null,null,null,null,{"$f":"SUM(IF(AND(W$3=\"Additional Property Coverage\",W$4=\"Sublimit\"),W270,0),IF(AND(X$3=\"Additional Property Coverage\",X$4=\"Sublimit\"),X270,0),IF(AND(Y$3=\"Additional Property Coverage\",Y$4=\"Sublimit\"),Y270,0),IF(AND(Z$3=\"Additional Property Coverage\",Z$4=\"Sublimit\"),Z270,0),IF(AND(AA$3=\"Additional Property Coverage\",AA$4=\"Sublimit\"),AA270,0),IF(AND(AB$3=\"Additional Property Coverage\",AB$4=\"Sublimit\"),AB270,0))","v":0},null,null,null,null,null,null,null,null,null,null,null,{"$f":"IF(SUM(P270,Q270:T270,W270:AB270)>0,SUM(P270,Q270:T270)+SUMIFS(W270:AB270,$W$4:$AB$4,\"Coverage\"),\"\")","v":""},null,null,"",null,null,null,null,null,null,null,null,null,null,{"$f":"IF(AND(ISBLANK(blanket_deductible),P270>0,AF270=\"per unit\"),$AE270,0)","v":0},{"$f":"IF(AND(ISBLANK(blanket_deductible),Q270>0,AF270=\"per unit\"),$AE270,0)","v":0},{"$f":"IF(AND(ISBLANK(blanket_deductible),R270>0,AF270=\"per unit\"),$AE270,0)","v":0},{"$f":"IF(AND(ISBLANK(blanket_deductible),S270>0,AF270=\"per unit\"),$AE270,0)","v":0},null,{"$f":"IF(ISNUMBER(W270),$W$4,\"\")","v":""},{"$f":"IF(ISNUMBER(X270),$X$4,\"\")","v":""},{"$f":"IF(ISNUMBER(Y270),$Y$4,\"\")","v":""},{"$f":"IF(ISNUMBER(Z270),$Z$4,\"\")","v":""},{"$f":"IF(ISNUMBER(AA270),$AA$4,\"\")","v":""},{"$f":"IF(ISNUMBER(AB270),$AB$4,\"\")","v":""}]
[{"$f":"ROW(A271)-ROWS($A$1:$A$13)","v":258},null,null,null,null,null,null,null,null,null,null,null,null,null,null,null,0,null,null,null,null,null,null,null,null,null,null,null,"",null,null,{"$f":"IF(OR(ISBLANK(AE271),AE271=\"\"),\"\",\"per unit\")","v":""},null,null,null,null,null,null,null,null,null,null,0,0,0,0,null,"","","","","",""]
[259,null,null,null,null,null,null,null,null,null,null,null,null,null,null,null,0,null,null,null,null,null,null,null,null,null,null,null,"",null,null,"",null,null,null,null,null,null,null,null,null,null,0,0,0,0,null,"","","","","",""]
[260,null,null,null,null,null,null,null,null,null,null,null,null,null,null,null,0,null,null,null,null,null,null,null,null,null,null,null,"",null,null,"",null,null,null,null,null,null,null,null,null,null,0,0,0,0,null,"","","","","",""]
[261,null,null,null,null,null,null,null,null,null,null,null,null,null,null,null,0,null,null,null,null,null,null,null,null,null,null,null,"",null,null,"",null,null,null,null,null,null,null,null,null,null,0,0,0,0,null,"","","","","",""]
[262,null,null,null,null,null,null,null,null,null,null,null,null,null,null,null,0,null,null,null,null,null,null,null,null,null,null,null,"",null,null,"",null,null,null,null,null,null,null,null,null,null,0,0,0,0,null,"","","","","",""]
[263,null,null,null,null,null,null,null,null,null,null,null,null,null,null,null,0,null,null,null,null,null,null,null,null,null,null,null,"",null,null,"",null,null,null,null,null,null,null,null,null,null,0,0,0,0,null,"","","","","",""]
[264,null,null,null,null,null,null,null,null,null,null,null,null,null,null,null,0,null,null,null,null,null,null,null,null,null,null,null,"",null,null,"",null,null,null,null,null,null,null,null,null,null,0,0,0,0,null,"","","","","",""]
[265,null,null,null,null,null,null,null,null,null,null,null,null,null,null,null,0,null,null,null,null,null,null,null,null,null,null,null,"",null,null,"",null,null,null,null,null,null,null,null,null,null,0,0,0,0,null,"","","","","",""]
[266,null,null,null,null,null,null,null,null,null,null,null,null,null,null,null,0,null,null,null,null,null,null,null,null,null,null,null,"",null,null,"",null,null,null,null,null,null,null,null,null,null,0,0,0,0,null,"","","","","",""]
[267,null,null,null,null,null,null,null,null,null,null,null,null,null,null,null,0,null,null,null,null,null,null,null,null,null,null,null,"",null,null,"",null,null,null,null,null,null,null,null,null,null,0,0,0,0,null,"","","","","",""]
[268,null,null,null,null,null,null,null,null,null,null,null,null,null,null,null,0,null,null,null,null,null,null,null,null,null,null,null,"",null,null,"",null,null,null,null,null,null,null,null,null,null,0,0,0,0,null,"","","","","",""]
[269,null,null,null,null,null,null,null,null,null,null,null,null,null,null,null,0,null,null,null,null,null,null,null,null,null,null,null,"",null,null,"",null,null,null,null,null,null,null,null,null,null,0,0,0,0,null,"","","","","",""]
[270,null,null,null,null,null,null,null,null,null,null,null,null,null,null,null,0,null,null,null,null,null,null,null,null,null,null,null,"",null,null,"",null,null,null,null,null,null,null,null,null,null,0,0,0,0,null,"","","","","",""]
[271,null,null,null,null,null,null,null,null,null,null,null,null,null,null,null,0,null,null,null,null,null,null,null,null,null,null,null,"",null,null,"",null,null,null,null,null,null,null,null,null,null,0,0,0,0,null,"","","","","",""]
[272,null,null,null,null,null,null,null,null,null,null,null,null,null,null,null,0,null,null,null,null,null,null,null,null,null,null,null,"",null,null,"",null,null,null,null,null,null,null,null,null,null,0,0,0,0,null,"","","","","",""]
[273,null,null,null,null,null,null,null,null,null,null,null,null,null,null,null,0,null,null,null,null,null,null,null,null,null,null,null,"",null,null,"",null,null,null,null,null,null,null,null,null,null,0,0,0,0,null,"","","","","",""]
[274,null,null,null,null,null,null,null,null,null,null,null,null,null,null,null,0,null,null,null,null,null,null,null,null,null,null,null,"",null,null,"",null,null,null,null,null,null,null,null,null,null,0,0,0,0,null,"","","","","",""]
[275,null,null,null,null,null,null,null,null,null,null,null,null,null,null,null,0,null,null,null,null,null,null,null,null,null,null,null,"",null,null,"",null,null,null,null,null,null,null,null,null,null,0,0,0,0,null,"","","","","",""]
[276,null,null,null,null,null,null,null,null,null,null,null,null,null,null,null,0,null,null,null,null,null,null,null,null,null,null,null,"",null,null,"",null,null,null,null,null,null,null,null,null,null,0,0,0,0,null,"","","","","",""]
[277,null,null,null,null,null,null,null,null,null,null,null,null,null,null,null,0,null,null,null,null,null,null,null,null,null,null,null,"",null,null,"",null,null,null,null,null,null,null,null,null,null,0,0,0,0,null,"","","","","",""]
[278,null,null,null,null,null,null,null,null,null,null,null,null,null,null,null,0,null,null,null,null,null,null,null,null,null,null,null,"",null,null,"",null,null,null,null,null,null,null,null,null,null,0,0,0,0,null,"","","","","",""]
[279,null,null,null,null,null,null,null,null,null,null,null,null,null,null,null,0,null,null,null,null,null,null,null,null,null,null,null,"",null,null,"",null,null,null,null,null,null,null,null,null,null,0,0,0,0,null,"","","","","",""]
[280,null,null,null,null,null,null,null,null,null,null,null,null,null,null,null,0,null,null,null,null,null,null,null,null,null,null,null,"",null,null,"",null,null,null,null,null,null,null,null,null,null,0,0,0,0,null,"","","","","",""]
[281,null,null,null,null,null,null,null,null,null,null,null,null,null,null,null,0,null,null,null,null,null,null,null,null,null,null,null,"",null,null,"",null,null,null,null,null,null,null,null,null,null,0,0,0,0,null,"","","","","",""]
[282,null,null,null,null,null,null,null,null,null,null,null,null,null,null,null,0,null,null,null,null,null,null,null,null,null,null,null,"",null,null,"",null,null,null,null,null,null,null,null,null,null,0,0,0,0,null,"","","","","",""]
[283,null,null,null,null,null,null,null,null,null,null,null,null,null,null,null,0,null,null,null,null,null,null,null,null,null,null,null,"",null,null,"",null,null,null,null,null,null,null,null,null,null,0,0,0,0,null,"","","","","",""]
[284,null,null,null,null,null,null,null,null,null,null,null,null,null,null,null,0,null,null,null,null,null,null,null,null,null,null,null,"",null,null,"",null,null,null,null,null,null,null,null,null,null,0,0,0,0,null,"","","","","",""]
[285,null,null,null,null,null,null,null,null,null,null,null,null,null,null,null,0,null,null,null,null,null,null,null,null,null,null,null,"",null,null,"",null,null,null,null,null,null,null,null,null,null,0,0,0,0,null,"","","","","",""]
[286,null,null,null,null,null,null,null,null,null,null,null,null,null,null,null,0,null,null,null,null,null,null,null,null,null,null,null,"",null,null,"",null,null,null,null,null,null,null,null,null,null,0,0,0,0,null,"","","","","",""]
[287,null,null,null,null,null,null,null,null,null,null,null,null,null,null,null,0,null,null,null,null,null,null,null,null,null,null,null,"",null,null,"",null,null,null,null,null,null,null,null,null,null,0,0,0,0,null,"","","","","",""]
[288,null,null,null,null,null,null,null,null,null,null,null,null,null,null,null,0,null,null,null,null,null,null,null,null,null,null,null,"",null,null,"",null,null,null,null,null,null,null,null,null,null,0,0,0,0,null,"","","","","",""]
[289,null,null,null,null,null,null,null,null,null,null,null,null,null,null,null,0,null,null,null,null,null,null,null,null,null,null,null,"",null,null,"",null,null,null,null,null,null,null,null,null,null,0,0,0,0,null,"","","","","",""]
[290,null,null,null,null,null,null,null,null,null,null,null,null,null,null,null,0,null,null,null,null,null,null,null,null,null,null,null,"",null,null,"",null,null,null,null,null,null,null,null,null,null,0,0,0,0,null,"","","","","",""]
[291,null,null,null,null,null,null,null,null,null,null,null,null,null,null,null,0,null,null,null,null,null,null,null,null,null,null,null,"",null,null,"",null,null,null,null,null,null,null,null,null,null,0,0,0,0,null,"","","","","",""]
[292,null,null,null,null,null,null,null,null,null,null,null,null,null,null,null,0,null,null,null,null,null,null,null,null,null,null,null,"",null,null,"",null,null,null,null,null,null,null,null,null,null,0,0,0,0,null,"","","","","",""]
[293,null,null,null,null,null,null,null,null,null,null,null,null,null,null,null,0,null,null,null,null,null,null,null,null,null,null,null,"",null,null,"",null,null,null,null,null,null,null,null,null,null,0,0,0,0,null,"","","","","",""]
[294,null,null,null,null,null,null,null,null,null,null,null,null,null,null,null,0,null,null,null,null,null,null,null,null,null,null,null,"",null,null,"",null,null,null,null,null,null,null,null,null,null,0,0,0,0,null,"","","","","",""]
[295,null,null,null,null,null,null,null,null,null,null,null,null,null,null,null,0,null,null,null,null,null,null,null,null,null,null,null,"",null,null,"",null,null,null,null,null,null,null,null,null,null,0,0,0,0,null,"","","","","",""]
[296,null,null,null,null,null,null,null,null,null,null,null,null,null,null,null,0,null,null,null,null,null,null,null,null,null,null,null,"",null,null,"",null,null,null,null,null,null,null,null,null,null,0,0,0,0,null,"","","","","",""]
[297,null,null,null,null,null,null,null,null,null,null,null,null,null,null,null,0,null,null,null,null,null,null,null,null,null,null,null,"",null,null,"",null,null,null,null,null,null,null,null,null,null,0,0,0,0,null,"","","","","",""]
[298,null,null,null,null,null,null,null,null,null,null,null,null,null,null,null,0,null,null,null,null,null,null,null,null,null,null,null,"",null,null,"",null,null,null,null,null,null,null,null,null,null,0,0,0,0,null,"","","","","",""]
[299,null,null,null,null,null,null,null,null,null,null,null,null,null,null,null,0,null,null,null,null,null,null,null,null,null,null,null,"",null,null,"",null,null,null,null,null,null,null,null,null,null,0,0,0,0,null,"","","","","",""]
[300,null,null,null,null,null,null,null,null,null,null,null,null,null,null,null,0,null,null,null,null,null,null,null,null,null,null,null,"",null,null,"",null,null,null,null,null,null,null,null,null,null,0,0,0,0,null,"","","","","",""]
[301,null,null,null,null,null,null,null,null,null,null,null,null,null,null,null,0,null,null,null,null,null,null,null,null,null,null,null,"",null,null,"",null,null,null,null,null,null,null,null,null,null,0,0,0,0,null,"","","","","",""]
[302,null,null,null,null,null,null,null,null,null,null,null,null,null,null,null,0,null,null,null,null,null,null,null,null,null,null,null,"",null,null,"",null,null,null,null,null,null,null,null,null,null,0,0,0,0,null,"","","","","",""]
[303,null,null,null,null,null,null,null,null,null,null,null,null,null,null,null,0,null,null,null,null,null,null,null,null,null,null,null,"",null,null,"",null,null,null,null,null,null,null,null,null,null,0,0,0,0,null,"","","","","",""]
[304,null,null,null,null,null,null,null,null,null,null,null,null,null,null,null,0,null,null,null,null,null,null,null,null,null,null,null,"",null,null,"",null,null,null,null,null,null,null,null,null,null,0,0,0,0,null,"","","","","",""]
[305,null,null,null,null,null,null,null,null,null,null,null,null,null,null,null,0,null,null,null,null,null,null,null,null,null,null,null,"",null,null,"",null,null,null,null,null,null,null,null,null,null,0,0,0,0,null,"","","","","",""]
[306,null,null,null,null,null,null,null,null,null,null,null,null,null,null,null,0,null,null,null,null,null,null,null,null,null,null,null,"",null,null,"",null,null,null,null,null,null,null,null,null,null,0,0,0,0,null,"","","","","",""]
[307,null,null,null,null,null,null,null,null,null,null,null,null,null,null,null,0,null,null,null,null,null,null,null,null,null,null,null,"",null,null,"",null,null,null,null,null,null,null,null,null,null,0,0,0,0,null,"","","","","",""]
[308,null,null,null,null,null,null,null,null,null,null,null,null,null,null,null,0,null,null,null,null,null,null,null,null,null,null,null,"",null,null,"",null,null,null,null,null,null,null,null,null,null,0,0,0,0,null,"","","","","",""]
[309,null,null,null,null,null,null,null,null,null,null,null,null,null,null,null,0,null,null,null,null,null,null,null,null,null,null,null,"",null,null,"",null,null,null,null,null,null,null,null,null,null,0,0,0,0,null,"","","","","",""]
[310,null,null,null,null,null,null,null,null,null,null,null,null,null,null,null,0,null,null,null,null,null,null,null,null,null,null,null,"",null,null,"",null,null,null,null,null,null,null,null,null,null,0,0,0,0,null,"","","","","",""]
[311,null,null,null,null,null,null,null,null,null,null,null,null,null,null,null,0,null,null,null,null,null,null,null,null,null,null,null,"",null,null,"",null,null,null,null,null,null,null,null,null,null,0,0,0,0,null,"","","","","",""]
[312,null,null,null,null,null,null,null,null,null,null,null,null,null,null,null,0,null,null,null,null,null,null,null,null,null,null,null,"",null,null,"",null,null,null,null,null,null,null,null,null,null,0,0,0,0,null,"","","","","",""]
[313,null,null,null,null,null,null,null,null,null,null,null,null,null,null,null,0,null,null,null,null,null,null,null,null,null,null,null,"",null,null,"",null,null,null,null,null,null,null,null,null,null,0,0,0,0,null,"","","","","",""]
[314,null,null,null,null,null,null,null,null,null,null,null,null,null,null,null,0,null,null,null,null,null,null,null,null,null,null,null,"",null,null,"",null,null,null,null,null,null,null,null,null,null,0,0,0,0,null,"","","","","",""]
[315,null,null,null,null,null,null,null,null,null,null,null,null,null,null,null,0,null,null,null,null,null,null,null,null,null,null,null,"",null,null,"",null,null,null,null,null,null,null,null,null,null,0,0,0,0,null,"","","","","",""]
[316,null,null,null,null,null,null,null,null,null,null,null,null,null,null,null,0,null,null,null,null,null,null,null,null,null,null,null,"",null,null,"",null,null,null,null,null,null,null,null,null,null,0,0,0,0,null,"","","","","",""]
[317,null,null,null,null,null,null,null,null,null,null,null,null,null,null,null,0,null,null,null,null,null,null,null,null,null,null,null,"",null,null,"",null,null,null,null,null,null,null,null,null,null,0,0,0,0,null,"","","","","",""]
[318,null,null,null,null,null,null,null,null,null,null,null,null,null,null,null,0,null,null,null,null,null,null,null,null,null,null,null,"",null,null,"",null,null,null,null,null,null,null,null,null,null,0,0,0,0,null,"","","","","",""]
[319,null,null,null,null,null,null,null,null,null,null,null,null,null,null,null,0,null,null,null,null,null,null,null,null,null,null,null,"",null,null,"",null,null,null,null,null,null,null,null,null,null,0,0,0,0,null,"","","","","",""]
[320,null,null,null,null,null,null,null,null,null,null,null,null,null,null,null,0,null,null,null,null,null,null,null,null,null,null,null,"",null,null,"",null,null,null,null,null,null,null,null,null,null,0,0,0,0,null,"","","","","",""]
[321,null,null,null,null,null,null,null,null,null,null,null,null,null,null,null,{"$f":"SUM(IF(AND(W$3=\"Additional Property Coverage\",W$4=\"Sublimit\"),W334,0),IF(AND(X$3=\"Additional Property Coverage\",X$4=\"Sublimit\"),X334,0),IF(AND(Y$3=\"Additional Property Coverage\",Y$4=\"Sublimit\"),Y334,0),IF(AND(Z$3=\"Additional Property Coverage\",Z$4=\"Sublimit\"),Z334,0),IF(AND(AA$3=\"Additional Property Coverage\",AA$4=\"Sublimit\"),AA334,0),IF(AND(AB$3=\"Additional Property Coverage\",AB$4=\"Sublimit\"),AB334,0))","v":0},null,null,null,null,null,null,null,null,null,null,null,{"$f":"IF(SUM(P334,Q334:T334,W334:AB334)>0,SUM(P334,Q334:T334)+SUMIFS(W334:AB334,$W$4:$AB$4,\"Coverage\"),\"\")","v":""},null,null,"",null,null,null,null,null,null,null,null,null,null,{"$f":"IF(AND(ISBLANK(blanket_deductible),P334>0,AF334=\"per unit\"),$AE334,0)","v":0},{"$f":"IF(AND(ISBLANK(blanket_deductible),Q334>0,AF334=\"per unit\"),$AE334,0)","v":0},{"$f":"IF(AND(ISBLANK(blanket_deductible),R334>0,AF334=\"per unit\"),$AE334,0)","v":0},{"$f":"IF(AND(ISBLANK(blanket_deductible),S334>0,AF334=\"per unit\"),$AE334,0)","v":0},null,{"$f":"IF(ISNUMBER(W334),$W$4,\"\")","v":""},{"$f":"IF(ISNUMBER(X334),$X$4,\"\")","v":""},{"$f":"IF(ISNUMBER(Y334),$Y$4,\"\")","v":""},{"$f":"IF(ISNUMBER(Z334),$Z$4,\"\")","v":""},{"$f":"IF(ISNUMBER(AA334),$AA$4,\"\")","v":""},{"$f":"IF(ISNUMBER(AB334),$AB$4,\"\")","v":""}]
[{"$f":"ROW(A335)-ROWS($A$1:$A$13)","v":322},null,null,null,null,null,null,null,null,null,null,null,null,null,null,null,0,null,null,null,null,null,null,null,null,null,null,null,"",null,null,{"$f":"IF(OR(ISBLANK(AE335),AE335=\"\"),\"\",\"per unit\")","v":""},null,null,null,null,null,null,null,null,null,null,0,0,0,0,null,"","","","","",""]
[323,null,null,null,null,null,null,null,null,null,null,null,null,null,null,null,0,null,null,null,null,null,null,null,null,null,null,null,"",null,null,"",null,null,null,null,null,null,null,null,null,null,0,0,0,0,null,"","","","","",""]
[324,null,null,null,null,null,null,null,null,null,null,null,null,null,null,null,0,null,null,null,null,null,null,null,null,null,null,null,"",null,null,"",null,null,null,null,null,null,null,null,null,null,0,0,0,0,null,"","","","","",""]
[325,null,null,null,null,null,null,null,null,null,null,null,null,null,null,null,0,null,null,null,null,null,null,null,null,null,null,null,"",null,null,"",null,null,null,null,null,null,null,null,null,null,0,0,0,0,null,"","","","","",""]
[326,null,null,null,null,null,null,null,null,null,null,null,null,null,null,null,0,null,null,null,null,null,null,null,null,null,null,null,"",null,null,"",null,null,null,null,null,null,null,null,null,null,0,0,0,0,null,"","","","","",""]
[327,null,null,null,null,null,null,null,null,null,null,null,null,null,null,null,0,null,null,null,null,null,null,null,null,null,null,null,"",null,null,"",null,null,null,null,null,null,null,null,null,null,0,0,0,0,null,"","","","","",""]
[328,null,null,null,null,null,null,null,null,null,null,null,null,null,null,null,0,null,null,null,null,null,null,null,null,null,null,null,"",null,null,"",null,null,null,null,null,null,null,null,null,null,0,0,0,0,null,"","","","","",""]
[329,null,null,null,null,null,null,null,null,null,null,null,null,null,null,null,0,null,null,null,null,null,null,null,null,null,null,null,"",null,null,"",null,null,null,null,null,null,null,null,null,null,0,0,0,0,null,"","","","","",""]
[330,null,null,null,null,null,null,null,null,null,null,null,null,null,null,null,0,null,null,null,null,null,null,null,null,null,null,null,"",null,null,"",null,null,null,null,null,null,null,null,null,null,0,0,0,0,null,"","","","","",""]
[331,null,null,null,null,null,null,null,null,null,null,null,null,null,null,null,0,null,null,null,null,null,null,null,null,null,null,null,"",null,null,"",null,null,null,null,null,null,null,null,null,null,0,0,0,0,null,"","","","","",""]
[332,null,null,null,null,null,null,null,null,null,null,null,null,null,null,null,0,null,null,null,null,null,null,null,null,null,null,null,"",null,null,"",null,null,null,null,null,null,null,null,null,null,0,0,0,0,null,"","","","","",""]
[333,null,null,null,null,null,null,null,null,null,null,null,null,null,null,null,0,null,null,null,null,null,null,null,null,null,null,null,"",null,null,"",null,null,null,null,null,null,null,null,null,null,0,0,0,0,null,"","","","","",""]
[334,null,null,null,null,null,null,null,null,null,null,null,null,null,null,null,0,null,null,null,null,null,null,null,null,null,null,null,"",null,null,"",null,null,null,null,null,null,null,null,null,null,0,0,0,0,null,"","","","","",""]
[335,null,null,null,null,null,null,null,null,null,null,null,null,null,null,null,0,null,null,null,null,null,null,null,null,null,null,null,"",null,null,"",null,null,null,null,null,null,null,null,null,null,0,0,0,0,null,"","","","","",""]
[336,null,null,null,null,null,null,null,null,null,null,null,null,null,null,null,0,null,null,null,null,null,null,null,null,null,null,null,"",null,null,"",null,null,null,null,null,null,null,null,null,null,0,0,0,0,null,"","","","","",""]
[337,null,null,null,null,null,null,null,null,null,null,null,null,null,null,null,0,null,null,null,null,null,null,null,null,null,null,null,"",null,null,"",null,null,null,null,null,null,null,null,null,null,0,0,0,0,null,"","","","","",""]
[338,null,null,null,null,null,null,null,null,null,null,null,null,null,null,null,0,null,null,null,null,null,null,null,null,null,null,null,"",null,null,"",null,null,null,null,null,null,null,null,null,null,0,0,0,0,null,"","","","","",""]
[339,null,null,null,null,null,null,null,null,null,null,null,null,null,null,null,0,null,null,null,null,null,null,null,null,null,null,null,"",null,null,"",null,null,null,null,null,null,null,null,null,null,0,0,0,0,null,"","","","","",""]
[340,null,null,null,null,null,null,null,null,null,null,null,null,null,null,null,0,null,null,null,null,null,null,null,null,null,null,null,"",null,null,"",null,null,null,null,null,null,null,null,null,null,0,0,0,0,null,"","","","","",""]
[341,null,null,null,null,null,null,null,null,null,null,null,null,null,null,null,0,null,null,null,null,null,null,null,null,null,null,null,"",null,null,"",null,null,null,null,null,null,null,null,null,null,0,0,0,0,null,"","","","","",""]
[342,null,null,null,null,null,null,null,null,null,null,null,null,null,null,null,0,null,null,null,null,null,null,null,null,null,null,null,"",null,null,"",null,null,null,null,null,null,null,null,null,null,0,0,0,0,null,"","","","","",""]
[343,null,null,null,null,null,null,null,null,null,null,null,null,null,null,null,0,null,null,null,null,null,null,null,null,null,null,null,"",null,null,"",null,null,null,null,null,null,null,null,null,null,0,0,0,0,null,"","","","","",""]
[344,null,null,null,null,null,null,null,null,null,null,null,null,null,null,null,0,null,null,null,null,null,null,null,null,null,null,null,"",null,null,"",null,null,null,null,null,null,null,null,null,null,0,0,0,0,null,"","","","","",""]
[345,null,null,null,null,null,null,null,null,null,null,null,null,null,null,null,0,null,null,null,null,null,null,null,null,null,null,null,"",null,null,"",null,null,null,null,null,null,null,null,null,null,0,0,0,0,null,"","","","","",""]
[346,null,null,null,null,null,null,null,null,null,null,null,null,null,null,null,0,null,null,null,null,null,null,null,null,null,null,null,"",null,null,"",null,null,null,null,null,null,null,null,null,null,0,0,0,0,null,"","","","","",""]
[347,null,null,null,null,null,null,null,null,null,null,null,null,null,null,null,0,null,null,null,null,null,null,null,null,null,null,null,"",null,null,"",null,null,null,null,null,null,null,null,null,null,0,0,0,0,null,"","","","","",""]
[348,null,null,null,null,null,null,null,null,null,null,null,null,null,null,null,0,null,null,null,null,null,null,null,null,null,null,null,"",null,null,"",null,null,null,null,null,null,null,null,null,null,0,0,0,0,null,"","","","","",""]
[349,null,null,null,null,null,null,null,null,null,null,null,null,null,null,null,0,null,null,null,null,null,null,null,null,null,null,null,"",null,null,"",null,null,null,null,null,null,null,null,null,null,0,0,0,0,null,"","","","","",""]
[350,null,null,null,null,null,null,null,null,null,null,null,null,null,null,null,0,null,null,null,null,null,null,null,null,null,null,null,"",null,null,"",null,null,null,null,null,null,null,null,null,null,0,0,0,0,null,"","","","","",""]
[351,null,null,null,null,null,null,null,null,null,null,null,null,null,null,null,0,null,null,null,null,null,null,null,null,null,null,null,"",null,null,"",null,null,null,null,null,null,null,null,null,null,0,0,0,0,null,"","","","","",""]
[352,null,null,null,null,null,null,null,null,null,null,null,null,null,null,null,0,null,null,null,null,null,null,null,null,null,null,null,"",null,null,"",null,null,null,null,null,null,null,null,null,null,0,0,0,0,null,"","","","","",""]
[353,null,null,null,null,null,null,null,null,null,null,null,null,null,null,null,0,null,null,null,null,null,null,null,null,null,null,null,"",null,null,"",null,null,null,null,null,null,null,null,null,null,0,0,0,0,null,"","","","","",""]
[354,null,null,null,null,null,null,null,null,null,null,null,null,null,null,null,0,null,null,null,null,null,null,null,null,null,null,null,"",null,null,"",null,null,null,null,null,null,null,null,null,null,0,0,0,0,null,"","","","","",""]
[355,null,null,null,null,null,null,null,null,null,null,null,null,null,null,null,0,null,null,null,null,null,null,null,null,null,null,null,"",null,null,"",null,null,null,null,null,null,null,null,null,null,0,0,0,0,null,"","","","","",""]
[356,null,null,null,null,null,null,null,null,null,null,null,null,null,null,null,0,null,null,null,null,null,null,null,null,null,null,null,"",null,null,"",null,null,null,null,null,null,null,null,null,null,0,0,0,0,null,"","","","","",""]
[357,null,null,null,null,null,null,null,null,null,null,null,null,null,null,null,0,null,null,null,null,null,null,null,null,null,null,null,"",null,null,"",null,null,null,null,null,null,null,null,null,null,0,0,0,0,null,"","","","","",""]
[358,null,null,null,null,null,null,null,null,null,null,null,null,null,null,null,0,null,null,null,null,null,null,null,null,null,null,null,"",null,null,"",null,null,null,null,null,null,null,null,null,null,0,0,0,0,null,"","","","","",""]
[359,null,null,null,null,null,null,null,null,null,null,null,null,null,null,null,0,null,null,null,null,null,null,null,null,null,null,null,"",null,null,"",null,null,null,null,null,null,null,null,null,null,0,0,0,0,null,"","","","","",""]
[360,null,null,null,null,null,null,null,null,null,null,null,null,null,null,null,0,null,null,null,null,null,null,null,null,null,null,null,"",null,null,"",null,null,null,null,null,null,null,null,null,null,0,0,0,0,null,"","","","","",""]
[361,null,null,null,null,null,null,null,null,null,null,null,null,null,null,null,0,null,null,null,null,null,null,null,null,null,null,null,"",null,null,"",null,null,null,null,null,null,null,null,null,null,0,0,0,0,null,"","","","","",""]
[362,null,null,null,null,null,null,null,null,null,null,null,null,null,null,null,0,null,null,null,null,null,null,null,null,null,null,null,"",null,null,"",null,null,null,null,null,null,null,null,null,null,0,0,0,0,null,"","","","","",""]
[363,null,null,null,null,null,null,null,null,null,null,null,null,null,null,null,0,null,null,null,null,null,null,null,null,null,null,null,"",null,null,"",null,null,null,null,null,null,null,null,null,null,0,0,0,0,null,"","","","","",""]
[364,null,null,null,null,null,null,null,null,null,null,null,null,null,null,null,0,null,null,null,null,null,null,null,null,null,null,null,"",null,null,"",null,null,null,null,null,null,null,null,null,null,0,0,0,0,null,"","","","","",""]
[365,null,null,null,null,null,null,null,null,null,null,null,null,null,null,null,0,null,null,null,null,null,null,null,null,null,null,null,"",null,null,"",null,null,null,null,null,null,null,null,null,null,0,0,0,0,null,"","","","","",""]
[366,null,null,null,null,null,null,null,null,null,null,null,null,null,null,null,0,null,null,null,null,null,null,null,null,null,null,null,"",null,null,"",null,null,null,null,null,null,null,null,null,null,0,0,0,0,null,"","","","","",""]
[367,null,null,null,null,null,null,null,null,null,null,null,null,null,null,null,0,null,null,null,null,null,null,null,null,null,null,null,"",null,null,"",null,null,null,null,null,null,null,null,null,null,0,0,0,0,null,"","","","","",""]
[368,null,null,null,null,null,null,null,null,null,null,null,null,null,null,null,0,null,null,null,null,null,null,null,null,null,null,null,"",null,null,"",null,null,null,null,null,null,null,null,null,null,0,0,0,0,null,"","","","","",""]
[369,null,null,null,null,null,null,null,null,null,null,null,null,null,null,null,0,null,null,null,null,null,null,null,null,null,null,null,"",null,null,"",null,null,null,null,null,null,null,null,null,null,0,0,0,0,null,"","","","","",""]
[370,null,null,null,null,null,null,null,null,null,null,null,null,null,null,null,0,null,null,null,null,null,null,null,null,null,null,null,"",null,null,"",null,null,null,null,null,null,null,null,null,null,0,0,0,0,null,"","","","","",""]
[371,null,null,null,null,null,null,null,null,null,null,null,null,null,null,null,0,null,null,null,null,null,null,null,null,null,null,null,"",null,null,"",null,null,null,null,null,null,null,null,null,null,0,0,0,0,null,"","","","","",""]
[372,null,null,null,null,null,null,null,null,null,null,null,null,null,null,null,0,null,null,null,null,null,null,null,null,null,null,null,"",null,null,"",null,null,null,null,null,null,null,null,null,null,0,0,0,0,null,"","","","","",""]
[373,null,null,null,null,null,null,null,null,null,null,null,null,null,null,null,0,null,null,null,null,null,null,null,null,null,null,null,"",null,null,"",null,null,null,null,null,null,null,null,null,null,0,0,0,0,null,"","","","","",""]
[374,null,null,null,null,null,null,null,null,null,null,null,null,null,null,null,0,null,null,null,null,null,null,null,null,null,null,null,"",null,null,"",null,null,null,null,null,null,null,null,null,null,0,0,0,0,null,"","","","","",""]
[375,null,null,null,null,null,null,null,null,null,null,null,null,null,null,null,0,null,null,null,null,null,null,null,null,null,null,null,"",null,null,"",null,null,null,null,null,null,null,null,null,null,0,0,0,0,null,"","","","","",""]
[376,null,null,null,null,null,null,null,null,null,null,null,null,null,null,null,0,null,null,null,null,null,null,null,null,null,null,null,"",null,null,"",null,null,null,null,null,null,null,null,null,null,0,0,0,0,null,"","","","","",""]
[377,null,null,null,null,null,null,null,null,null,null,null,null,null,null,null,0,null,null,null,null,null,null,null,null,null,null,null,"",null,null,"",null,null,null,null,null,null,null,null,null,null,0,0,0,0,null,"","","","","",""]
[378,null,null,null,null,null,null,null,null,null,null,null,null,null,null,null,0,null,null,null,null,null,null,null,null,null,null,null,"",null,null,"",null,null,null,null,null,null,null,null,null,null,0,0,0,0,null,"","","","","",""]
[379,null,null,null,null,null,null,null,null,null,null,null,null,null,null,null,0,null,null,null,null,null,null,null,null,null,null,null,"",null,null,"",null,null,null,null,null,null,null,null,null,null,0,0,0,0,null,"","","","","",""]
[380,null,null,null,null,null,null,null,null,null,null,null,null,null,null,null,0,null,null,null,null,null,null,null,null,null,null,null,"",null,null,"",null,null,null,null,null,null,null,null,null,null,0,0,0,0,null,"","","","","",""]
[381,null,null,null,null,null,null,null,null,null,null,null,null,null,null,null,0,null,null,null,null,null,null,null,null,null,null,null,"",null,null,"",null,null,null,null,null,null,null,null,null,null,0,0,0,0,null,"","","","","",""]
[382,null,null,null,null,null,null,null,null,null,null,null,null,null,null,null,0,null,null,null,null,null,null,null,null,null,null,null,"",null,null,"",null,null,null,null,null,null,null,null,null,null,0,0,0,0,null,"","","","","",""]
[383,null,null,null,null,null,null,null,null,null,null,null,null,null,null,null,0,null,null,null,null,null,null,null,null,null,null,null,"",null,null,"",null,null,null,null,null,null,null,null,null,null,0,0,0,0,null,"","","","","",""]
[384,null,null,null,null,null,null,null,null,null,null,null,null,null,null,null,0,null,null,null,null,null,null,null,null,null,null,null,"",null,null,"",null,null,null,null,null,null,null,null,null,null,0,0,0,0,null,"","","","","",""]
[385,null,null,null,null,null,null,null,null,null,null,null,null,null,null,null,{"$f":"SUM(IF(AND(W$3=\"Additional Property Coverage\",W$4=\"Sublimit\"),W398,0),IF(AND(X$3=\"Additional Property Coverage\",X$4=\"Sublimit\"),X398,0),IF(AND(Y$3=\"Additional Property Coverage\",Y$4=\"Sublimit\"),Y398,0),IF(AND(Z$3=\"Additional Property Coverage\",Z$4=\"Sublimit\"),Z398,0),IF(AND(AA$3=\"Additional Property Coverage\",AA$4=\"Sublimit\"),AA398,0),IF(AND(AB$3=\"Additional Property Coverage\",AB$4=\"Sublimit\"),AB398,0))","v":0},null,null,null,null,null,null,null,null,null,null,null,{"$f":"IF(SUM(P398,Q398:T398,W398:AB398)>0,SUM(P398,Q398:T398)+SUMIFS(W398:AB398,$W$4:$AB$4,\"Coverage\"),\"\")","v":""},null,null,"",null,null,null,null,null,null,null,null,null,null,{"$f":"IF(AND(ISBLANK(blanket_deductible),P398>0,AF398=\"per unit\"),$AE398,0)","v":0},{"$f":"IF(AND(ISBLANK(blanket_deductible),Q398>0,AF398=\"per unit\"),$AE398,0)","v":0},{"$f":"IF(AND(ISBLANK(blanket_deductible),R398>0,AF398=\"per unit\"),$AE398,0)","v":0},{"$f":"IF(AND(ISBLANK(blanket_deductible),S398>0,AF398=\"per unit\"),$AE398,0)","v":0},null,{"$f":"IF(ISNUMBER(W398),$W$4,\"\")","v":""},{"$f":"IF(ISNUMBER(X398),$X$4,\"\")","v":""},{"$f":"IF(ISNUMBER(Y398),$Y$4,\"\")","v":""},{"$f":"IF(ISNUMBER(Z398),$Z$4,\"\")","v":""},{"$f":"IF(ISNUMBER(AA398),$AA$4,\"\")","v":""},{"$f":"IF(ISNUMBER(AB398),$AB$4,\"\")","v":""}]
[{"$f":"ROW(A399)-ROWS($A$1:$A$13)","v":386},null,null,null,null,null,null,null,null,null,null,null,null,null,null,null,0,null,null,null,null,null,null,null,null,null,null,null,"",null,null,{"$f":"IF(OR(ISBLANK(AE399),AE399=\"\"),\"\",\"per unit\")","v":""},null,null,null,null,null,null,null,null,null,null,0,0,0,0,null,"","","","","",""]
[387,null,null,null,null,null,null,null,null,null,null,null,null,null,null,null,0,null,null,null,null,null,null,null,null,null,null,null,"",null,null,"",null,null,null,null,null,null,null,null,null,null,0,0,0,0,null,"","","","","",""]
[388,null,null,null,null,null,null,null,null,null,null,null,null,null,null,null,0,null,null,null,null,null,null,null,null,null,null,null,"",null,null,"",null,null,null,null,null,null,null,null,null,null,0,0,0,0,null,"","","","","",""]
[389,null,null,null,null,null,null,null,null,null,null,null,null,null,null,null,0,null,null,null,null,null,null,null,null,null,null,null,"",null,null,"",null,null,null,null,null,null,null,null,null,null,0,0,0,0,null,"","","","","",""]
[390,null,null,null,null,null,null,null,null,null,null,null,null,null,null,null,0,null,null,null,null,null,null,null,null,null,null,null,"",null,null,"",null,null,null,null,null,null,null,null,null,null,0,0,0,0,null,"","","","","",""]
[391,null,null,null,null,null,null,null,null,null,null,null,null,null,null,null,0,null,null,null,null,null,null,null,null,null,null,null,"",null,null,"",null,null,null,null,null,null,null,null,null,null,0,0,0,0,null,"","","","","",""]
[392,null,null,null,null,null,null,null,null,null,null,null,null,null,null,null,0,null,null,null,null,null,null,null,null,null,null,null,"",null,null,"",null,null,null,null,null,null,null,null,null,null,0,0,0,0,null,"","","","","",""]
[393,null,null,null,null,null,null,null,null,null,null,null,null,null,null,null,0,null,null,null,null,null,null,null,null,null,null,null,"",null,null,"",null,null,null,null,null,null,null,null,null,null,0,0,0,0,null,"","","","","",""]
[394,null,null,null,null,null,null,null,null,null,null,null,null,null,null,null,0,null,null,null,null,null,null,null,null,null,null,null,"",null,null,"",null,null,null,null,null,null,null,null,null,null,0,0,0,0,null,"","","","","",""]
[395,null,null,null,null,null,null,null,null,null,null,null,null,null,null,null,0,null,null,null,null,null,null,null,null,null,null,null,"",null,null,"",null,null,null,null,null,null,null,null,null,null,0,0,0,0,null,"","","","","",""]
[396,null,null,null,null,null,null,null,null,null,null,null,null,null,null,null,0,null,null,null,null,null,null,null,null,null,null,null,"",null,null,"",null,null,null,null,null,null,null,null,null,null,0,0,0,0,null,"","","","","",""]
[397,null,null,null,null,null,null,null,null,null,null,null,null,null,null,null,0,null,null,null,null,null,null,null,null,null,null,null,"",null,null,"",null,null,null,null,null,null,null,null,null,null,0,0,0,0,null,"","","","","",""]
[398,null,null,null,null,null,null,null,null,null,null,null,null,null,null,null,0,null,null,null,null,null,null,null,null,null,null,null,"",null,null,"",null,null,null,null,null,null,null,null,null,null,0,0,0,0,null,"","","","","",""]
[399,null,null,null,null,null,null,null,null,null,null,null,null,null,null,null,0,null,null,null,null,null,null,null,null,null,null,null,"",null,null,"",null,null,null,null,null,null,null,null,null,null,0,0,0,0,null,"","","","","",""]
[400,null,null,null,null,null,null,null,null,null,null,null,null,null,null,null,0,null,null,null,null,null,null,null,null,null,null,null,"",null,null,"",null,null,null,null,null,null,null,null,null,null,0,0,0,0,null,"","","","","",""]
[401,null,null,null,null,null,null,null,null,null,null,null,null,null,null,null,0,null,null,null,null,null,null,null,null,null,null,null,"",null,null,"",null,null,null,null,null,null,null,null,null,null,0,0,0,0,null,"","","","","",""]
[402,null,null,null,null,null,null,null,null,null,null,null,null,null,null,null,0,null,null,null,null,null,null,null,null,null,null,null,"",null,null,"",null,null,null,null,null,null,null,null,null,null,0,0,0,0,null,"","","","","",""]
[403,null,null,null,null,null,null,null,null,null,null,null,null,null,null,null,0,null,null,null,null,null,null,null,null,null,null,null,"",null,null,"",null,null,null,null,null,null,null,null,null,null,0,0,0,0,null,"","","","","",""]
[404,null,null,null,null,null,null,null,null,null,null,null,null,null,null,null,0,null,null,null,null,null,null,null,null,null,null,null,"",null,null,"",null,null,null,null,null,null,null,null,null,null,0,0,0,0,null,"","","","","",""]
[405,null,null,null,null,null,null,null,null,null,null,null,null,null,null,null,0,null,null,null,null,null,null,null,null,null,null,null,"",null,null,"",null,null,null,null,null,null,null,null,null,null,0,0,0,0,null,"","","","","",""]
[406,null,null,null,null,null,null,null,null,null,null,null,null,null,null,null,0,null,null,null,null,null,null,null,null,null,null,null,"",null,null,"",null,null,null,null,null,null,null,null,null,null,0,0,0,0,null,"","","","","",""]
[407,null,null,null,null,null,null,null,null,null,null,null,null,null,null,null,0,null,null,null,null,null,null,null,null,null,null,null,"",null,null,"",null,null,null,null,null,null,null,null,null,null,0,0,0,0,null,"","","","","",""]
[408,null,null,null,null,null,null,null,null,null,null,null,null,null,null,null,0,null,null,null,null,null,null,null,null,null,null,null,"",null,null,"",null,null,null,null,null,null,null,null,null,null,0,0,0,0,null,"","","","","",""]
[409,null,null,null,null,null,null,null,null,null,null,null,null,null,null,null,0,null,null,null,null,null,null,null,null,null,null,null,"",null,null,"",null,null,null,null,null,null,null,null,null,null,0,0,0,0,null,"","","","","",""]
[410,null,null,null,null,null,null,null,null,null,null,null,null,null,null,null,0,null,null,null,null,null,null,null,null,null,null,null,"",null,null,"",null,null,null,null,null,null,null,null,null,null,0,0,0,0,null,"","","","","",""]
[411,null,null,null,null,null,null,null,null,null,null,null,null,null,null,null,0,null,null,null,null,null,null,null,null,null,null,null,"",null,null,"",null,null,null,null,null,null,null,null,null,null,0,0,0,0,null,"","","","","",""]
[412,null,null,null,null,null,null,null,null,null,null,null,null,null,null,null,0,null,null,null,null,null,null,null,null,null,null,null,"",null,null,"",null,null,null,null,null,null,null,null,null,null,0,0,0,0,null,"","","","","",""]
[413,null,null,null,null,null,null,null,null,null,null,null,null,null,null,null,0,null,null,null,null,null,null,null,null,null,null,null,"",null,null,"",null,null,null,null,null,null,null,null,null,null,0,0,0,0,null,"","","","","",""]
[414,null,null,null,null,null,null,null,null,null,null,null,null,null,null,null,0,null,null,null,null,null,null,null,null,null,null,null,"",null,null,"",null,null,null,null,null,null,null,null,null,null,0,0,0,0,null,"","","","","",""]
[415,null,null,null,null,null,null,null,null,null,null,null,null,null,null,null,0,null,null,null,null,null,null,null,null,null,null,null,"",null,null,"",null,null,null,null,null,null,null,null,null,null,0,0,0,0,null,"","","","","",""]
[416,null,null,null,null,null,null,null,null,null,null,null,null,null,null,null,0,null,null,null,null,null,null,null,null,null,null,null,"",null,null,"",null,null,null,null,null,null,null,null,null,null,0,0,0,0,null,"","","","","",""]
[417,null,null,null,null,null,null,null,null,null,null,null,null,null,null,null,0,null,null,null,null,null,null,null,null,null,null,null,"",null,null,"",null,null,null,null,null,null,null,null,null,null,0,0,0,0,null,"","","","","",""]
[418,null,null,null,null,null,null,null,null,null,null,null,null,null,null,null,0,null,null,null,null,null,null,null,null,null,null,null,"",null,null,"",null,null,null,null,null,null,null,null,null,null,0,0,0,0,null,"","","","","",""]
[419,null,null,null,null,null,null,null,null,null,null,null,null,null,null,null,0,null,null,null,null,null,null,null,null,null,null,null,"",null,null,"",null,null,null,null,null,null,null,null,null,null,0,0,0,0,null,"","","","","",""]
[420,null,null,null,null,null,null,null,null,null,null,null,null,null,null,null,0,null,null,null,null,null,null,null,null,null,null,null,"",null,null,"",null,null,null,null,null,null,null,null,null,null,0,0,0,0,null,"","","","","",""]
[421,null,null,null,null,null,null,null,null,null,null,null,null,null,null,null,0,null,null,null,null,null,null,null,null,null,null,null,"",null,null,"",null,null,null,null,null,null,null,null,null,null,0,0,0,0,null,"","","","","",""]
[422,null,null,null,null,null,null,null,null,null,null,null,null,null,null,null,0,null,null,null,null,null,null,null,null,null,null,null,"",null,null,"",null,null,null,null,null,null,null,null,null,null,0,0,0,0,null,"","","","","",""]
[423,null,null,null,null,null,null,null,null,null,null,null,null,null,null,null,0,null,null,null,null,null,null,null,null,null,null,null,"",null,null,"",null,null,null,null,null,null,null,null,null,null,0,0,0,0,null,"","","","","",""]
[424,null,null,null,null,null,null,null,null,null,null,null,null,null,null,null,0,null,null,null,null,null,null,null,null,null,null,null,"",null,null,"",null,null,null,null,null,null,null,null,null,null,0,0,0,0,null,"","","","","",""]
[425,null,null,null,null,null,null,null,null,null,null,null,null,null,null,null,0,null,null,null,null,null,null,null,null,null,null,null,"",null,null,"",null,null,null,null,null,null,null,null,null,null,0,0,0,0,null,"","","","","",""]
[426,null,null,null,null,null,null,null,null,null,null,null,null,null,null,null,0,null,null,null,null,null,null,null,null,null,null,null,"",null,null,"",null,null,null,null,null,null,null,null,null,null,0,0,0,0,null,"","","","","",""]
[427,null,null,null,null,null,null,null,null,null,null,null,null,null,null,null,0,null,null,null,null,null,null,null,null,null,null,null,"",null,null,"",null,null,null,null,null,null,null,null,null,null,0,0,0,0,null,"","","","","",""]
[428,null,null,null,null,null,null,null,null,null,null,null,null,null,null,null,0,null,null,null,null,null,null,null,null,null,null,null,"",null,null,"",null,null,null,null,null,null,null,null,null,null,0,0,0,0,null,"","","","","",""]
[429,null,null,null,null,null,null,null,null,null,null,null,null,null,null,null,0,null,null,null,null,null,null,null,null,null,null,null,"",null,null,"",null,null,null,null,null,null,null,null,null,null,0,0,0,0,null,"","","","","",""]
[430,null,null,null,null,null,null,null,null,null,null,null,null,null,null,null,0,null,null,null,null,null,null,null,null,null,null,null,"",null,null,"",null,null,null,null,null,null,null,null,null,null,0,0,0,0,null,"","","","","",""]
[431,null,null,null,null,null,null,null,null,null,null,null,null,null,null,null,0,null,null,null,null,null,null,null,null,null,null,null,"",null,null,"",null,null,null,null,null,null,null,null,null,null,0,0,0,0,null,"","","","","",""]
[432,null,null,null,null,null,null,null,null,null,null,null,null,null,null,null,0,null,null,null,null,null,null,null,null,null,null,null,"",null,null,"",null,null,null,null,null,null,null,null,null,null,0,0,0,0,null,"","","","","",""]
[433,null,null,null,null,null,null,null,null,null,null,null,null,null,null,null,0,null,null,null,null,null,null,null,null,null,null,null,"",null,null,"",null,null,null,null,null,null,null,null,null,null,0,0,0,0,null,"","","","","",""]
[434,null,null,null,null,null,null,null,null,null,null,null,null,null,null,null,0,null,null,null,null,null,null,null,null,null,null,null,"",null,null,"",null,null,null,null,null,null,null,null,null,null,0,0,0,0,null,"","","","","",""]
[435,null,null,null,null,null,null,null,null,null,null,null,null,null,null,null,0,null,null,null,null,null,null,null,null,null,null,null,"",null,null,"",null,null,null,null,null,null,null,null,null,null,0,0,0,0,null,"","","","","",""]
[436,null,null,null,null,null,null,null,null,null,null,null,null,null,null,null,0,null,null,null,null,null,null,null,null,null,null,null,"",null,null,"",null,null,null,null,null,null,null,null,null,null,0,0,0,0,null,"","","","","",""]
[437,null,null,null,null,null,null,null,null,null,null,null,null,null,null,null,0,null,null,null,null,null,null,null,null,null,null,null,"",null,null,"",null,null,null,null,null,null,null,null,null,null,0,0,0,0,null,"","","","","",""]
[438,null,null,null,null,null,null,null,null,null,null,null,null,null,null,null,0,null,null,null,null,null,null,null,null,null,null,null,"",null,null,"",null,null,null,null,null,null,null,null,null,null,0,0,0,0,null,"","","","","",""]
[439,null,null,null,null,null,null,null,null,null,null,null,null,null,null,null,0,null,null,null,null,null,null,null,null,null,null,null,"",null,null,"",null,null,null,null,null,null,null,null,null,null,0,0,0,0,null,"","","","","",""]
[440,null,null,null,null,null,null,null,null,null,null,null,null,null,null,null,0,null,null,null,null,null,null,null,null,null,null,null,"",null,null,"",null,null,null,null,null,null,null,null,null,null,0,0,0,0,null,"","","","","",""]
[441,null,null,null,null,null,null,null,null,null,null,null,null,null,null,null,0,null,null,null,null,null,null,null,null,null,null,null,"",null,null,"",null,null,null,null,null,null,null,null,null,null,0,0,0,0,null,"","","","","",""]
[442,null,null,null,null,null,null,null,null,null,null,null,null,null,null,null,0,null,null,null,null,null,null,null,null,null,null,null,"",null,null,"",null,null,null,null,null,null,null,null,null,null,0,0,0,0,null,"","","","","",""]
[443,null,null,null,null,null,null,null,null,null,null,null,null,null,null,null,0,null,null,null,null,null,null,null,null,null,null,null,"",null,null,"",null,null,null,null,null,null,null,null,null,null,0,0,0,0,null,"","","","","",""]
[444,null,null,null,null,null,null,null,null,null,null,null,null,null,null,null,0,null,null,null,null,null,null,null,null,null,null,null,"",null,null,"",null,null,null,null,null,null,null,null,null,null,0,0,0,0,null,"","","","","",""]
[445,null,null,null,null,null,null,null,null,null,null,null,null,null,null,null,0,null,null,null,null,null,null,null,null,null,null,null,"",null,null,"",null,null,null,null,null,null,null,null,null,null,0,0,0,0,null,"","","","","",""]
[446,null,null,null,null,null,null,null,null,null,null,null,null,null,null,null,0,null,null,null,null,null,null,null,null,null,null,null,"",null,null,"",null,null,null,null,null,null,null,null,null,null,0,0,0,0,null,"","","","","",""]
[447,null,null,null,null,null,null,null,null,null,null,null,null,null,null,null,0,null,null,null,null,null,null,null,null,null,null,null,"",null,null,"",null,null,null,null,null,null,null,null,null,null,0,0,0,0,null,"","","","","",""]
[448,null,null,null,null,null,null,null,null,null,null,null,null,null,null,null,0,null,null,null,null,null,null,null,null,null,null,null,"",null,null,"",null,null,null,null,null,null,null,null,null,null,0,0,0,0,null,"","","","","",""]
[449,null,null,null,null,null,null,null,null,null,null,null,null,null,null,null,{"$f":"SUM(IF(AND(W$3=\"Additional Property Coverage\",W$4=\"Sublimit\"),W462,0),IF(AND(X$3=\"Additional Property Coverage\",X$4=\"Sublimit\"),X462,0),IF(AND(Y$3=\"Additional Property Coverage\",Y$4=\"Sublimit\"),Y462,0),IF(AND(Z$3=\"Additional Property Coverage\",Z$4=\"Sublimit\"),Z462,0),IF(AND(AA$3=\"Additional Property Coverage\",AA$4=\"Sublimit\"),AA462,0),IF(AND(AB$3=\"Additional Property Coverage\",AB$4=\"Sublimit\"),AB462,0))","v":0},null,null,null,null,null,null,null,null,null,null,null,{"$f":"IF(SUM(P462,Q462:T462,W462:AB462)>0,SUM(P462,Q462:T462)+SUMIFS(W462:AB462,$W$4:$AB$4,\"Coverage\"),\"\")","v":""},null,null,"",null,null,null,null,null,null,null,null,null,null,{"$f":"IF(AND(ISBLANK(blanket_deductible),P462>0,AF462=\"per unit\"),$AE462,0)","v":0},{"$f":"IF(AND(ISBLANK(blanket_deductible),Q462>0,AF462=\"per unit\"),$AE462,0)","v":0},{"$f":"IF(AND(ISBLANK(blanket_deductible),R462>0,AF462=\"per unit\"),$AE462,0)","v":0},{"$f":"IF(AND(ISBLANK(blanket_deductible),S462>0,AF462=\"per unit\"),$AE462,0)","v":0},null,{"$f":"IF(ISNUMBER(W462),$W$4,\"\")","v":""},{"$f":"IF(ISNUMBER(X462),$X$4,\"\")","v":""},{"$f":"IF(ISNUMBER(Y462),$Y$4,\"\")","v":""},{"$f":"IF(ISNUMBER(Z462),$Z$4,\"\")","v":""},{"$f":"IF(ISNUMBER(AA462),$AA$4,\"\")","v":""},{"$f":"IF(ISNUMBER(AB462),$AB$4,\"\")","v":""}]
[{"$f":"ROW(A463)-ROWS($A$1:$A$13)","v":450},null,null,null,null,null,null,null,null,null,null,null,null,null,null,null,0,null,null,null,null,null,null,null,null,null,null,null,"",null,null,{"$f":"IF(OR(ISBLANK(AE463),AE463=\"\"),\"\",\"per unit\")","v":""},null,null,null,null,null,null,null,null,null,null,0,0,0,0,null,"","","","","",""]
[451,null,null,null,null,null,null,null,null,null,null,null,null,null,null,null,0,null,null,null,null,null,null,null,null,null,null,null,"",null,null,"",null,null,null,null,null,null,null,null,null,null,0,0,0,0,null,"","","","","",""]
[452,null,null,null,null,null,null,null,null,null,null,null,null,null,null,null,0,null,null,null,null,null,null,null,null,null,null,null,"",null,null,"",null,null,null,null,null,null,null,null,null,null,0,0,0,0,null,"","","","","",""]
[453,null,null,null,null,null,null,null,null,null,null,null,null,null,null,null,0,null,null,null,null,null,null,null,null,null,null,null,"",null,null,"",null,null,null,null,null,null,null,null,null,null,0,0,0,0,null,"","","","","",""]
[454,null,null,null,null,null,null,null,null,null,null,null,null,null,null,null,0,null,null,null,null,null,null,null,null,null,null,null,"",null,null,"",null,null,null,null,null,null,null,null,null,null,0,0,0,0,null,"","","","","",""]
[455,null,null,null,null,null,null,null,null,null,null,null,null,null,null,null,0,null,null,null,null,null,null,null,null,null,null,null,"",null,null,"",null,null,null,null,null,null,null,null,null,null,0,0,0,0,null,"","","","","",""]
[456,null,null,null,null,null,null,null,null,null,null,null,null,null,null,null,0,null,null,null,null,null,null,null,null,null,null,null,"",null,null,"",null,null,null,null,null,null,null,null,null,null,0,0,0,0,null,"","","","","",""]
[457,null,null,null,null,null,null,null,null,null,null,null,null,null,null,null,0,null,null,null,null,null,null,null,null,null,null,null,"",null,null,"",null,null,null,null,null,null,null,null,null,null,0,0,0,0,null,"","","","","",""]
[458,null,null,null,null,null,null,null,null,null,null,null,null,null,null,null,0,null,null,null,null,null,null,null,null,null,null,null,"",null,null,"",null,null,null,null,null,null,null,null,null,null,0,0,0,0,null,"","","","","",""]
[459,null,null,null,null,null,null,null,null,null,null,null,null,null,null,null,0,null,null,null,null,null,null,null,null,null,null,null,"",null,null,"",null,null,null,null,null,null,null,null,null,null,0,0,0,0,null,"","","","","",""]
[460,null,null,null,null,null,null,null,null,null,null,null,null,null,null,null,0,null,null,null,null,null,null,null,null,null,null,null,"",null,null,"",null,null,null,null,null,null,null,null,null,null,0,0,0,0,null,"","","","","",""]
[461,null,null,null,null,null,null,null,null,null,null,null,null,null,null,null,0,null,null,null,null,null,null,null,null,null,null,null,"",null,null,"",null,null,null,null,null,null,null,null,null,null,0,0,0,0,null,"","","","","",""]
[462,null,null,null,null,null,null,null,null,null,null,null,null,null,null,null,0,null,null,null,null,null,null,null,null,null,null,null,"",null,null,"",null,null,null,null,null,null,null,null,null,null,0,0,0,0,null,"","","","","",""]
[463,null,null,null,null,null,null,null,null,null,null,null,null,null,null,null,0,null,null,null,null,null,null,null,null,null,null,null,"",null,null,"",null,null,null,null,null,null,null,null,null,null,0,0,0,0,null,"","","","","",""]
[464,null,null,null,null,null,null,null,null,null,null,null,null,null,null,null,0,null,null,null,null,null,null,null,null,null,null,null,"",null,null,"",null,null,null,null,null,null,null,null,null,null,0,0,0,0,null,"","","","","",""]
[465,null,null,null,null,null,null,null,null,null,null,null,null,null,null,null,0,null,null,null,null,null,null,null,null,null,null,null,"",null,null,"",null,null,null,null,null,null,null,null,null,null,0,0,0,0,null,"","","","","",""]
[466,null,null,null,null,null,null,null,null,null,null,null,null,null,null,null,0,null,null,null,null,null,null,null,null,null,null,null,"",null,null,"",null,null,null,null,null,null,null,null,null,null,0,0,0,0,null,"","","","","",""]
[467,null,null,null,null,null,null,null,null,null,null,null,null,null,null,null,0,null,null,null,null,null,null,null,null,null,null,null,"",null,null,"",null,null,null,null,null,null,null,null,null,null,0,0,0,0,null,"","","","","",""]
[468,null,null,null,null,null,null,null,null,null,null,null,null,null,null,null,0,null,null,null,null,null,null,null,null,null,null,null,"",null,null,"",null,null,null,null,null,null,null,null,null,null,0,0,0,0,null,"","","","","",""]
[469,null,null,null,null,null,null,null,null,null,null,null,null,null,null,null,0,null,null,null,null,null,null,null,null,null,null,null,"",null,null,"",null,null,null,null,null,null,null,null,null,null,0,0,0,0,null,"","","","","",""]
[470,null,null,null,null,null,null,null,null,null,null,null,null,null,null,null,0,null,null,null,null,null,null,null,null,null,null,null,"",null,null,"",null,null,null,null,null,null,null,null,null,null,0,0,0,0,null,"","","","","",""]
[471,null,null,null,null,null,null,null,null,null,null,null,null,null,null,null,0,null,null,null,null,null,null,null,null,null,null,null,"",null,null,"",null,null,null,null,null,null,null,null,null,null,0,0,0,0,null,"","","","","",""]
[472,null,null,null,null,null,null,null,null,null,null,null,null,null,null,null,0,null,null,null,null,null,null,null,null,null,null,null,"",null,null,"",null,null,null,null,null,null,null,null,null,null,0,0,0,0,null,"","","","","",""]
[473,null,null,null,null,null,null,null,null,null,null,null,null,null,null,null,0,null,null,null,null,null,null,null,null,null,null,null,"",null,null,"",null,null,null,null,null,null,null,null,null,null,0,0,0,0,null,"","","","","",""]
[474,null,null,null,null,null,null,null,null,null,null,null,null,null,null,null,0,null,null,null,null,null,null,null,null,null,null,null,"",null,null,"",null,null,null,null,null,null,null,null,null,null,0,0,0,0,null,"","","","","",""]
[475,null,null,null,null,null,null,null,null,null,null,null,null,null,null,null,0,null,null,null,null,null,null,null,null,null,null,null,"",null,null,"",null,null,null,null,null,null,null,null,null,null,0,0,0,0,null,"","","","","",""]
[476,null,null,null,null,null,null,null,null,null,null,null,null,null,null,null,0,null,null,null,null,null,null,null,null,null,null,null,"",null,null,"",null,null,null,null,null,null,null,null,null,null,0,0,0,0,null,"","","","","",""]
[477,null,null,null,null,null,null,null,null,null,null,null,null,null,null,null,0,null,null,null,null,null,null,null,null,null,null,null,"",null,null,"",null,null,null,null,null,null,null,null,null,null,0,0,0,0,null,"","","","","",""]
[478,null,null,null,null,null,null,null,null,null,null,null,null,null,null,null,0,null,null,null,null,null,null,null,null,null,null,null,"",null,null,"",null,null,null,null,null,null,null,null,null,null,0,0,0,0,null,"","","","","",""]
[479,null,null,null,null,null,null,null,null,null,null,null,null,null,null,null,0,null,null,null,null,null,null,null,null,null,null,null,"",null,null,"",null,null,null,null,null,null,null,null,null,null,0,0,0,0,null,"","","","","",""]
[480,null,null,null,null,null,null,null,null,null,null,null,null,null,null,null,0,null,null,null,null,null,null,null,null,null,null,null,"",null,null,"",null,null,null,null,null,null,null,null,null,null,0,0,0,0,null,"","","","","",""]
[481,null,null,null,null,null,null,null,null,null,null,null,null,null,null,null,0,null,null,null,null,null,null,null,null,null,null,null,"",null,null,"",null,null,null,null,null,null,null,null,null,null,0,0,0,0,null,"","","","","",""]
[482,null,null,null,null,null,null,null,null,null,null,null,null,null,null,null,0,null,null,null,null,null,null,null,null,null,null,null,"",null,null,"",null,null,null,null,null,null,null,null,null,null,0,0,0,0,null,"","","","","",""]
[483,null,null,null,null,null,null,null,null,null,null,null,null,null,null,null,0,null,null,null,null,null,null,null,null,null,null,null,"",null,null,"",null,null,null,null,null,null,null,null,null,null,0,0,0,0,null,"","","","","",""]
[484,null,null,null,null,null,null,null,null,null,null,null,null,null,null,null,0,null,null,null,null,null,null,null,null,null,null,null,"",null,null,"",null,null,null,null,null,null,null,null,null,null,0,0,0,0,null,"","","","","",""]
[485,null,null,null,null,null,null,null,null,null,null,null,null,null,null,null,0,null,null,null,null,null,null,null,null,null,null,null,"",null,null,"",null,null,null,null,null,null,null,null,null,null,0,0,0,0,null,"","","","","",""]
[486,null,null,null,null,null,null,null,null,null,null,null,null,null,null,null,0,null,null,null,null,null,null,null,null,null,null,null,"",null,null,"",null,null,null,null,null,null,null,null,null,null,0,0,0,0,null,"","","","","",""]
[487,null,null,null,null,null,null,null,null,null,null,null,null,null,null,null,0,null,null,null,null,null,null,null,null,null,null,null,"",null,null,"",null,null,null,null,null,null,null,null,null,null,0,0,0,0,null,"","","","","",""]
[488,null,null,null,null,null,null,null,null,null,null,null,null,null,null,null,0,null,null,null,null,null,null,null,null,null,null,null,"",null,null,"",null,null,null,null,null,null,null,null,null,null,0,0,0,0,null,"","","","","",""]
[489,null,null,null,null,null,null,null,null,null,null,null,null,null,null,null,0,null,null,null,null,null,null,null,null,null,null,null,"",null,null,"",null,null,null,null,null,null,null,null,null,null,0,0,0,0,null,"","","","","",""]
[490,null,null,null,null,null,null,null,null,null,null,null,null,null,null,null,0,null,null,null,null,null,null,null,null,null,null,null,"",null,null,"",null,null,null,null,null,null,null,null,null,null,0,0,0,0,null,"","","","","",""]
[491,null,null,null,null,null,null,null,null,null,null,null,null,null,null,null,0,null,null,null,null,null,null,null,null,null,null,null,"",null,null,"",null,null,null,null,null,null,null,null,null,null,0,0,0,0,null,"","","","","",""]
[492,null,null,null,null,null,null,null,null,null,null,null,null,null,null,null,0,null,null,null,null,null,null,null,null,null,null,null,"",null,null,"",null,null,null,null,null,null,null,null,null,null,0,0,0,0,null,"","","","","",""]
[493,null,null,null,null,null,null,null,null,null,null,null,null,null,null,null,0,null,null,null,null,null,null,null,null,null,null,null,"",null,null,"",null,null,null,null,null,null,null,null,null,null,0,0,0,0,null,"","","","","",""]
[494,null,null,null,null,null,null,null,null,null,null,null,null,null,null,null,0,null,null,null,null,null,null,null,null,null,null,null,"",null,null,"",null,null,null,null,null,null,null,null,null,null,0,0,0,0,null,"","","","","",""]
[495,null,null,null,null,null,null,null,null,null,null,null,null,null,null,null,0,null,null,null,null,null,null,null,null,null,null,null,"",null,null,"",null,null,null,null,null,null,null,null,null,null,0,0,0,0,null,"","","","","",""]
[496,null,null,null,null,null,null,null,null,null,null,null,null,null,null,null,0,null,null,null,null,null,null,null,null,null,null,null,"",null,null,"",null,null,null,null,null,null,null,null,null,null,0,0,0,0,null,"","","","","",""]
[497,null,null,null,null,null,null,null,null,null,null,null,null,null,null,null,0,null,null,null,null,null,null,null,null,null,null,null,"",null,null,"",null,null,null,null,null,null,null,null,null,null,0,0,0,0,null,"","","","","",""]
[498,null,null,null,null,null,null,null,null,null,null,null,null,null,null,null,0,null,null,null,null,null,null,null,null,null,null,null,"",null,null,"",null,null,null,null,null,null,null,null,null,null,0,0,0,0,null,"","","","","",""]
[499,null,null,null,null,null,null,null,null,null,null,null,null,null,null,null,0,null,null,null,null,null,null,null,null,null,null,null,"",null,null,"",null,null,null,null,null,null,null,null,null,null,0,0,0,0,null,"","","","","",""]
[500,null,null,null,null,null,null,null,null,null,null,null,null,null,null,null,0,null,null,null,null,null,null,null,null,null,null,null,"",null,null,"",null,null,null,null,null,null,null,null,null,null,0,0,0,0,null,"","","","","",""]
[501,null,null,null,null,null,null,null,null,null,null,null,null,null,null,null,0,null,null,null,null,null,null,null,null,null,null,null,"",null,null,"",null,null,null,null,null,null,null,null,null,null,0,0,0,0,null,"","","","","",""]
[502,null,null,null,null,null,null,null,null,null,null,null,null,null,null,null,0,null,null,null,null,null,null,null,null,null,null,null,"",null,null,"",null,null,null,null,null,null,null,null,null,null,0,0,0,0,null,"","","","","",""]
[503,null,null,null,null,null,null,null,null,null,null,null,null,null,null,null,0,null,null,null,null,null,null,null,null,null,null,null,"",null,null,"",null,null,null,null,null,null,null,null,null,null,0,0,0,0,null,"","","","","",""]
[504,null,null,null,null,null,null,null,null,null,null,null,null,null,null,null,0,null,null,null,null,null,null,null,null,null,null,null,"",null,null,"",null,null,null,null,null,null,null,null,null,null,0,0,0,0,null,"","","","","",""]
[505,null,null,null,null,null,null,null,null,null,null,null,null,null,null,null,0,null,null,null,null,null,null,null,null,null,null,null,"",null,null,"",null,null,null,null,null,null,null,null,null,null,0,0,0,0,null,"","","","","",""]
[506,null,null,null,null,null,null,null,null,null,null,null,null,null,null,null,0,null,null,null,null,null,null,null,null,null,null,null,"",null,null,"",null,null,null,null,null,null,null,null,null,null,0,0,0,0,null,"","","","","",""]
[507,null,null,null,null,null,null,null,null,null,null,null,null,null,null,null,0,null,null,null,null,null,null,null,null,null,null,null,"",null,null,"",null,null,null,null,null,null,null,null,null,null,0,0,0,0,null,"","","","","",""]
[508,null,null,null,null,null,null,null,null,null,null,null,null,null,null,null,0,null,null,null,null,null,null,null,null,null,null,null,"",null,null,"",null,null,null,null,null,null,null,null,null,null,0,0,0,0,null,"","","","","",""]
[509,null,null,null,null,null,null,null,null,null,null,null,null,null,null,null,0,null,null,null,null,null,null,null,null,null,null,null,"",null,null,"",null,null,null,null,null,null,null,null,null,null,0,0,0,0,null,"","","","","",""]
[510,null,null,null,null,null,null,null,null,null,null,null,null,null,null,null,0,null,null,null,null,null,null,null,null,null,null,null,"",null,null,"",null,null,null,null,null,null,null,null,null,null,0,0,0,0,null,"","","","","",""]
[511,null,null,null,null,null,null,null,null,null,null,null,null,null,null,null,0,null,null,null,null,null,null,null,null,null,null,null,"",null,null,"",null,null,null,null,null,null,null,null,null,null,0,0,0,0,null,"","","","","",""]
[512,null,null,null,null,null,null,null,null,null,null,null,null,null,null,null,0,null,null,null,null,null,null,null,null,null,null,null,"",null,null,"",null,null,null,null,null,null,null,null,null,null,0,0,0,0,null,"","","","","",""]
[513,null,null,null,null,null,null,null,null,null,null,null,null,null,null,null,{"$f":"SUM(IF(AND(W$3=\"Additional Property Coverage\",W$4=\"Sublimit\"),W526,0),IF(AND(X$3=\"Additional Property Coverage\",X$4=\"Sublimit\"),X526,0),IF(AND(Y$3=\"Additional Property Coverage\",Y$4=\"Sublimit\"),Y526,0),IF(AND(Z$3=\"Additional Property Coverage\",Z$4=\"Sublimit\"),Z526,0),IF(AND(AA$3=\"Additional Property Coverage\",AA$4=\"Sublimit\"),AA526,0),IF(AND(AB$3=\"Additional Property Coverage\",AB$4=\"Sublimit\"),AB526,0))","v":0},null,null,null,null,null,null,null,null,null,null,null,{"$f":"IF(SUM(P526,Q526:T526,W526:AB526)>0,SUM(P526,Q526:T526)+SUMIFS(W526:AB526,$W$4:$AB$4,\"Coverage\"),\"\")","v":""},null,null,"",null,null,null,null,null,null,null,null,null,null,{"$f":"IF(AND(ISBLANK(blanket_deductible),P526>0,AF526=\"per unit\"),$AE526,0)","v":0},{"$f":"IF(AND(ISBLANK(blanket_deductible),Q526>0,AF526=\"per unit\"),$AE526,0)","v":0},{"$f":"IF(AND(ISBLANK(blanket_deductible),R526>0,AF526=\"per unit\"),$AE526,0)","v":0},{"$f":"IF(AND(ISBLANK(blanket_deductible),S526>0,AF526=\"per unit\"),$AE526,0)","v":0},null,{"$f":"IF(ISNUMBER(W526),$W$4,\"\")","v":""},{"$f":"IF(ISNUMBER(X526),$X$4,\"\")","v":""},{"$f":"IF(ISNUMBER(Y526),$Y$4,\"\")","v":""},{"$f":"IF(ISNUMBER(Z526),$Z$4,\"\")","v":""},{"$f":"IF(ISNUMBER(AA526),$AA$4,\"\")","v":""},{"$f":"IF(ISNUMBER(AB526),$AB$4,\"\")","v":""}]
[{"$f":"ROW(A527)-ROWS($A$1:$A$13)","v":514},null,null,null,null,null,null,null,null,null,null,null,null,null,null,null,0,null,null,null,null,null,null,null,null,null,null,null,"",null,null,{"$f":"IF(OR(ISBLANK(AE527),AE527=\"\"),\"\",\"per unit\")","v":""},null,null,null,null,null,null,null,null,null,null,0,0,0,0,null,"","","","","",""]
[515,null,null,null,null,null,null,null,null,null,null,null,null,null,null,null,0,null,null,null,null,null,null,null,null,null,null,null,"",null,null,"",null,null,null,null,null,null,null,null,null,null,0,0,0,0,null,"","","","","",""]
[516,null,null,null,null,null,null,null,null,null,null,null,null,null,null,null,0,null,null,null,null,null,null,null,null,null,null,null,"",null,null,"",null,null,null,null,null,null,null,null,null,null,0,0,0,0,null,"","","","","",""]
[517,null,null,null,null,null,null,null,null,null,null,null,null,null,null,null,0,null,null,null,null,null,null,null,null,null,null,null,"",null,null,"",null,null,null,null,null,null,null,null,null,null,0,0,0,0,null,"","","","","",""]
[518,null,null,null,null,null,null,null,null,null,null,null,null,null,null,null,0,null,null,null,null,null,null,null,null,null,null,null,"",null,null,"",null,null,null,null,null,null,null,null,null,null,0,0,0,0,null,"","","","","",""]
[519,null,null,null,null,null,null,null,null,null,null,null,null,null,null,null,0,null,null,null,null,null,null,null,null,null,null,null,"",null,null,"",null,null,null,null,null,null,null,null,null,null,0,0,0,0,null,"","","","","",""]
[520,null,null,null,null,null,null,null,null,null,null,null,null,null,null,null,0,null,null,null,null,null,null,null,null,null,null,null,"",null,null,"",null,null,null,null,null,null,null,null,null,null,0,0,0,0,null,"","","","","",""]
[521,null,null,null,null,null,null,null,null,null,null,null,null,null,null,null,0,null,null,null,null,null,null,null,null,null,null,null,"",null,null,"",null,null,null,null,null,null,null,null,null,null,0,0,0,0,null,"","","","","",""]
[522,null,null,null,null,null,null,null,null,null,null,null,null,null,null,null,0,null,null,null,null,null,null,null,null,null,null,null,"",null,null,"",null,null,null,null,null,null,null,null,null,null,0,0,0,0,null,"","","","","",""]
[523,null,null,null,null,null,null,null,null,null,null,null,null,null,null,null,0,null,null,null,null,null,null,null,null,null,null,null,"",null,null,"",null,null,null,null,null,null,null,null,null,null,0,0,0,0,null,"","","","","",""]
[524,null,null,null,null,null,null,null,null,null,null,null,null,null,null,null,0,null,null,null,null,null,null,null,null,null,null,null,"",null,null,"",null,null,null,null,null,null,null,null,null,null,0,0,0,0,null,"","","","","",""]
[525,null,null,null,null,null,null,null,null,null,null,null,null,null,null,null,0,null,null,null,null,null,null,null,null,null,null,null,"",null,null,"",null,null,null,null,null,null,null,null,null,null,0,0,0,0,null,"","","","","",""]
[526,null,null,null,null,null,null,null,null,null,null,null,null,null,null,null,0,null,null,null,null,null,null,null,null,null,null,null,"",null,null,"",null,null,null,null,null,null,null,null,null,null,0,0,0,0,null,"","","","","",""]
[527,null,null,null,null,null,null,null,null,null,null,null,null,null,null,null,0,null,null,null,null,null,null,null,null,null,null,null,"",null,null,"",null,null,null,null,null,null,null,null,null,null,0,0,0,0,null,"","","","","",""]
[528,null,null,null,null,null,null,null,null,null,null,null,null,null,null,null,0,null,null,null,null,null,null,null,null,null,null,null,"",null,null,"",null,null,null,null,null,null,null,null,null,null,0,0,0,0,null,"","","","","",""]
[529,null,null,null,null,null,null,null,null,null,null,null,null,null,null,null,0,null,null,null,null,null,null,null,null,null,null,null,"",null,null,"",null,null,null,null,null,null,null,null,null,null,0,0,0,0,null,"","","","","",""]
[530,null,null,null,null,null,null,null,null,null,null,null,null,null,null,null,0,null,null,null,null,null,null,null,null,null,null,null,"",null,null,"",null,null,null,null,null,null,null,null,null,null,0,0,0,0,null,"","","","","",""]
[531,null,null,null,null,null,null,null,null,null,null,null,null,null,null,null,0,null,null,null,null,null,null,null,null,null,null,null,"",null,null,"",null,null,null,null,null,null,null,null,null,null,0,0,0,0,null,"","","","","",""]
[532,null,null,null,null,null,null,null,null,null,null,null,null,null,null,null,0,null,null,null,null,null,null,null,null,null,null,null,"",null,null,"",null,null,null,null,null,null,null,null,null,null,0,0,0,0,null,"","","","","",""]
[533,null,null,null,null,null,null,null,null,null,null,null,null,null,null,null,0,null,null,null,null,null,null,null,null,null,null,null,"",null,null,"",null,null,null,null,null,null,null,null,null,null,0,0,0,0,null,"","","","","",""]
[534,null,null,null,null,null,null,null,null,null,null,null,null,null,null,null,0,null,null,null,null,null,null,null,null,null,null,null,"",null,null,"",null,null,null,null,null,null,null,null,null,null,0,0,0,0,null,"","","","","",""]
[535,null,null,null,null,null,null,null,null,null,null,null,null,null,null,null,0,null,null,null,null,null,null,null,null,null,null,null,"",null,null,"",null,null,null,null,null,null,null,null,null,null,0,0,0,0,null,"","","","","",""]
[536,null,null,null,null,null,null,null,null,null,null,null,null,null,null,null,0,null,null,null,null,null,null,null,null,null,null,null,"",null,null,"",null,null,null,null,null,null,null,null,null,null,0,0,0,0,null,"","","","","",""]
[537,null,null,null,null,null,null,null,null,null,null,null,null,null,null,null,0,null,null,null,null,null,null,null,null,null,null,null,"",null,null,"",null,null,null,null,null,null,null,null,null,null,0,0,0,0,null,"","","","","",""]
[538,null,null,null,null,null,null,null,null,null,null,null,null,null,null,null,0,null,null,null,null,null,null,null,null,null,null,null,"",null,null,"",null,null,null,null,null,null,null,null,null,null,0,0,0,0,null,"","","","","",""]
[539,null,null,null,null,null,null,null,null,null,null,null,null,null,null,null,0,null,null,null,null,null,null,null,null,null,null,null,"",null,null,"",null,null,null,null,null,null,null,null,null,null,0,0,0,0,null,"","","","","",""]
[540,null,null,null,null,null,null,null,null,null,null,null,null,null,null,null,0,null,null,null,null,null,null,null,null,null,null,null,"",null,null,"",null,null,null,null,null,null,null,null,null,null,0,0,0,0,null,"","","","","",""]
[541,null,null,null,null,null,null,null,null,null,null,null,null,null,null,null,0,null,null,null,null,null,null,null,null,null,null,null,"",null,null,"",null,null,null,null,null,null,null,null,null,null,0,0,0,0,null,"","","","","",""]
[542,null,null,null,null,null,null,null,null,null,null,null,null,null,null,null,0,null,null,null,null,null,null,null,null,null,null,null,"",null,null,"",null,null,null,null,null,null,null,null,null,null,0,0,0,0,null,"","","","","",""]
[543,null,null,null,null,null,null,null,null,null,null,null,null,null,null,null,0,null,null,null,null,null,null,null,null,null,null,null,"",null,null,"",null,null,null,null,null,null,null,null,null,null,0,0,0,0,null,"","","","","",""]
[544,null,null,null,null,null,null,null,null,null,null,null,null,null,null,null,0,null,null,null,null,null,null,null,null,null,null,null,"",null,null,"",null,null,null,null,null,null,null,null,null,null,0,0,0,0,null,"","","","","",""]
[545,null,null,null,null,null,null,null,null,null,null,null,null,null,null,null,0,null,null,null,null,null,null,null,null,null,null,null,"",null,null,"",null,null,null,null,null,null,null,null,null,null,0,0,0,0,null,"","","","","",""]
[546,null,null,null,null,null,null,null,null,null,null,null,null,null,null,null,0,null,null,null,null,null,null,null,null,null,null,null,"",null,null,"",null,null,null,null,null,null,null,null,null,null,0,0,0,0,null,"","","","","",""]
[547,null,null,null,null,null,null,null,null,null,null,null,null,null,null,null,0,null,null,null,null,null,null,null,null,null,null,null,"",null,null,"",null,null,null,null,null,null,null,null,null,null,0,0,0,0,null,"","","","","",""]
[548,null,null,null,null,null,null,null,null,null,null,null,null,null,null,null,0,null,null,null,null,null,null,null,null,null,null,null,"",null,null,"",null,null,null,null,null,null,null,null,null,null,0,0,0,0,null,"","","","","",""]
[549,null,null,null,null,null,null,null,null,null,null,null,null,null,null,null,0,null,null,null,null,null,null,null,null,null,null,null,"",null,null,"",null,null,null,null,null,null,null,null,null,null,0,0,0,0,null,"","","","","",""]
[550,null,null,null,null,null,null,null,null,null,null,null,null,null,null,null,0,null,null,null,null,null,null,null,null,null,null,null,"",null,null,"",null,null,null,null,null,null,null,null,null,null,0,0,0,0,null,"","","","","",""]
[551,null,null,null,null,null,null,null,null,null,null,null,null,null,null,null,0,null,null,null,null,null,null,null,null,null,null,null,"",null,null,"",null,null,null,null,null,null,null,null,null,null,0,0,0,0,null,"","","","","",""]
[552,null,null,null,null,null,null,null,null,null,null,null,null,null,null,null,0,null,null,null,null,null,null,null,null,null,null,null,"",null,null,"",null,null,null,null,null,null,null,null,null,null,0,0,0,0,null,"","","","","",""]
[553,null,null,null,null,null,null,null,null,null,null,null,null,null,null,null,0,null,null,null,null,null,null,null,null,null,null,null,"",null,null,"",null,null,null,null,null,null,null,null,null,null,0,0,0,0,null,"","","","","",""]
[554,null,null,null,null,null,null,null,null,null,null,null,null,null,null,null,0,null,null,null,null,null,null,null,null,null,null,null,"",null,null,"",null,null,null,null,null,null,null,null,null,null,0,0,0,0,null,"","","","","",""]
[555,null,null,null,null,null,null,null,null,null,null,null,null,null,null,null,0,null,null,null,null,null,null,null,null,null,null,null,"",null,null,"",null,null,null,null,null,null,null,null,null,null,0,0,0,0,null,"","","","","",""]
[556,null,null,null,null,null,null,null,null,null,null,null,null,null,null,null,0,null,null,null,null,null,null,null,null,null,null,null,"",null,null,"",null,null,null,null,null,null,null,null,null,null,0,0,0,0,null,"","","","","",""]
[557,null,null,null,null,null,null,null,null,null,null,null,null,null,null,null,0,null,null,null,null,null,null,null,null,null,null,null,"",null,null,"",null,null,null,null,null,null,null,null,null,null,0,0,0,0,null,"","","","","",""]
[558,null,null,null,null,null,null,null,null,null,null,null,null,null,null,null,0,null,null,null,null,null,null,null,null,null,null,null,"",null,null,"",null,null,null,null,null,null,null,null,null,null,0,0,0,0,null,"","","","","",""]
[559,null,null,null,null,null,null,null,null,null,null,null,null,null,null,null,0,null,null,null,null,null,null,null,null,null,null,null,"",null,null,"",null,null,null,null,null,null,null,null,null,null,0,0,0,0,null,"","","","","",""]
[560,null,null,null,null,null,null,null,null,null,null,null,null,null,null,null,0,null,null,null,null,null,null,null,null,null,null,null,"",null,null,"",null,null,null,null,null,null,null,null,null,null,0,0,0,0,null,"","","","","",""]
[561,null,null,null,null,null,null,null,null,null,null,null,null,null,null,null,0,null,null,null,null,null,null,null,null,null,null,null,"",null,null,"",null,null,null,null,null,null,null,null,null,null,0,0,0,0,null,"","","","","",""]
[562,null,null,null,null,null,null,null,null,null,null,null,null,null,null,null,0,null,null,null,null,null,null,null,null,null,null,null,"",null,null,"",null,null,null,null,null,null,null,null,null,null,0,0,0,0,null,"","","","","",""]
[563,null,null,null,null,null,null,null,null,null,null,null,null,null,null,null,0,null,null,null,null,null,null,null,null,null,null,null,"",null,null,"",null,null,null,null,null,null,null,null,null,null,0,0,0,0,null,"","","","","",""]
[564,null,null,null,null,null,null,null,null,null,null,null,null,null,null,null,0,null,null,null,null,null,null,null,null,null,null,null,"",null,null,"",null,null,null,null,null,null,null,null,null,null,0,0,0,0,null,"","","","","",""]
[565,null,null,null,null,null,null,null,null,null,null,null,null,null,null,null,0,null,null,null,null,null,null,null,null,null,null,null,"",null,null,"",null,null,null,null,null,null,null,null,null,null,0,0,0,0,null,"","","","","",""]
[566,null,null,null,null,null,null,null,null,null,null,null,null,null,null,null,0,null,null,null,null,null,null,null,null,null,null,null,"",null,null,"",null,null,null,null,null,null,null,null,null,null,0,0,0,0,null,"","","","","",""]
[567,null,null,null,null,null,null,null,null,null,null,null,null,null,null,null,0,null,null,null,null,null,null,null,null,null,null,null,"",null,null,"",null,null,null,null,null,null,null,null,null,null,0,0,0,0,null,"","","","","",""]
[568,null,null,null,null,null,null,null,null,null,null,null,null,null,null,null,0,null,null,null,null,null,null,null,null,null,null,null,"",null,null,"",null,null,null,null,null,null,null,null,null,null,0,0,0,0,null,"","","","","",""]
[569,null,null,null,null,null,null,null,null,null,null,null,null,null,null,null,0,null,null,null,null,null,null,null,null,null,null,null,"",null,null,"",null,null,null,null,null,null,null,null,null,null,0,0,0,0,null,"","","","","",""]
[570,null,null,null,null,null,null,null,null,null,null,null,null,null,null,null,0,null,null,null,null,null,null,null,null,null,null,null,"",null,null,"",null,null,null,null,null,null,null,null,null,null,0,0,0,0,null,"","","","","",""]
[571,null,null,null,null,null,null,null,null,null,null,null,null,null,null,null,0,null,null,null,null,null,null,null,null,null,null,null,"",null,null,"",null,null,null,null,null,null,null,null,null,null,0,0,0,0,null,"","","","","",""]
[572,null,null,null,null,null,null,null,null,null,null,null,null,null,null,null,0,null,null,null,null,null,null,null,null,null,null,null,"",null,null,"",null,null,null,null,null,null,null,null,null,null,0,0,0,0,null,"","","","","",""]
[573,null,null,null,null,null,null,null,null,null,null,null,null,null,null,null,0,null,null,null,null,null,null,null,null,null,null,null,"",null,null,"",null,null,null,null,null,null,null,null,null,null,0,0,0,0,null,"","","","","",""]
[574,null,null,null,null,null,null,null,null,null,null,null,null,null,null,null,0,null,null,null,null,null,null,null,null,null,null,null,"",null,null,"",null,null,null,null,null,null,null,null,null,null,0,0,0,0,null,"","","","","",""]
[575,null,null,null,null,null,null,null,null,null,null,null,null,null,null,null,0,null,null,null,null,null,null,null,null,null,null,null,"",null,null,"",null,null,null,null,null,null,null,null,null,null,0,0,0,0,null,"","","","","",""]
[576,null,null,null,null,null,null,null,null,null,null,null,null,null,null,null,0,null,null,null,null,null,null,null,null,null,null,null,"",null,null,"",null,null,null,null,null,null,null,null,null,null,0,0,0,0,null,"","","","","",""]
[577,null,null,null,null,null,null,null,null,null,null,null,null,null,null,null,{"$f":"SUM(IF(AND(W$3=\"Additional Property Coverage\",W$4=\"Sublimit\"),W590,0),IF(AND(X$3=\"Additional Property Coverage\",X$4=\"Sublimit\"),X590,0),IF(AND(Y$3=\"Additional Property Coverage\",Y$4=\"Sublimit\"),Y590,0),IF(AND(Z$3=\"Additional Property Coverage\",Z$4=\"Sublimit\"),Z590,0),IF(AND(AA$3=\"Additional Property Coverage\",AA$4=\"Sublimit\"),AA590,0),IF(AND(AB$3=\"Additional Property Coverage\",AB$4=\"Sublimit\"),AB590,0))","v":0},null,null,null,null,null,null,null,null,null,null,null,{"$f":"IF(SUM(P590,Q590:T590,W590:AB590)>0,SUM(P590,Q590:T590)+SUMIFS(W590:AB590,$W$4:$AB$4,\"Coverage\"),\"\")","v":""},null,null,"",null,null,null,null,null,null,null,null,null,null,{"$f":"IF(AND(ISBLANK(blanket_deductible),P590>0,AF590=\"per unit\"),$AE590,0)","v":0},{"$f":"IF(AND(ISBLANK(blanket_deductible),Q590>0,AF590=\"per unit\"),$AE590,0)","v":0},{"$f":"IF(AND(ISBLANK(blanket_deductible),R590>0,AF590=\"per unit\"),$AE590,0)","v":0},{"$f":"IF(AND(ISBLANK(blanket_deductible),S590>0,AF590=\"per unit\"),$AE590,0)","v":0},null,{"$f":"IF(ISNUMBER(W590),$W$4,\"\")","v":""},{"$f":"IF(ISNUMBER(X590),$X$4,\"\")","v":""},{"$f":"IF(ISNUMBER(Y590),$Y$4,\"\")","v":""},{"$f":"IF(ISNUMBER(Z590),$Z$4,\"\")","v":""},{"$f":"IF(ISNUMBER(AA590),$AA$4,\"\")","v":""},{"$f":"IF(ISNUMBER(AB590),$AB$4,\"\")","v":""}]
[{"$f":"ROW(A591)-ROWS($A$1:$A$13)","v":578},null,null,null,null,null,null,null,null,null,null,null,null,null,null,null,0,null,null,null,null,null,null,null,null,null,null,null,"",null,null,{"$f":"IF(OR(ISBLANK(AE591),AE591=\"\"),\"\",\"per unit\")","v":""},null,null,null,null,null,null,null,null,null,null,0,0,0,0,null,"","","","","",""]
[579,null,null,null,null,null,null,null,null,null,null,null,null,null,null,null,0,null,null,null,null,null,null,null,null,null,null,null,"",null,null,"",null,null,null,null,null,null,null,null,null,null,0,0,0,0,null,"","","","","",""]
[580,null,null,null,null,null,null,null,null,null,null,null,null,null,null,null,0,null,null,null,null,null,null,null,null,null,null,null,"",null,null,"",null,null,null,null,null,null,null,null,null,null,0,0,0,0,null,"","","","","",""]
[581,null,null,null,null,null,null,null,null,null,null,null,null,null,null,null,0,null,null,null,null,null,null,null,null,null,null,null,"",null,null,"",null,null,null,null,null,null,null,null,null,null,0,0,0,0,null,"","","","","",""]
[582,null,null,null,null,null,null,null,null,null,null,null,null,null,null,null,0,null,null,null,null,null,null,null,null,null,null,null,"",null,null,"",null,null,null,null,null,null,null,null,null,null,0,0,0,0,null,"","","","","",""]
[583,null,null,null,null,null,null,null,null,null,null,null,null,null,null,null,0,null,null,null,null,null,null,null,null,null,null,null,"",null,null,"",null,null,null,null,null,null,null,null,null,null,0,0,0,0,null,"","","","","",""]
[584,null,null,null,null,null,null,null,null,null,null,null,null,null,null,null,0,null,null,null,null,null,null,null,null,null,null,null,"",null,null,"",null,null,null,null,null,null,null,null,null,null,0,0,0,0,null,"","","","","",""]
[585,null,null,null,null,null,null,null,null,null,null,null,null,null,null,null,0,null,null,null,null,null,null,null,null,null,null,null,"",null,null,"",null,null,null,null,null,null,null,null,null,null,0,0,0,0,null,"","","","","",""]
[586,null,null,null,null,null,null,null,null,null,null,null,null,null,null,null,0,null,null,null,null,null,null,null,null,null,null,null,"",null,null,"",null,null,null,null,null,null,null,null,null,null,0,0,0,0,null,"","","","","",""]
[587,null,null,null,null,null,null,null,null,null,null,null,null,null,null,null,0,null,null,null,null,null,null,null,null,null,null,null,"",null,null,"",null,null,null,null,null,null,null,null,null,null,0,0,0,0,null,"","","","","",""]
[588,null,null,null,null,null,null,null,null,null,null,null,null,null,null,null,0,null,null,null,null,null,null,null,null,null,null,null,"",null,null,"",null,null,null,null,null,null,null,null,null,null,0,0,0,0,null,"","","","","",""]
[589,null,null,null,null,null,null,null,null,null,null,null,null,null,null,null,0,null,null,null,null,null,null,null,null,null,null,null,"",null,null,"",null,null,null,null,null,null,null,null,null,null,0,0,0,0,null,"","","","","",""]
[590,null,null,null,null,null,null,null,null,null,null,null,null,null,null,null,0,null,null,null,null,null,null,null,null,null,null,null,"",null,null,"",null,null,null,null,null,null,null,null,null,null,0,0,0,0,null,"","","","","",""]
[591,null,null,null,null,null,null,null,null,null,null,null,null,null,null,null,0,null,null,null,null,null,null,null,null,null,null,null,"",null,null,"",null,null,null,null,null,null,null,null,null,null,0,0,0,0,null,"","","","","",""]
[592,null,null,null,null,null,null,null,null,null,null,null,null,null,null,null,0,null,null,null,null,null,null,null,null,null,null,null,"",null,null,"",null,null,null,null,null,null,null,null,null,null,0,0,0,0,null,"","","","","",""]
[593,null,null,null,null,null,null,null,null,null,null,null,null,null,null,null,0,null,null,null,null,null,null,null,null,null,null,null,"",null,null,"",null,null,null,null,null,null,null,null,null,null,0,0,0,0,null,"","","","","",""]
[594,null,null,null,null,null,null,null,null,null,null,null,null,null,null,null,0,null,null,null,null,null,null,null,null,null,null,null,"",null,null,"",null,null,null,null,null,null,null,null,null,null,0,0,0,0,null,"","","","","",""]
[595,null,null,null,null,null,null,null,null,null,null,null,null,null,null,null,0,null,null,null,null,null,null,null,null,null,null,null,"",null,null,"",null,null,null,null,null,null,null,null,null,null,0,0,0,0,null,"","","","","",""]
[596,null,null,null,null,null,null,null,null,null,null,null,null,null,null,null,0,null,null,null,null,null,null,null,null,null,null,null,"",null,null,"",null,null,null,null,null,null,null,null,null,null,0,0,0,0,null,"","","","","",""]
[597,null,null,null,null,null,null,null,null,null,null,null,null,null,null,null,0,null,null,null,null,null,null,null,null,null,null,null,"",null,null,"",null,null,null,null,null,null,null,null,null,null,0,0,0,0,null,"","","","","",""]
[598,null,null,null,null,null,null,null,null,null,null,null,null,null,null,null,0,null,null,null,null,null,null,null,null,null,null,null,"",null,null,"",null,null,null,null,null,null,null,null,null,null,0,0,0,0,null,"","","","","",""]
[599,null,null,null,null,null,null,null,null,null,null,null,null,null,null,null,0,null,null,null,null,null,null,null,null,null,null,null,"",null,null,"",null,null,null,null,null,null,null,null,null,null,0,0,0,0,null,"","","","","",""]
[600,null,null,null,null,null,null,null,null,null,null,null,null,null,null,null,0,null,null,null,null,null,null,null,null,null,null,null,"",null,null,"",null,null,null,null,null,null,null,null,null,null,0,0,0,0,null,"","","","","",""]
[601,null,null,null,null,null,null,null,null,null,null,null,null,null,null,null,0,null,null,null,null,null,null,null,null,null,null,null,"",null,null,"",null,null,null,null,null,null,null,null,null,null,0,0,0,0,null,"","","","","",""]
[602,null,null,null,null,null,null,null,null,null,null,null,null,null,null,null,0,null,null,null,null,null,null,null,null,null,null,null,"",null,null,"",null,null,null,null,null,null,null,null,null,null,0,0,0,0,null,"","","","","",""]
[603,null,null,null,null,null,null,null,null,null,null,null,null,null,null,null,0,null,null,null,null,null,null,null,null,null,null,null,"",null,null,"",null,null,null,null,null,null,null,null,null,null,0,0,0,0,null,"","","","","",""]
[604,null,null,null,null,null,null,null,null,null,null,null,null,null,null,null,0,null,null,null,null,null,null,null,null,null,null,null,"",null,null,"",null,null,null,null,null,null,null,null,null,null,0,0,0,0,null,"","","","","",""]
[605,null,null,null,null,null,null,null,null,null,null,null,null,null,null,null,0,null,null,null,null,null,null,null,null,null,null,null,"",null,null,"",null,null,null,null,null,null,null,null,null,null,0,0,0,0,null,"","","","","",""]
[606,null,null,null,null,null,null,null,null,null,null,null,null,null,null,null,0,null,null,null,null,null,null,null,null,null,null,null,"",null,null,"",null,null,null,null,null,null,null,null,null,null,0,0,0,0,null,"","","","","",""]
[607,null,null,null,null,null,null,null,null,null,null,null,null,null,null,null,0,null,null,null,null,null,null,null,null,null,null,null,"",null,null,"",null,null,null,null,null,null,null,null,null,null,0,0,0,0,null,"","","","","",""]
[608,null,null,null,null,null,null,null,null,null,null,null,null,null,null,null,0,null,null,null,null,null,null,null,null,null,null,null,"",null,null,"",null,null,null,null,null,null,null,null,null,null,0,0,0,0,null,"","","","","",""]
[609,null,null,null,null,null,null,null,null,null,null,null,null,null,null,null,0,null,null,null,null,null,null,null,null,null,null,null,"",null,null,"",null,null,null,null,null,null,null,null,null,null,0,0,0,0,null,"","","","","",""]
[610,null,null,null,null,null,null,null,null,null,null,null,null,null,null,null,0,null,null,null,null,null,null,null,null,null,null,null,"",null,null,"",null,null,null,null,null,null,null,null,null,null,0,0,0,0,null,"","","","","",""]
[611,null,null,null,null,null,null,null,null,null,null,null,null,null,null,null,0,null,null,null,null,null,null,null,null,null,null,null,"",null,null,"",null,null,null,null,null,null,null,null,null,null,0,0,0,0,null,"","","","","",""]
[612,null,null,null,null,null,null,null,null,null,null,null,null,null,null,null,0,null,null,null,null,null,null,null,null,null,null,null,"",null,null,"",null,null,null,null,null,null,null,null,null,null,0,0,0,0,null,"","","","","",""]
[613,null,null,null,null,null,null,null,null,null,null,null,null,null,null,null,0,null,null,null,null,null,null,null,null,null,null,null,"",null,null,"",null,null,null,null,null,null,null,null,null,null,0,0,0,0,null,"","","","","",""]
[614,null,null,null,null,null,null,null,null,null,null,null,null,null,null,null,0,null,null,null,null,null,null,null,null,null,null,null,"",null,null,"",null,null,null,null,null,null,null,null,null,null,0,0,0,0,null,"","","","","",""]
[615,null,null,null,null,null,null,null,null,null,null,null,null,null,null,null,0,null,null,null,null,null,null,null,null,null,null,null,"",null,null,"",null,null,null,null,null,null,null,null,null,null,0,0,0,0,null,"","","","","",""]
[616,null,null,null,null,null,null,null,null,null,null,null,null,null,null,null,0,null,null,null,null,null,null,null,null,null,null,null,"",null,null,"",null,null,null,null,null,null,null,null,null,null,0,0,0,0,null,"","","","","",""]
[617,null,null,null,null,null,null,null,null,null,null,null,null,null,null,null,0,null,null,null,null,null,null,null,null,null,null,null,"",null,null,"",null,null,null,null,null,null,null,null,null,null,0,0,0,0,null,"","","","","",""]
[618,null,null,null,null,null,null,null,null,null,null,null,null,null,null,null,0,null,null,null,null,null,null,null,null,null,null,null,"",null,null,"",null,null,null,null,null,null,null,null,null,null,0,0,0,0,null,"","","","","",""]
[619,null,null,null,null,null,null,null,null,null,null,null,null,null,null,null,0,null,null,null,null,null,null,null,null,null,null,null,"",null,null,"",null,null,null,null,null,null,null,null,null,null,0,0,0,0,null,"","","","","",""]
[620,null,null,null,null,null,null,null,null,null,null,null,null,null,null,null,0,null,null,null,null,null,null,null,null,null,null,null,"",null,null,"",null,null,null,null,null,null,null,null,null,null,0,0,0,0,null,"","","","","",""]
[621,null,null,null,null,null,null,null,null,null,null,null,null,null,null,null,0,null,null,null,null,null,null,null,null,null,null,null,"",null,null,"",null,null,null,null,null,null,null,null,null,null,0,0,0,0,null,"","","","","",""]
[622,null,null,null,null,null,null,null,null,null,null,null,null,null,null,null,0,null,null,null,null,null,null,null,null,null,null,null,"",null,null,"",null,null,null,null,null,null,null,null,null,null,0,0,0,0,null,"","","","","",""]
[623,null,null,null,null,null,null,null,null,null,null,null,null,null,null,null,0,null,null,null,null,null,null,null,null,null,null,null,"",null,null,"",null,null,null,null,null,null,null,null,null,null,0,0,0,0,null,"","","","","",""]
[624,null,null,null,null,null,null,null,null,null,null,null,null,null,null,null,0,null,null,null,null,null,null,null,null,null,null,null,"",null,null,"",null,null,null,null,null,null,null,null,null,null,0,0,0,0,null,"","","","","",""]
[625,null,null,null,null,null,null,null,null,null,null,null,null,null,null,null,0,null,null,null,null,null,null,null,null,null,null,null,"",null,null,"",null,null,null,null,null,null,null,null,null,null,0,0,0,0,null,"","","","","",""]
[626,null,null,null,null,null,null,null,null,null,null,null,null,null,null,null,0,null,null,null,null,null,null,null,null,null,null,null,"",null,null,"",null,null,null,null,null,null,null,null,null,null,0,0,0,0,null,"","","","","",""]
[627,null,null,null,null,null,null,null,null,null,null,null,null,null,null,null,0,null,null,null,null,null,null,null,null,null,null,null,"",null,null,"",null,null,null,null,null,null,null,null,null,null,0,0,0,0,null,"","","","","",""]
[628,null,null,null,null,null,null,null,null,null,null,null,null,null,null,null,0,null,null,null,null,null,null,null,null,null,null,null,"",null,null,"",null,null,null,null,null,null,null,null,null,null,0,0,0,0,null,"","","","","",""]
[629,null,null,null,null,null,null,null,null,null,null,null,null,null,null,null,0,null,null,null,null,null,null,null,null,null,null,null,"",null,null,"",null,null,null,null,null,null,null,null,null,null,0,0,0,0,null,"","","","","",""]
[630,null,null,null,null,null,null,null,null,null,null,null,null,null,null,null,0,null,null,null,null,null,null,null,null,null,null,null,"",null,null,"",null,null,null,null,null,null,null,null,null,null,0,0,0,0,null,"","","","","",""]
[631,null,null,null,null,null,null,null,null,null,null,null,null,null,null,null,0,null,null,null,null,null,null,null,null,null,null,null,"",null,null,"",null,null,null,null,null,null,null,null,null,null,0,0,0,0,null,"","","","","",""]
[632,null,null,null,null,null,null,null,null,null,null,null,null,null,null,null,0,null,null,null,null,null,null,null,null,null,null,null,"",null,null,"",null,null,null,null,null,null,null,null,null,null,0,0,0,0,null,"","","","","",""]
[633,null,null,null,null,null,null,null,null,null,null,null,null,null,null,null,0,null,null,null,null,null,null,null,null,null,null,null,"",null,null,"",null,null,null,null,null,null,null,null,null,null,0,0,0,0,null,"","","","","",""]
[634,null,null,null,null,null,null,null,null,null,null,null,null,null,null,null,0,null,null,null,null,null,null,null,null,null,null,null,"",null,null,"",null,null,null,null,null,null,null,null,null,null,0,0,0,0,null,"","","","","",""]
[635,null,null,null,null,null,null,null,null,null,null,null,null,null,null,null,0,null,null,null,null,null,null,null,null,null,null,null,"",null,null,"",null,null,null,null,null,null,null,null,null,null,0,0,0,0,null,"","","","","",""]
[636,null,null,null,null,null,null,null,null,null,null,null,null,null,null,null,0,null,null,null,null,null,null,null,null,null,null,null,"",null,null,"",null,null,null,null,null,null,null,null,null,null,0,0,0,0,null,"","","","","",""]
[637,null,null,null,null,null,null,null,null,null,null,null,null,null,null,null,0,null,null,null,null,null,null,null,null,null,null,null,"",null,null,"",null,null,null,null,null,null,null,null,null,null,0,0,0,0,null,"","","","","",""]
[638,null,null,null,null,null,null,null,null,null,null,null,null,null,null,null,0,null,null,null,null,null,null,null,null,null,null,null,"",null,null,"",null,null,null,null,null,null,null,null,null,null,0,0,0,0,null,"","","","","",""]
[639,null,null,null,null,null,null,null,null,null,null,null,null,null,null,null,0,null,null,null,null,null,null,null,null,null,null,null,"",null,null,"",null,null,null,null,null,null,null,null,null,null,0,0,0,0,null,"","","","","",""]
[640,null,null,null,null,null,null,null,null,null,null,null,null,null,null,null,0,null,null,null,null,null,null,null,null,null,null,null,"",null,null,"",null,null,null,null,null,null,null,null,null,null,0,0,0,0,null,"","","","","",""]
[641,null,null,null,null,null,null,null,null,null,null,null,null,null,null,null,{"$f":"SUM(IF(AND(W$3=\"Additional Property Coverage\",W$4=\"Sublimit\"),W654,0),IF(AND(X$3=\"Additional Property Coverage\",X$4=\"Sublimit\"),X654,0),IF(AND(Y$3=\"Additional Property Coverage\",Y$4=\"Sublimit\"),Y654,0),IF(AND(Z$3=\"Additional Property Coverage\",Z$4=\"Sublimit\"),Z654,0),IF(AND(AA$3=\"Additional Property Coverage\",AA$4=\"Sublimit\"),AA654,0),IF(AND(AB$3=\"Additional Property Coverage\",AB$4=\"Sublimit\"),AB654,0))","v":0},null,null,null,null,null,null,null,null,null,null,null,{"$f":"IF(SUM(P654,Q654:T654,W654:AB654)>0,SUM(P654,Q654:T654)+SUMIFS(W654:AB654,$W$4:$AB$4,\"Coverage\"),\"\")","v":""},null,null,"",null,null,null,null,null,null,null,null,null,null,{"$f":"IF(AND(ISBLANK(blanket_deductible),P654>0,AF654=\"per unit\"),$AE654,0)","v":0},{"$f":"IF(AND(ISBLANK(blanket_deductible),Q654>0,AF654=\"per unit\"),$AE654,0)","v":0},{"$f":"IF(AND(ISBLANK(blanket_deductible),R654>0,AF654=\"per unit\"),$AE654,0)","v":0},{"$f":"IF(AND(ISBLANK(blanket_deductible),S654>0,AF654=\"per unit\"),$AE654,0)","v":0},null,{"$f":"IF(ISNUMBER(W654),$W$4,\"\")","v":""},{"$f":"IF(ISNUMBER(X654),$X$4,\"\")","v":""},{"$f":"IF(ISNUMBER(Y654),$Y$4,\"\")","v":""},{"$f":"IF(ISNUMBER(Z654),$Z$4,\"\")","v":""},{"$f":"IF(ISNUMBER(AA654),$AA$4,\"\")","v":""},{"$f":"IF(ISNUMBER(AB654),$AB$4,\"\")","v":""}]
[{"$f":"ROW(A655)-ROWS($A$1:$A$13)","v":642},null,null,null,null,null,null,null,null,null,null,null,null,null,null,null,0,null,null,null,null,null,null,null,null,null,null,null,"",null,null,{"$f":"IF(OR(ISBLANK(AE655),AE655=\"\"),\"\",\"per unit\")","v":""},null,null,null,null,null,null,null,null,null,null,0,0,0,0,null,"","","","","",""]
[643,null,null,null,null,null,null,null,null,null,null,null,null,null,null,null,0,null,null,null,null,null,null,null,null,null,null,null,"",null,null,"",null,null,null,null,null,null,null,null,null,null,0,0,0,0,null,"","","","","",""]
[644,null,null,null,null,null,null,null,null,null,null,null,null,null,null,null,0,null,null,null,null,null,null,null,null,null,null,null,"",null,null,"",null,null,null,null,null,null,null,null,null,null,0,0,0,0,null,"","","","","",""]
[645,null,null,null,null,null,null,null,null,null,null,null,null,null,null,null,0,null,null,null,null,null,null,null,null,null,null,null,"",null,null,"",null,null,null,null,null,null,null,null,null,null,0,0,0,0,null,"","","","","",""]
[646,null,null,null,null,null,null,null,null,null,null,null,null,null,null,null,0,null,null,null,null,null,null,null,null,null,null,null,"",null,null,"",null,null,null,null,null,null,null,null,null,null,0,0,0,0,null,"","","","","",""]
[647,null,null,null,null,null,null,null,null,null,null,null,null,null,null,null,0,null,null,null,null,null,null,null,null,null,null,null,"",null,null,"",null,null,null,null,null,null,null,null,null,null,0,0,0,0,null,"","","","","",""]
[648,null,null,null,null,null,null,null,null,null,null,null,null,null,null,null,0,null,null,null,null,null,null,null,null,null,null,null,"",null,null,"",null,null,null,null,null,null,null,null,null,null,0,0,0,0,null,"","","","","",""]
[649,null,null,null,null,null,null,null,null,null,null,null,null,null,null,null,0,null,null,null,null,null,null,null,null,null,null,null,"",null,null,"",null,null,null,null,null,null,null,null,null,null,0,0,0,0,null,"","","","","",""]
[650,null,null,null,null,null,null,null,null,null,null,null,null,null,null,null,0,null,null,null,null,null,null,null,null,null,null,null,"",null,null,"",null,null,null,null,null,null,null,null,null,null,0,0,0,0,null,"","","","","",""]
[651,null,null,null,null,null,null,null,null,null,null,null,null,null,null,null,0,null,null,null,null,null,null,null,null,null,null,null,"",null,null,"",null,null,null,null,null,null,null,null,null,null,0,0,0,0,null,"","","","","",""]
[652,null,null,null,null,null,null,null,null,null,null,null,null,null,null,null,0,null,null,null,null,null,null,null,null,null,null,null,"",null,null,"",null,null,null,null,null,null,null,null,null,null,0,0,0,0,null,"","","","","",""]
[653,null,null,null,null,null,null,null,null,null,null,null,null,null,null,null,0,null,null,null,null,null,null,null,null,null,null,null,"",null,null,"",null,null,null,null,null,null,null,null,null,null,0,0,0,0,null,"","","","","",""]
[654,null,null,null,null,null,null,null,null,null,null,null,null,null,null,null,0,null,null,null,null,null,null,null,null,null,null,null,"",null,null,"",null,null,null,null,null,null,null,null,null,null,0,0,0,0,null,"","","","","",""]
[655,null,null,null,null,null,null,null,null,null,null,null,null,null,null,null,0,null,null,null,null,null,null,null,null,null,null,null,"",null,null,"",null,null,null,null,null,null,null,null,null,null,0,0,0,0,null,"","","","","",""]
[656,null,null,null,null,null,null,null,null,null,null,null,null,null,null,null,0,null,null,null,null,null,null,null,null,null,null,null,"",null,null,"",null,null,null,null,null,null,null,null,null,null,0,0,0,0,null,"","","","","",""]
[657,null,null,null,null,null,null,null,null,null,null,null,null,null,null,null,0,null,null,null,null,null,null,null,null,null,null,null,"",null,null,"",null,null,null,null,null,null,null,null,null,null,0,0,0,0,null,"","","","","",""]
[658,null,null,null,null,null,null,null,null,null,null,null,null,null,null,null,0,null,null,null,null,null,null,null,null,null,null,null,"",null,null,"",null,null,null,null,null,null,null,null,null,null,0,0,0,0,null,"","","","","",""]
[659,null,null,null,null,null,null,null,null,null,null,null,null,null,null,null,0,null,null,null,null,null,null,null,null,null,null,null,"",null,null,"",null,null,null,null,null,null,null,null,null,null,0,0,0,0,null,"","","","","",""]
[660,null,null,null,null,null,null,null,null,null,null,null,null,null,null,null,0,null,null,null,null,null,null,null,null,null,null,null,"",null,null,"",null,null,null,null,null,null,null,null,null,null,0,0,0,0,null,"","","","","",""]
[661,null,null,null,null,null,null,null,null,null,null,null,null,null,null,null,0,null,null,null,null,null,null,null,null,null,null,null,"",null,null,"",null,null,null,null,null,null,null,null,null,null,0,0,0,0,null,"","","","","",""]
[662,null,null,null,null,null,null,null,null,null,null,null,null,null,null,null,0,null,null,null,null,null,null,null,null,null,null,null,"",null,null,"",null,null,null,null,null,null,null,null,null,null,0,0,0,0,null,"","","","","",""]
[663,null,null,null,null,null,null,null,null,null,null,null,null,null,null,null,0,null,null,null,null,null,null,null,null,null,null,null,"",null,null,"",null,null,null,null,null,null,null,null,null,null,0,0,0,0,null,"","","","","",""]
[664,null,null,null,null,null,null,null,null,null,null,null,null,null,null,null,0,null,null,null,null,null,null,null,null,null,null,null,"",null,null,"",null,null,null,null,null,null,null,null,null,null,0,0,0,0,null,"","","","","",""]
[665,null,null,null,null,null,null,null,null,null,null,null,null,null,null,null,0,null,null,null,null,null,null,null,null,null,null,null,"",null,null,"",null,null,null,null,null,null,null,null,null,null,0,0,0,0,null,"","","","","",""]
[666,null,null,null,null,null,null,null,null,null,null,null,null,null,null,null,0,null,null,null,null,null,null,null,null,null,null,null,"",null,null,"",null,null,null,null,null,null,null,null,null,null,0,0,0,0,null,"","","","","",""]
[667,null,null,null,null,null,null,null,null,null,null,null,null,null,null,null,0,null,null,null,null,null,null,null,null,null,null,null,"",null,null,"",null,null,null,null,null,null,null,null,null,null,0,0,0,0,null,"","","","","",""]
[668,null,null,null,null,null,null,null,null,null,null,null,null,null,null,null,0,null,null,null,null,null,null,null,null,null,null,null,"",null,null,"",null,null,null,null,null,null,null,null,null,null,0,0,0,0,null,"","","","","",""]
[669,null,null,null,null,null,null,null,null,null,null,null,null,null,null,null,0,null,null,null,null,null,null,null,null,null,null,null,"",null,null,"",null,null,null,null,null,null,null,null,null,null,0,0,0,0,null,"","","","","",""]
[670,null,null,null,null,null,null,null,null,null,null,null,null,null,null,null,0,null,null,null,null,null,null,null,null,null,null,null,"",null,null,"",null,null,null,null,null,null,null,null,null,null,0,0,0,0,null,"","","","","",""]
[671,null,null,null,null,null,null,null,null,null,null,null,null,null,null,null,0,null,null,null,null,null,null,null,null,null,null,null,"",null,null,"",null,null,null,null,null,null,null,null,null,null,0,0,0,0,null,"","","","","",""]
[672,null,null,null,null,null,null,null,null,null,null,null,null,null,null,null,0,null,null,null,null,null,null,null,null,null,null,null,"",null,null,"",null,null,null,null,null,null,null,null,null,null,0,0,0,0,null,"","","","","",""]
[673,null,null,null,null,null,null,null,null,null,null,null,null,null,null,null,0,null,null,null,null,null,null,null,null,null,null,null,"",null,null,"",null,null,null,null,null,null,null,null,null,null,0,0,0,0,null,"","","","","",""]
[674,null,null,null,null,null,null,null,null,null,null,null,null,null,null,null,0,null,null,null,null,null,null,null,null,null,null,null,"",null,null,"",null,null,null,null,null,null,null,null,null,null,0,0,0,0,null,"","","","","",""]
[675,null,null,null,null,null,null,null,null,null,null,null,null,null,null,null,0,null,null,null,null,null,null,null,null,null,null,null,"",null,null,"",null,null,null,null,null,null,null,null,null,null,0,0,0,0,null,"","","","","",""]
[676,null,null,null,null,null,null,null,null,null,null,null,null,null,null,null,0,null,null,null,null,null,null,null,null,null,null,null,"",null,null,"",null,null,null,null,null,null,null,null,null,null,0,0,0,0,null,"","","","","",""]
[677,null,null,null,null,null,null,null,null,null,null,null,null,null,null,null,0,null,null,null,null,null,null,null,null,null,null,null,"",null,null,"",null,null,null,null,null,null,null,null,null,null,0,0,0,0,null,"","","","","",""]
[678,null,null,null,null,null,null,null,null,null,null,null,null,null,null,null,0,null,null,null,null,null,null,null,null,null,null,null,"",null,null,"",null,null,null,null,null,null,null,null,null,null,0,0,0,0,null,"","","","","",""]
[679,null,null,null,null,null,null,null,null,null,null,null,null,null,null,null,0,null,null,null,null,null,null,null,null,null,null,null,"",null,null,"",null,null,null,null,null,null,null,null,null,null,0,0,0,0,null,"","","","","",""]
[680,null,null,null,null,null,null,null,null,null,null,null,null,null,null,null,0,null,null,null,null,null,null,null,null,null,null,null,"",null,null,"",null,null,null,null,null,null,null,null,null,null,0,0,0,0,null,"","","","","",""]
[681,null,null,null,null,null,null,null,null,null,null,null,null,null,null,null,0,null,null,null,null,null,null,null,null,null,null,null,"",null,null,"",null,null,null,null,null,null,null,null,null,null,0,0,0,0,null,"","","","","",""]
[682,null,null,null,null,null,null,null,null,null,null,null,null,null,null,null,0,null,null,null,null,null,null,null,null,null,null,null,"",null,null,"",null,null,null,null,null,null,null,null,null,null,0,0,0,0,null,"","","","","",""]
[683,null,null,null,null,null,null,null,null,null,null,null,null,null,null,null,0,null,null,null,null,null,null,null,null,null,null,null,"",null,null,"",null,null,null,null,null,null,null,null,null,null,0,0,0,0,null,"","","","","",""]
[684,null,null,null,null,null,null,null,null,null,null,null,null,null,null,null,0,null,null,null,null,null,null,null,null,null,null,null,"",null,null,"",null,null,null,null,null,null,null,null,null,null,0,0,0,0,null,"","","","","",""]
[685,null,null,null,null,null,null,null,null,null,null,null,null,null,null,null,0,null,null,null,null,null,null,null,null,null,null,null,"",null,null,"",null,null,null,null,null,null,null,null,null,null,0,0,0,0,null,"","","","","",""]
[686,null,null,null,null,null,null,null,null,null,null,null,null,null,null,null,0,null,null,null,null,null,null,null,null,null,null,null,"",null,null,"",null,null,null,null,null,null,null,null,null,null,0,0,0,0,null,"","","","","",""]
[687,null,null,null,null,null,null,null,null,null,null,null,null,null,null,null,0,null,null,null,null,null,null,null,null,null,null,null,"",null,null,"",null,null,null,null,null,null,null,null,null,null,0,0,0,0,null,"","","","","",""]
[688,null,null,null,null,null,null,null,null,null,null,null,null,null,null,null,0,null,null,null,null,null,null,null,null,null,null,null,"",null,null,"",null,null,null,null,null,null,null,null,null,null,0,0,0,0,null,"","","","","",""]
[689,null,null,null,null,null,null,null,null,null,null,null,null,null,null,null,0,null,null,null,null,null,null,null,null,null,null,null,"",null,null,"",null,null,null,null,null,null,null,null,null,null,0,0,0,0,null,"","","","","",""]
[690,null,null,null,null,null,null,null,null,null,null,null,null,null,null,null,0,null,null,null,null,null,null,null,null,null,null,null,"",null,null,"",null,null,null,null,null,null,null,null,null,null,0,0,0,0,null,"","","","","",""]
[691,null,null,null,null,null,null,null,null,null,null,null,null,null,null,null,0,null,null,null,null,null,null,null,null,null,null,null,"",null,null,"",null,null,null,null,null,null,null,null,null,null,0,0,0,0,null,"","","","","",""]
[692,null,null,null,null,null,null,null,null,null,null,null,null,null,null,null,0,null,null,null,null,null,null,null,null,null,null,null,"",null,null,"",null,null,null,null,null,null,null,null,null,null,0,0,0,0,null,"","","","","",""]
[693,null,null,null,null,null,null,null,null,null,null,null,null,null,null,null,0,null,null,null,null,null,null,null,null,null,null,null,"",null,null,"",null,null,null,null,null,null,null,null,null,null,0,0,0,0,null,"","","","","",""]
[694,null,null,null,null,null,null,null,null,null,null,null,null,null,null,null,0,null,null,null,null,null,null,null,null,null,null,null,"",null,null,"",null,null,null,null,null,null,null,null,null,null,0,0,0,0,null,"","","","","",""]
[695,null,null,null,null,null,null,null,null,null,null,null,null,null,null,null,0,null,null,null,null,null,null,null,null,null,null,null,"",null,null,"",null,null,null,null,null,null,null,null,null,null,0,0,0,0,null,"","","","","",""]
[696,null,null,null,null,null,null,null,null,null,null,null,null,null,null,null,0,null,null,null,null,null,null,null,null,null,null,null,"",null,null,"",null,null,null,null,null,null,null,null,null,null,0,0,0,0,null,"","","","","",""]
[697,null,null,null,null,null,null,null,null,null,null,null,null,null,null,null,0,null,null,null,null,null,null,null,null,null,null,null,"",null,null,"",null,null,null,null,null,null,null,null,null,null,0,0,0,0,null,"","","","","",""]
[698,null,null,null,null,null,null,null,null,null,null,null,null,null,null,null,0,null,null,null,null,null,null,null,null,null,null,null,"",null,null,"",null,null,null,null,null,null,null,null,null,null,0,0,0,0,null,"","","","","",""]
[699,null,null,null,null,null,null,null,null,null,null,null,null,null,null,null,0,null,null,null,null,null,null,null,null,null,null,null,"",null,null,"",null,null,null,null,null,null,null,null,null,null,0,0,0,0,null,"","","","","",""]
[700,null,null,null,null,null,null,null,null,null,null,null,null,null,null,null,0,null,null,null,null,null,null,null,null,null,null,null,"",null,null,"",null,null,null,null,null,null,null,null,null,null,0,0,0,0,null,"","","","","",""]
[701,null,null,null,null,null,null,null,null,null,null,null,null,null,null,null,0,null,null,null,null,null,null,null,null,null,null,null,"",null,null,"",null,null,null,null,null,null,null,null,null,null,0,0,0,0,null,"","","","","",""]
[702,null,null,null,null,null,null,null,null,null,null,null,null,null,null,null,0,null,null,null,null,null,null,null,null,null,null,null,"",null,null,"",null,null,null,null,null,null,null,null,null,null,0,0,0,0,null,"","","","","",""]
[703,null,null,null,null,null,null,null,null,null,null,null,null,null,null,null,0,null,null,null,null,null,null,null,null,null,null,null,"",null,null,"",null,null,null,null,null,null,null,null,null,null,0,0,0,0,null,"","","","","",""]
[704,null,null,null,null,null,null,null,null,null,null,null,null,null,null,null,0,null,null,null,null,null,null,null,null,null,null,null,"",null,null,"",null,null,null,null,null,null,null,null,null,null,0,0,0,0,null,"","","","","",""]
[705,null,null,null,null,null,null,null,null,null,null,null,null,null,null,null,{"$f":"SUM(IF(AND(W$3=\"Additional Property Coverage\",W$4=\"Sublimit\"),W718,0),IF(AND(X$3=\"Additional Property Coverage\",X$4=\"Sublimit\"),X718,0),IF(AND(Y$3=\"Additional Property Coverage\",Y$4=\"Sublimit\"),Y718,0),IF(AND(Z$3=\"Additional Property Coverage\",Z$4=\"Sublimit\"),Z718,0),IF(AND(AA$3=\"Additional Property Coverage\",AA$4=\"Sublimit\"),AA718,0),IF(AND(AB$3=\"Additional Property Coverage\",AB$4=\"Sublimit\"),AB718,0))","v":0},null,null,null,null,null,null,null,null,null,null,null,{"$f":"IF(SUM(P718,Q718:T718,W718:AB718)>0,SUM(P718,Q718:T718)+SUMIFS(W718:AB718,$W$4:$AB$4,\"Coverage\"),\"\")","v":""},null,null,"",null,null,null,null,null,null,null,null,null,null,{"$f":"IF(AND(ISBLANK(blanket_deductible),P718>0,AF718=\"per unit\"),$AE718,0)","v":0},{"$f":"IF(AND(ISBLANK(blanket_deductible),Q718>0,AF718=\"per unit\"),$AE718,0)","v":0},{"$f":"IF(AND(ISBLANK(blanket_deductible),R718>0,AF718=\"per unit\"),$AE718,0)","v":0},{"$f":"IF(AND(ISBLANK(blanket_deductible),S718>0,AF718=\"per unit\"),$AE718,0)","v":0},null,{"$f":"IF(ISNUMBER(W718),$W$4,\"\")","v":""},{"$f":"IF(ISNUMBER(X718),$X$4,\"\")","v":""},{"$f":"IF(ISNUMBER(Y718),$Y$4,\"\")","v":""},{"$f":"IF(ISNUMBER(Z718),$Z$4,\"\")","v":""},{"$f":"IF(ISNUMBER(AA718),$AA$4,\"\")","v":""},{"$f":"IF(ISNUMBER(AB718),$AB$4,\"\")","v":""}]
[{"$f":"ROW(A719)-ROWS($A$1:$A$13)","v":706},null,null,null,null,null,null,null,null,null,null,null,null,null,null,null,0,null,null,null,null,null,null,null,null,null,null,null,"",null,null,{"$f":"IF(OR(ISBLANK(AE719),AE719=\"\"),\"\",\"per unit\")","v":""},null,null,null,null,null,null,null,null,null,null,0,0,0,0,null,"","","","","",""]
[707,null,null,null,null,null,null,null,null,null,null,null,null,null,null,null,0,null,null,null,null,null,null,null,null,null,null,null,"",null,null,"",null,null,null,null,null,null,null,null,null,null,0,0,0,0,null,"","","","","",""]
[708,null,null,null,null,null,null,null,null,null,null,null,null,null,null,null,0,null,null,null,null,null,null,null,null,null,null,null,"",null,null,"",null,null,null,null,null,null,null,null,null,null,0,0,0,0,null,"","","","","",""]
[709,null,null,null,null,null,null,null,null,null,null,null,null,null,null,null,0,null,null,null,null,null,null,null,null,null,null,null,"",null,null,"",null,null,null,null,null,null,null,null,null,null,0,0,0,0,null,"","","","","",""]
[710,null,null,null,null,null,null,null,null,null,null,null,null,null,null,null,0,null,null,null,null,null,null,null,null,null,null,null,"",null,null,"",null,null,null,null,null,null,null,null,null,null,0,0,0,0,null,"","","","","",""]
[711,null,null,null,null,null,null,null,null,null,null,null,null,null,null,null,0,null,null,null,null,null,null,null,null,null,null,null,"",null,null,"",null,null,null,null,null,null,null,null,null,null,0,0,0,0,null,"","","","","",""]
[712,null,null,null,null,null,null,null,null,null,null,null,null,null,null,null,0,null,null,null,null,null,null,null,null,null,null,null,"",null,null,"",null,null,null,null,null,null,null,null,null,null,0,0,0,0,null,"","","","","",""]
[713,null,null,null,null,null,null,null,null,null,null,null,null,null,null,null,0,null,null,null,null,null,null,null,null,null,null,null,"",null,null,"",null,null,null,null,null,null,null,null,null,null,0,0,0,0,null,"","","","","",""]
[714,null,null,null,null,null,null,null,null,null,null,null,null,null,null,null,0,null,null,null,null,null,null,null,null,null,null,null,"",null,null,"",null,null,null,null,null,null,null,null,null,null,0,0,0,0,null,"","","","","",""]
[715,null,null,null,null,null,null,null,null,null,null,null,null,null,null,null,0,null,null,null,null,null,null,null,null,null,null,null,"",null,null,"",null,null,null,null,null,null,null,null,null,null,0,0,0,0,null,"","","","","",""]
[716,null,null,null,null,null,null,null,null,null,null,null,null,null,null,null,0,null,null,null,null,null,null,null,null,null,null,null,"",null,null,"",null,null,null,null,null,null,null,null,null,null,0,0,0,0,null,"","","","","",""]
[717,null,null,null,null,null,null,null,null,null,null,null,null,null,null,null,0,null,null,null,null,null,null,null,null,null,null,null,"",null,null,"",null,null,null,null,null,null,null,null,null,null,0,0,0,0,null,"","","","","",""]
[718,null,null,null,null,null,null,null,null,null,null,null,null,null,null,null,0,null,null,null,null,null,null,null,null,null,null,null,"",null,null,"",null,null,null,null,null,null,null,null,null,null,0,0,0,0,null,"","","","","",""]
[719,null,null,null,null,null,null,null,null,null,null,null,null,null,null,null,0,null,null,null,null,null,null,null,null,null,null,null,"",null,null,"",null,null,null,null,null,null,null,null,null,null,0,0,0,0,null,"","","","","",""]
[720,null,null,null,null,null,null,null,null,null,null,null,null,null,null,null,0,null,null,null,null,null,null,null,null,null,null,null,"",null,null,"",null,null,null,null,null,null,null,null,null,null,0,0,0,0,null,"","","","","",""]
[721,null,null,null,null,null,null,null,null,null,null,null,null,null,null,null,0,null,null,null,null,null,null,null,null,null,null,null,"",null,null,"",null,null,null,null,null,null,null,null,null,null,0,0,0,0,null,"","","","","",""]
[722,null,null,null,null,null,null,null,null,null,null,null,null,null,null,null,0,null,null,null,null,null,null,null,null,null,null,null,"",null,null,"",null,null,null,null,null,null,null,null,null,null,0,0,0,0,null,"","","","","",""]
[723,null,null,null,null,null,null,null,null,null,null,null,null,null,null,null,0,null,null,null,null,null,null,null,null,null,null,null,"",null,null,"",null,null,null,null,null,null,null,null,null,null,0,0,0,0,null,"","","","","",""]
[724,null,null,null,null,null,null,null,null,null,null,null,null,null,null,null,0,null,null,null,null,null,null,null,null,null,null,null,"",null,null,"",null,null,null,null,null,null,null,null,null,null,0,0,0,0,null,"","","","","",""]
[725,null,null,null,null,null,null,null,null,null,null,null,null,null,null,null,0,null,null,null,null,null,null,null,null,null,null,null,"",null,null,"",null,null,null,null,null,null,null,null,null,null,0,0,0,0,null,"","","","","",""]
[726,null,null,null,null,null,null,null,null,null,null,null,null,null,null,null,0,null,null,null,null,null,null,null,null,null,null,null,"",null,null,"",null,null,null,null,null,null,null,null,null,null,0,0,0,0,null,"","","","","",""]
[727,null,null,null,null,null,null,null,null,null,null,null,null,null,null,null,0,null,null,null,null,null,null,null,null,null,null,null,"",null,null,"",null,null,null,null,null,null,null,null,null,null,0,0,0,0,null,"","","","","",""]
[728,null,null,null,null,null,null,null,null,null,null,null,null,null,null,null,0,null,null,null,null,null,null,null,null,null,null,null,"",null,null,"",null,null,null,null,null,null,null,null,null,null,0,0,0,0,null,"","","","","",""]
[729,null,null,null,null,null,null,null,null,null,null,null,null,null,null,null,0,null,null,null,null,null,null,null,null,null,null,null,"",null,null,"",null,null,null,null,null,null,null,null,null,null,0,0,0,0,null,"","","","","",""]
[730,null,null,null,null,null,null,null,null,null,null,null,null,null,null,null,0,null,null,null,null,null,null,null,null,null,null,null,"",null,null,"",null,null,null,null,null,null,null,null,null,null,0,0,0,0,null,"","","","","",""]
[731,null,null,null,null,null,null,null,null,null,null,null,null,null,null,null,0,null,null,null,null,null,null,null,null,null,null,null,"",null,null,"",null,null,null,null,null,null,null,null,null,null,0,0,0,0,null,"","","","","",""]
[732,null,null,null,null,null,null,null,null,null,null,null,null,null,null,null,0,null,null,null,null,null,null,null,null,null,null,null,"",null,null,"",null,null,null,null,null,null,null,null,null,null,0,0,0,0,null,"","","","","",""]
[733,null,null,null,null,null,null,null,null,null,null,null,null,null,null,null,0,null,null,null,null,null,null,null,null,null,null,null,"",null,null,"",null,null,null,null,null,null,null,null,null,null,0,0,0,0,null,"","","","","",""]
[734,null,null,null,null,null,null,null,null,null,null,null,null,null,null,null,0,null,null,null,null,null,null,null,null,null,null,null,"",null,null,"",null,null,null,null,null,null,null,null,null,null,0,0,0,0,null,"","","","","",""]
[735,null,null,null,null,null,null,null,null,null,null,null,null,null,null,null,0,null,null,null,null,null,null,null,null,null,null,null,"",null,null,"",null,null,null,null,null,null,null,null,null,null,0,0,0,0,null,"","","","","",""]
[736,null,null,null,null,null,null,null,null,null,null,null,null,null,null,null,0,null,null,null,null,null,null,null,null,null,null,null,"",null,null,"",null,null,null,null,null,null,null,null,null,null,0,0,0,0,null,"","","","","",""]
[737,null,null,null,null,null,null,null,null,null,null,null,null,null,null,null,0,null,null,null,null,null,null,null,null,null,null,null,"",null,null,"",null,null,null,null,null,null,null,null,null,null,0,0,0,0,null,"","","","","",""]
[738,null,null,null,null,null,null,null,null,null,null,null,null,null,null,null,0,null,null,null,null,null,null,null,null,null,null,null,"",null,null,"",null,null,null,null,null,null,null,null,null,null,0,0,0,0,null,"","","","","",""]
[739,null,null,null,null,null,null,null,null,null,null,null,null,null,null,null,0,null,null,null,null,null,null,null,null,null,null,null,"",null,null,"",null,null,null,null,null,null,null,null,null,null,0,0,0,0,null,"","","","","",""]
[740,null,null,null,null,null,null,null,null,null,null,null,null,null,null,null,0,null,null,null,null,null,null,null,null,null,null,null,"",null,null,"",null,null,null,null,null,null,null,null,null,null,0,0,0,0,null,"","","","","",""]
[741,null,null,null,null,null,null,null,null,null,null,null,null,null,null,null,0,null,null,null,null,null,null,null,null,null,null,null,"",null,null,"",null,null,null,null,null,null,null,null,null,null,0,0,0,0,null,"","","","","",""]
[742,null,null,null,null,null,null,null,null,null,null,null,null,null,null,null,0,null,null,null,null,null,null,null,null,null,null,null,"",null,null,"",null,null,null,null,null,null,null,null,null,null,0,0,0,0,null,"","","","","",""]
[743,null,null,null,null,null,null,null,null,null,null,null,null,null,null,null,0,null,null,null,null,null,null,null,null,null,null,null,"",null,null,"",null,null,null,null,null,null,null,null,null,null,0,0,0,0,null,"","","","","",""]
[744,null,null,null,null,null,null,null,null,null,null,null,null,null,null,null,0,null,null,null,null,null,null,null,null,null,null,null,"",null,null,"",null,null,null,null,null,null,null,null,null,null,0,0,0,0,null,"","","","","",""]
[745,null,null,null,null,null,null,null,null,null,null,null,null,null,null,null,0,null,null,null,null,null,null,null,null,null,null,null,"",null,null,"",null,null,null,null,null,null,null,null,null,null,0,0,0,0,null,"","","","","",""]
[746,null,null,null,null,null,null,null,null,null,null,null,null,null,null,null,0,null,null,null,null,null,null,null,null,null,null,null,"",null,null,"",null,null,null,null,null,null,null,null,null,null,0,0,0,0,null,"","","","","",""]
[747,null,null,null,null,null,null,null,null,null,null,null,null,null,null,null,0,null,null,null,null,null,null,null,null,null,null,null,"",null,null,"",null,null,null,null,null,null,null,null,null,null,0,0,0,0,null,"","","","","",""]
[748,null,null,null,null,null,null,null,null,null,null,null,null,null,null,null,0,null,null,null,null,null,null,null,null,null,null,null,"",null,null,"",null,null,null,null,null,null,null,null,null,null,0,0,0,0,null,"","","","","",""]
[749,null,null,null,null,null,null,null,null,null,null,null,null,null,null,null,0,null,null,null,null,null,null,null,null,null,null,null,"",null,null,"",null,null,null,null,null,null,null,null,null,null,0,0,0,0,null,"","","","","",""]
[750,null,null,null,null,null,null,null,null,null,null,null,null,null,null,null,0,null,null,null,null,null,null,null,null,null,null,null,"",null,null,"",null,null,null,null,null,null,null,null,null,null,0,0,0,0,null,"","","","","",""]
[751,null,null,null,null,null,null,null,null,null,null,null,null,null,null,null,0,null,null,null,null,null,null,null,null,null,null,null,"",null,null,"",null,null,null,null,null,null,null,null,null,null,0,0,0,0,null,"","","","","",""]
[752,null,null,null,null,null,null,null,null,null,null,null,null,null,null,null,0,null,null,null,null,null,null,null,null,null,null,null,"",null,null,"",null,null,null,null,null,null,null,null,null,null,0,0,0,0,null,"","","","","",""]
[753,null,null,null,null,null,null,null,null,null,null,null,null,null,null,null,0,null,null,null,null,null,null,null,null,null,null,null,"",null,null,"",null,null,null,null,null,null,null,null,null,null,0,0,0,0,null,"","","","","",""]
[754,null,null,null,null,null,null,null,null,null,null,null,null,null,null,null,0,null,null,null,null,null,null,null,null,null,null,null,"",null,null,"",null,null,null,null,null,null,null,null,null,null,0,0,0,0,null,"","","","","",""]
[755,null,null,null,null,null,null,null,null,null,null,null,null,null,null,null,0,null,null,null,null,null,null,null,null,null,null,null,"",null,null,"",null,null,null,null,null,null,null,null,null,null,0,0,0,0,null,"","","","","",""]
[756,null,null,null,null,null,null,null,null,null,null,null,null,null,null,null,0,null,null,null,null,null,null,null,null,null,null,null,"",null,null,"",null,null,null,null,null,null,null,null,null,null,0,0,0,0,null,"","","","","",""]
[757,null,null,null,null,null,null,null,null,null,null,null,null,null,null,null,0,null,null,null,null,null,null,null,null,null,null,null,"",null,null,"",null,null,null,null,null,null,null,null,null,null,0,0,0,0,null,"","","","","",""]
[758,null,null,null,null,null,null,null,null,null,null,null,null,null,null,null,0,null,null,null,null,null,null,null,null,null,null,null,"",null,null,"",null,null,null,null,null,null,null,null,null,null,0,0,0,0,null,"","","","","",""]
[759,null,null,null,null,null,null,null,null,null,null,null,null,null,null,null,0,null,null,null,null,null,null,null,null,null,null,null,"",null,null,"",null,null,null,null,null,null,null,null,null,null,0,0,0,0,null,"","","","","",""]
[760,null,null,null,null,null,null,null,null,null,null,null,null,null,null,null,0,null,null,null,null,null,null,null,null,null,null,null,"",null,null,"",null,null,null,null,null,null,null,null,null,null,0,0,0,0,null,"","","","","",""]
[761,null,null,null,null,null,null,null,null,null,null,null,null,null,null,null,0,null,null,null,null,null,null,null,null,null,null,null,"",null,null,"",null,null,null,null,null,null,null,null,null,null,0,0,0,0,null,"","","","","",""]
[762,null,null,null,null,null,null,null,null,null,null,null,null,null,null,null,0,null,null,null,null,null,null,null,null,null,null,null,"",null,null,"",null,null,null,null,null,null,null,null,null,null,0,0,0,0,null,"","","","","",""]
[763,null,null,null,null,null,null,null,null,null,null,null,null,null,null,null,0,null,null,null,null,null,null,null,null,null,null,null,"",null,null,"",null,null,null,null,null,null,null,null,null,null,0,0,0,0,null,"","","","","",""]
[764,null,null,null,null,null,null,null,null,null,null,null,null,null,null,null,0,null,null,null,null,null,null,null,null,null,null,null,"",null,null,"",null,null,null,null,null,null,null,null,null,null,0,0,0,0,null,"","","","","",""]
[765,null,null,null,null,null,null,null,null,null,null,null,null,null,null,null,0,null,null,null,null,null,null,null,null,null,null,null,"",null,null,"",null,null,null,null,null,null,null,null,null,null,0,0,0,0,null,"","","","","",""]
[766,null,null,null,null,null,null,null,null,null,null,null,null,null,null,null,0,null,null,null,null,null,null,null,null,null,null,null,"",null,null,"",null,null,null,null,null,null,null,null,null,null,0,0,0,0,null,"","","","","",""]
[767,null,null,null,null,null,null,null,null,null,null,null,null,null,null,null,0,null,null,null,null,null,null,null,null,null,null,null,"",null,null,"",null,null,null,null,null,null,null,null,null,null,0,0,0,0,null,"","","","","",""]
[768,null,null,null,null,null,null,null,null,null,null,null,null,null,null,null,0,null,null,null,null,null,null,null,null,null,null,null,"",null,null,"",null,null,null,null,null,null,null,null,null,null,0,0,0,0,null,"","","","","",""]
[769,null,null,null,null,null,null,null,null,null,null,null,null,null,null,null,{"$f":"SUM(IF(AND(W$3=\"Additional Property Coverage\",W$4=\"Sublimit\"),W782,0),IF(AND(X$3=\"Additional Property Coverage\",X$4=\"Sublimit\"),X782,0),IF(AND(Y$3=\"Additional Property Coverage\",Y$4=\"Sublimit\"),Y782,0),IF(AND(Z$3=\"Additional Property Coverage\",Z$4=\"Sublimit\"),Z782,0),IF(AND(AA$3=\"Additional Property Coverage\",AA$4=\"Sublimit\"),AA782,0),IF(AND(AB$3=\"Additional Property Coverage\",AB$4=\"Sublimit\"),AB782,0))","v":0},null,null,null,null,null,null,null,null,null,null,null,{"$f":"IF(SUM(P782,Q782:T782,W782:AB782)>0,SUM(P782,Q782:T782)+SUMIFS(W782:AB782,$W$4:$AB$4,\"Coverage\"),\"\")","v":""},null,null,"",null,null,null,null,null,null,null,null,null,null,{"$f":"IF(AND(ISBLANK(blanket_deductible),P782>0,AF782=\"per unit\"),$AE782,0)","v":0},{"$f":"IF(AND(ISBLANK(blanket_deductible),Q782>0,AF782=\"per unit\"),$AE782,0)","v":0},{"$f":"IF(AND(ISBLANK(blanket_deductible),R782>0,AF782=\"per unit\"),$AE782,0)","v":0},{"$f":"IF(AND(ISBLANK(blanket_deductible),S782>0,AF782=\"per unit\"),$AE782,0)","v":0},null,{"$f":"IF(ISNUMBER(W782),$W$4,\"\")","v":""},{"$f":"IF(ISNUMBER(X782),$X$4,\"\")","v":""},{"$f":"IF(ISNUMBER(Y782),$Y$4,\"\")","v":""},{"$f":"IF(ISNUMBER(Z782),$Z$4,\"\")","v":""},{"$f":"IF(ISNUMBER(AA782),$AA$4,\"\")","v":""},{"$f":"IF(ISNUMBER(AB782),$AB$4,\"\")","v":""}]
[{"$f":"ROW(A783)-ROWS($A$1:$A$13)","v":770},null,null,null,null,null,null,null,null,null,null,null,null,null,null,null,0,null,null,null,null,null,null,null,null,null,null,null,"",null,null,{"$f":"IF(OR(ISBLANK(AE783),AE783=\"\"),\"\",\"per unit\")","v":""},null,null,null,null,null,null,null,null,null,null,0,0,0,0,null,"","","","","",""]
[771,null,null,null,null,null,null,null,null,null,null,null,null,null,null,null,0,null,null,null,null,null,null,null,null,null,null,null,"",null,null,"",null,null,null,null,null,null,null,null,null,null,0,0,0,0,null,"","","","","",""]
[772,null,null,null,null,null,null,null,null,null,null,null,null,null,null,null,0,null,null,null,null,null,null,null,null,null,null,null,"",null,null,"",null,null,null,null,null,null,null,null,null,null,0,0,0,0,null,"","","","","",""]
[773,null,null,null,null,null,null,null,null,null,null,null,null,null,null,null,0,null,null,null,null,null,null,null,null,null,null,null,"",null,null,"",null,null,null,null,null,null,null,null,null,null,0,0,0,0,null,"","","","","",""]
[774,null,null,null,null,null,null,null,null,null,null,null,null,null,null,null,0,null,null,null,null,null,null,null,null,null,null,null,"",null,null,"",null,null,null,null,null,null,null,null,null,null,0,0,0,0,null,"","","","","",""]
[775,null,null,null,null,null,null,null,null,null,null,null,null,null,null,null,0,null,null,null,null,null,null,null,null,null,null,null,"",null,null,"",null,null,null,null,null,null,null,null,null,null,0,0,0,0,null,"","","","","",""]
[776,null,null,null,null,null,null,null,null,null,null,null,null,null,null,null,0,null,null,null,null,null,null,null,null,null,null,null,"",null,null,"",null,null,null,null,null,null,null,null,null,null,0,0,0,0,null,"","","","","",""]
[777,null,null,null,null,null,null,null,null,null,null,null,null,null,null,null,0,null,null,null,null,null,null,null,null,null,null,null,"",null,null,"",null,null,null,null,null,null,null,null,null,null,0,0,0,0,null,"","","","","",""]
[778,null,null,null,null,null,null,null,null,null,null,null,null,null,null,null,0,null,null,null,null,null,null,null,null,null,null,null,"",null,null,"",null,null,null,null,null,null,null,null,null,null,0,0,0,0,null,"","","","","",""]
[779,null,null,null,null,null,null,null,null,null,null,null,null,null,null,null,0,null,null,null,null,null,null,null,null,null,null,null,"",null,null,"",null,null,null,null,null,null,null,null,null,null,0,0,0,0,null,"","","","","",""]
[780,null,null,null,null,null,null,null,null,null,null,null,null,null,null,null,0,null,null,null,null,null,null,null,null,null,null,null,"",null,null,"",null,null,null,null,null,null,null,null,null,null,0,0,0,0,null,"","","","","",""]
[781,null,null,null,null,null,null,null,null,null,null,null,null,null,null,null,0,null,null,null,null,null,null,null,null,null,null,null,"",null,null,"",null,null,null,null,null,null,null,null,null,null,0,0,0,0,null,"","","","","",""]
[782,null,null,null,null,null,null,null,null,null,null,null,null,null,null,null,0,null,null,null,null,null,null,null,null,null,null,null,"",null,null,"",null,null,null,null,null,null,null,null,null,null,0,0,0,0,null,"","","","","",""]
[783,null,null,null,null,null,null,null,null,null,null,null,null,null,null,null,0,null,null,null,null,null,null,null,null,null,null,null,"",null,null,"",null,null,null,null,null,null,null,null,null,null,0,0,0,0,null,"","","","","",""]
[784,null,null,null,null,null,null,null,null,null,null,null,null,null,null,null,0,null,null,null,null,null,null,null,null,null,null,null,"",null,null,"",null,null,null,null,null,null,null,null,null,null,0,0,0,0,null,"","","","","",""]
[785,null,null,null,null,null,null,null,null,null,null,null,null,null,null,null,0,null,null,null,null,null,null,null,null,null,null,null,"",null,null,"",null,null,null,null,null,null,null,null,null,null,0,0,0,0,null,"","","","","",""]
[786,null,null,null,null,null,null,null,null,null,null,null,null,null,null,null,0,null,null,null,null,null,null,null,null,null,null,null,"",null,null,"",null,null,null,null,null,null,null,null,null,null,0,0,0,0,null,"","","","","",""]
[787,null,null,null,null,null,null,null,null,null,null,null,null,null,null,null,0,null,null,null,null,null,null,null,null,null,null,null,"",null,null,"",null,null,null,null,null,null,null,null,null,null,0,0,0,0,null,"","","","","",""]
[788,null,null,null,null,null,null,null,null,null,null,null,null,null,null,null,0,null,null,null,null,null,null,null,null,null,null,null,"",null,null,"",null,null,null,null,null,null,null,null,null,null,0,0,0,0,null,"","","","","",""]
[789,null,null,null,null,null,null,null,null,null,null,null,null,null,null,null,0,null,null,null,null,null,null,null,null,null,null,null,"",null,null,"",null,null,null,null,null,null,null,null,null,null,0,0,0,0,null,"","","","","",""]
[790,null,null,null,null,null,null,null,null,null,null,null,null,null,null,null,0,null,null,null,null,null,null,null,null,null,null,null,"",null,null,"",null,null,null,null,null,null,null,null,null,null,0,0,0,0,null,"","","","","",""]
[791,null,null,null,null,null,null,null,null,null,null,null,null,null,null,null,0,null,null,null,null,null,null,null,null,null,null,null,"",null,null,"",null,null,null,null,null,null,null,null,null,null,0,0,0,0,null,"","","","","",""]
[792,null,null,null,null,null,null,null,null,null,null,null,null,null,null,null,0,null,null,null,null,null,null,null,null,null,null,null,"",null,null,"",null,null,null,null,null,null,null,null,null,null,0,0,0,0,null,"","","","","",""]
[793,null,null,null,null,null,null,null,null,null,null,null,null,null,null,null,0,null,null,null,null,null,null,null,null,null,null,null,"",null,null,"",null,null,null,null,null,null,null,null,null,null,0,0,0,0,null,"","","","","",""]
[794,null,null,null,null,null,null,null,null,null,null,null,null,null,null,null,0,null,null,null,null,null,null,null,null,null,null,null,"",null,null,"",null,null,null,null,null,null,null,null,null,null,0,0,0,0,null,"","","","","",""]
[795,null,null,null,null,null,null,null,null,null,null,null,null,null,null,null,0,null,null,null,null,null,null,null,null,null,null,null,"",null,null,"",null,null,null,null,null,null,null,null,null,null,0,0,0,0,null,"","","","","",""]
[796,null,null,null,null,null,null,null,null,null,null,null,null,null,null,null,0,null,null,null,null,null,null,null,null,null,null,null,"",null,null,"",null,null,null,null,null,null,null,null,null,null,0,0,0,0,null,"","","","","",""]
[797,null,null,null,null,null,null,null,null,null,null,null,null,null,null,null,0,null,null,null,null,null,null,null,null,null,null,null,"",null,null,"",null,null,null,null,null,null,null,null,null,null,0,0,0,0,null,"","","","","",""]
[798,null,null,null,null,null,null,null,null,null,null,null,null,null,null,null,0,null,null,null,null,null,null,null,null,null,null,null,"",null,null,"",null,null,null,null,null,null,null,null,null,null,0,0,0,0,null,"","","","","",""]
[799,null,null,null,null,null,null,null,null,null,null,null,null,null,null,null,0,null,null,null,null,null,null,null,null,null,null,null,"",null,null,"",null,null,null,null,null,null,null,null,null,null,0,0,0,0,null,"","","","","",""]
[800,null,null,null,null,null,null,null,null,null,null,null,null,null,null,null,0,null,null,null,null,null,null,null,null,null,null,null,"",null,null,"",null,null,null,null,null,null,null,null,null,null,0,0,0,0,null,"","","","","",""]
[801,null,null,null,null,null,null,null,null,null,null,null,null,null,null,null,0,null,null,null,null,null,null,null,null,null,null,null,"",null,null,"",null,null,null,null,null,null,null,null,null,null,0,0,0,0,null,"","","","","",""]
[802,null,null,null,null,null,null,null,null,null,null,null,null,null,null,null,0,null,null,null,null,null,null,null,null,null,null,null,"",null,null,"",null,null,null,null,null,null,null,null,null,null,0,0,0,0,null,"","","","","",""]
[803,null,null,null,null,null,null,null,null,null,null,null,null,null,null,null,0,null,null,null,null,null,null,null,null,null,null,null,"",null,null,"",null,null,null,null,null,null,null,null,null,null,0,0,0,0,null,"","","","","",""]
[804,null,null,null,null,null,null,null,null,null,null,null,null,null,null,null,0,null,null,null,null,null,null,null,null,null,null,null,"",null,null,"",null,null,null,null,null,null,null,null,null,null,0,0,0,0,null,"","","","","",""]
[805,null,null,null,null,null,null,null,null,null,null,null,null,null,null,null,0,null,null,null,null,null,null,null,null,null,null,null,"",null,null,"",null,null,null,null,null,null,null,null,null,null,0,0,0,0,null,"","","","","",""]
[806,null,null,null,null,null,null,null,null,null,null,null,null,null,null,null,0,null,null,null,null,null,null,null,null,null,null,null,"",null,null,"",null,null,null,null,null,null,null,null,null,null,0,0,0,0,null,"","","","","",""]
[807,null,null,null,null,null,null,null,null,null,null,null,null,null,null,null,0,null,null,null,null,null,null,null,null,null,null,null,"",null,null,"",null,null,null,null,null,null,null,null,null,null,0,0,0,0,null,"","","","","",""]
[808,null,null,null,null,null,null,null,null,null,null,null,null,null,null,null,0,null,null,null,null,null,null,null,null,null,null,null,"",null,null,"",null,null,null,null,null,null,null,null,null,null,0,0,0,0,null,"","","","","",""]
[809,null,null,null,null,null,null,null,null,null,null,null,null,null,null,null,0,null,null,null,null,null,null,null,null,null,null,null,"",null,null,"",null,null,null,null,null,null,null,null,null,null,0,0,0,0,null,"","","","","",""]
[810,null,null,null,null,null,null,null,null,null,null,null,null,null,null,null,0,null,null,null,null,null,null,null,null,null,null,null,"",null,null,"",null,null,null,null,null,null,null,null,null,null,0,0,0,0,null,"","","","","",""]
[811,null,null,null,null,null,null,null,null,null,null,null,null,null,null,null,0,null,null,null,null,null,null,null,null,null,null,null,"",null,null,"",null,null,null,null,null,null,null,null,null,null,0,0,0,0,null,"","","","","",""]
[812,null,null,null,null,null,null,null,null,null,null,null,null,null,null,null,0,null,null,null,null,null,null,null,null,null,null,null,"",null,null,"",null,null,null,null,null,null,null,null,null,null,0,0,0,0,null,"","","","","",""]
[813,null,null,null,null,null,null,null,null,null,null,null,null,null,null,null,0,null,null,null,null,null,null,null,null,null,null,null,"",null,null,"",null,null,null,null,null,null,null,null,null,null,0,0,0,0,null,"","","","","",""]
[814,null,null,null,null,null,null,null,null,null,null,null,null,null,null,null,0,null,null,null,null,null,null,null,null,null,null,null,"",null,null,"",null,null,null,null,null,null,null,null,null,null,0,0,0,0,null,"","","","","",""]
[815,null,null,null,null,null,null,null,null,null,null,null,null,null,null,null,0,null,null,null,null,null,null,null,null,null,null,null,"",null,null,"",null,null,null,null,null,null,null,null,null,null,0,0,0,0,null,"","","","","",""]
[816,null,null,null,null,null,null,null,null,null,null,null,null,null,null,null,0,null,null,null,null,null,null,null,null,null,null,null,"",null,null,"",null,null,null,null,null,null,null,null,null,null,0,0,0,0,null,"","","","","",""]
[817,null,null,null,null,null,null,null,null,null,null,null,null,null,null,null,0,null,null,null,null,null,null,null,null,null,null,null,"",null,null,"",null,null,null,null,null,null,null,null,null,null,0,0,0,0,null,"","","","","",""]
[818,null,null,null,null,null,null,null,null,null,null,null,null,null,null,null,0,null,null,null,null,null,null,null,null,null,null,null,"",null,null,"",null,null,null,null,null,null,null,null,null,null,0,0,0,0,null,"","","","","",""]
[819,null,null,null,null,null,null,null,null,null,null,null,null,null,null,null,0,null,null,null,null,null,null,null,null,null,null,null,"",null,null,"",null,null,null,null,null,null,null,null,null,null,0,0,0,0,null,"","","","","",""]
[820,null,null,null,null,null,null,null,null,null,null,null,null,null,null,null,0,null,null,null,null,null,null,null,null,null,null,null,"",null,null,"",null,null,null,null,null,null,null,null,null,null,0,0,0,0,null,"","","","","",""]
[821,null,null,null,null,null,null,null,null,null,null,null,null,null,null,null,0,null,null,null,null,null,null,null,null,null,null,null,"",null,null,"",null,null,null,null,null,null,null,null,null,null,0,0,0,0,null,"","","","","",""]
[822,null,null,null,null,null,null,null,null,null,null,null,null,null,null,null,0,null,null,null,null,null,null,null,null,null,null,null,"",null,null,"",null,null,null,null,null,null,null,null,null,null,0,0,0,0,null,"","","","","",""]
[823,null,null,null,null,null,null,null,null,null,null,null,null,null,null,null,0,null,null,null,null,null,null,null,null,null,null,null,"",null,null,"",null,null,null,null,null,null,null,null,null,null,0,0,0,0,null,"","","","","",""]
[824,null,null,null,null,null,null,null,null,null,null,null,null,null,null,null,0,null,null,null,null,null,null,null,null,null,null,null,"",null,null,"",null,null,null,null,null,null,null,null,null,null,0,0,0,0,null,"","","","","",""]
[825,null,null,null,null,null,null,null,null,null,null,null,null,null,null,null,0,null,null,null,null,null,null,null,null,null,null,null,"",null,null,"",null,null,null,null,null,null,null,null,null,null,0,0,0,0,null,"","","","","",""]
[826,null,null,null,null,null,null,null,null,null,null,null,null,null,null,null,0,null,null,null,null,null,null,null,null,null,null,null,"",null,null,"",null,null,null,null,null,null,null,null,null,null,0,0,0,0,null,"","","","","",""]
[827,null,null,null,null,null,null,null,null,null,null,null,null,null,null,null,0,null,null,null,null,null,null,null,null,null,null,null,"",null,null,"",null,null,null,null,null,null,null,null,null,null,0,0,0,0,null,"","","","","",""]
[828,null,null,null,null,null,null,null,null,null,null,null,null,null,null,null,0,null,null,null,null,null,null,null,null,null,null,null,"",null,null,"",null,null,null,null,null,null,null,null,null,null,0,0,0,0,null,"","","","","",""]
[829,null,null,null,null,null,null,null,null,null,null,null,null,null,null,null,0,null,null,null,null,null,null,null,null,null,null,null,"",null,null,"",null,null,null,null,null,null,null,null,null,null,0,0,0,0,null,"","","","","",""]
[830,null,null,null,null,null,null,null,null,null,null,null,null,null,null,null,0,null,null,null,null,null,null,null,null,null,null,null,"",null,null,"",null,null,null,null,null,null,null,null,null,null,0,0,0,0,null,"","","","","",""]
[831,null,null,null,null,null,null,null,null,null,null,null,null,null,null,null,0,null,null,null,null,null,null,null,null,null,null,null,"",null,null,"",null,null,null,null,null,null,null,null,null,null,0,0,0,0,null,"","","","","",""]
[832,null,null,null,null,null,null,null,null,null,null,null,null,null,null,null,0,null,null,null,null,null,null,null,null,null,null,null,"",null,null,"",null,null,null,null,null,null,null,null,null,null,0,0,0,0,null,"","","","","",""]
[833,null,null,null,null,null,null,null,null,null,null,null,null,null,null,null,{"$f":"SUM(IF(AND(W$3=\"Additional Property Coverage\",W$4=\"Sublimit\"),W846,0),IF(AND(X$3=\"Additional Property Coverage\",X$4=\"Sublimit\"),X846,0),IF(AND(Y$3=\"Additional Property Coverage\",Y$4=\"Sublimit\"),Y846,0),IF(AND(Z$3=\"Additional Property Coverage\",Z$4=\"Sublimit\"),Z846,0),IF(AND(AA$3=\"Additional Property Coverage\",AA$4=\"Sublimit\"),AA846,0),IF(AND(AB$3=\"Additional Property Coverage\",AB$4=\"Sublimit\"),AB846,0))","v":0},null,null,null,null,null,null,null,null,null,null,null,{"$f":"IF(SUM(P846,Q846:T846,W846:AB846)>0,SUM(P846,Q846:T846)+SUMIFS(W846:AB846,$W$4:$AB$4,\"Coverage\"),\"\")","v":""},null,null,"",null,null,null,null,null,null,null,null,null,null,{"$f":"IF(AND(ISBLANK(blanket_deductible),P846>0,AF846=\"per unit\"),$AE846,0)","v":0},{"$f":"IF(AND(ISBLANK(blanket_deductible),Q846>0,AF846=\"per unit\"),$AE846,0)","v":0},{"$f":"IF(AND(ISBLANK(blanket_deductible),R846>0,AF846=\"per unit\"),$AE846,0)","v":0},{"$f":"IF(AND(ISBLANK(blanket_deductible),S846>0,AF846=\"per unit\"),$AE846,0)","v":0},null,{"$f":"IF(ISNUMBER(W846),$W$4,\"\")","v":""},{"$f":"IF(ISNUMBER(X846),$X$4,\"\")","v":""},{"$f":"IF(ISNUMBER(Y846),$Y$4,\"\")","v":""},{"$f":"IF(ISNUMBER(Z846),$Z$4,\"\")","v":""},{"$f":"IF(ISNUMBER(AA846),$AA$4,\"\")","v":""},{"$f":"IF(ISNUMBER(AB846),$AB$4,\"\")","v":""}]
[{"$f":"ROW(A847)-ROWS($A$1:$A$13)","v":834},null,null,null,null,null,null,null,null,null,null,null,null,null,null,null,0,null,null,null,null,null,null,null,null,null,null,null,"",null,null,{"$f":"IF(OR(ISBLANK(AE847),AE847=\"\"),\"\",\"per unit\")","v":""},null,null,null,null,null,null,null,null,null,null,0,0,0,0,null,"","","","","",""]
[835,null,null,null,null,null,null,null,null,null,null,null,null,null,null,null,0,null,null,null,null,null,null,null,null,null,null,null,"",null,null,"",null,null,null,null,null,null,null,null,null,null,0,0,0,0,null,"","","","","",""]
[836,null,null,null,null,null,null,null,null,null,null,null,null,null,null,null,0,null,null,null,null,null,null,null,null,null,null,null,"",null,null,"",null,null,null,null,null,null,null,null,null,null,0,0,0,0,null,"","","","","",""]
[837,null,null,null,null,null,null,null,null,null,null,null,null,null,null,null,0,null,null,null,null,null,null,null,null,null,null,null,"",null,null,"",null,null,null,null,null,null,null,null,null,null,0,0,0,0,null,"","","","","",""]
[838,null,null,null,null,null,null,null,null,null,null,null,null,null,null,null,0,null,null,null,null,null,null,null,null,null,null,null,"",null,null,"",null,null,null,null,null,null,null,null,null,null,0,0,0,0,null,"","","","","",""]
[839,null,null,null,null,null,null,null,null,null,null,null,null,null,null,null,0,null,null,null,null,null,null,null,null,null,null,null,"",null,null,"",null,null,null,null,null,null,null,null,null,null,0,0,0,0,null,"","","","","",""]
[840,null,null,null,null,null,null,null,null,null,null,null,null,null,null,null,0,null,null,null,null,null,null,null,null,null,null,null,"",null,null,"",null,null,null,null,null,null,null,null,null,null,0,0,0,0,null,"","","","","",""]
[841,null,null,null,null,null,null,null,null,null,null,null,null,null,null,null,0,null,null,null,null,null,null,null,null,null,null,null,"",null,null,"",null,null,null,null,null,null,null,null,null,null,0,0,0,0,null,"","","","","",""]
[842,null,null,null,null,null,null,null,null,null,null,null,null,null,null,null,0,null,null,null,null,null,null,null,null,null,null,null,"",null,null,"",null,null,null,null,null,null,null,null,null,null,0,0,0,0,null,"","","","","",""]
[843,null,null,null,null,null,null,null,null,null,null,null,null,null,null,null,0,null,null,null,null,null,null,null,null,null,null,null,"",null,null,"",null,null,null,null,null,null,null,null,null,null,0,0,0,0,null,"","","","","",""]
[844,null,null,null,null,null,null,null,null,null,null,null,null,null,null,null,0,null,null,null,null,null,null,null,null,null,null,null,"",null,null,"",null,null,null,null,null,null,null,null,null,null,0,0,0,0,null,"","","","","",""]
[845,null,null,null,null,null,null,null,null,null,null,null,null,null,null,null,0,null,null,null,null,null,null,null,null,null,null,null,"",null,null,"",null,null,null,null,null,null,null,null,null,null,0,0,0,0,null,"","","","","",""]
[846,null,null,null,null,null,null,null,null,null,null,null,null,null,null,null,0,null,null,null,null,null,null,null,null,null,null,null,"",null,null,"",null,null,null,null,null,null,null,null,null,null,0,0,0,0,null,"","","","","",""]
[847,null,null,null,null,null,null,null,null,null,null,null,null,null,null,null,0,null,null,null,null,null,null,null,null,null,null,null,"",null,null,"",null,null,null,null,null,null,null,null,null,null,0,0,0,0,null,"","","","","",""]
[848,null,null,null,null,null,null,null,null,null,null,null,null,null,null,null,0,null,null,null,null,null,null,null,null,null,null,null,"",null,null,"",null,null,null,null,null,null,null,null,null,null,0,0,0,0,null,"","","","","",""]
[849,null,null,null,null,null,null,null,null,null,null,null,null,null,null,null,0,null,null,null,null,null,null,null,null,null,null,null,"",null,null,"",null,null,null,null,null,null,null,null,null,null,0,0,0,0,null,"","","","","",""]
[850,null,null,null,null,null,null,null,null,null,null,null,null,null,null,null,0,null,null,null,null,null,null,null,null,null,null,null,"",null,null,"",null,null,null,null,null,null,null,null,null,null,0,0,0,0,null,"","","","","",""]
[851,null,null,null,null,null,null,null,null,null,null,null,null,null,null,null,0,null,null,null,null,null,null,null,null,null,null,null,"",null,null,"",null,null,null,null,null,null,null,null,null,null,0,0,0,0,null,"","","","","",""]
[852,null,null,null,null,null,null,null,null,null,null,null,null,null,null,null,0,null,null,null,null,null,null,null,null,null,null,null,"",null,null,"",null,null,null,null,null,null,null,null,null,null,0,0,0,0,null,"","","","","",""]
[853,null,null,null,null,null,null,null,null,null,null,null,null,null,null,null,0,null,null,null,null,null,null,null,null,null,null,null,"",null,null,"",null,null,null,null,null,null,null,null,null,null,0,0,0,0,null,"","","","","",""]
[854,null,null,null,null,null,null,null,null,null,null,null,null,null,null,null,0,null,null,null,null,null,null,null,null,null,null,null,"",null,null,"",null,null,null,null,null,null,null,null,null,null,0,0,0,0,null,"","","","","",""]
[855,null,null,null,null,null,null,null,null,null,null,null,null,null,null,null,0,null,null,null,null,null,null,null,null,null,null,null,"",null,null,"",null,null,null,null,null,null,null,null,null,null,0,0,0,0,null,"","","","","",""]
[856,null,null,null,null,null,null,null,null,null,null,null,null,null,null,null,0,null,null,null,null,null,null,null,null,null,null,null,"",null,null,"",null,null,null,null,null,null,null,null,null,null,0,0,0,0,null,"","","","","",""]
[857,null,null,null,null,null,null,null,null,null,null,null,null,null,null,null,0,null,null,null,null,null,null,null,null,null,null,null,"",null,null,"",null,null,null,null,null,null,null,null,null,null,0,0,0,0,null,"","","","","",""]
[858,null,null,null,null,null,null,null,null,null,null,null,null,null,null,null,0,null,null,null,null,null,null,null,null,null,null,null,"",null,null,"",null,null,null,null,null,null,null,null,null,null,0,0,0,0,null,"","","","","",""]
[859,null,null,null,null,null,null,null,null,null,null,null,null,null,null,null,0,null,null,null,null,null,null,null,null,null,null,null,"",null,null,"",null,null,null,null,null,null,null,null,null,null,0,0,0,0,null,"","","","","",""]
[860,null,null,null,null,null,null,null,null,null,null,null,null,null,null,null,0,null,null,null,null,null,null,null,null,null,null,null,"",null,null,"",null,null,null,null,null,null,null,null,null,null,0,0,0,0,null,"","","","","",""]
[861,null,null,null,null,null,null,null,null,null,null,null,null,null,null,null,0,null,null,null,null,null,null,null,null,null,null,null,"",null,null,"",null,null,null,null,null,null,null,null,null,null,0,0,0,0,null,"","","","","",""]
[862,null,null,null,null,null,null,null,null,null,null,null,null,null,null,null,0,null,null,null,null,null,null,null,null,null,null,null,"",null,null,"",null,null,null,null,null,null,null,null,null,null,0,0,0,0,null,"","","","","",""]
[863,null,null,null,null,null,null,null,null,null,null,null,null,null,null,null,0,null,null,null,null,null,null,null,null,null,null,null,"",null,null,"",null,null,null,null,null,null,null,null,null,null,0,0,0,0,null,"","","","","",""]
[864,null,null,null,null,null,null,null,null,null,null,null,null,null,null,null,0,null,null,null,null,null,null,null,null,null,null,null,"",null,null,"",null,null,null,null,null,null,null,null,null,null,0,0,0,0,null,"","","","","",""]
[865,null,null,null,null,null,null,null,null,null,null,null,null,null,null,null,0,null,null,null,null,null,null,null,null,null,null,null,"",null,null,"",null,null,null,null,null,null,null,null,null,null,0,0,0,0,null,"","","","","",""]
[866,null,null,null,null,null,null,null,null,null,null,null,null,null,null,null,0,null,null,null,null,null,null,null,null,null,null,null,"",null,null,"",null,null,null,null,null,null,null,null,null,null,0,0,0,0,null,"","","","","",""]
[867,null,null,null,null,null,null,null,null,null,null,null,null,null,null,null,0,null,null,null,null,null,null,null,null,null,null,null,"",null,null,"",null,null,null,null,null,null,null,null,null,null,0,0,0,0,null,"","","","","",""]
[868,null,null,null,null,null,null,null,null,null,null,null,null,null,null,null,0,null,null,null,null,null,null,null,null,null,null,null,"",null,null,"",null,null,null,null,null,null,null,null,null,null,0,0,0,0,null,"","","","","",""]
[869,null,null,null,null,null,null,null,null,null,null,null,null,null,null,null,0,null,null,null,null,null,null,null,null,null,null,null,"",null,null,"",null,null,null,null,null,null,null,null,null,null,0,0,0,0,null,"","","","","",""]
[870,null,null,null,null,null,null,null,null,null,null,null,null,null,null,null,0,null,null,null,null,null,null,null,null,null,null,null,"",null,null,"",null,null,null,null,null,null,null,null,null,null,0,0,0,0,null,"","","","","",""]
[871,null,null,null,null,null,null,null,null,null,null,null,null,null,null,null,0,null,null,null,null,null,null,null,null,null,null,null,"",null,null,"",null,null,null,null,null,null,null,null,null,null,0,0,0,0,null,"","","","","",""]
[872,null,null,null,null,null,null,null,null,null,null,null,null,null,null,null,0,null,null,null,null,null,null,null,null,null,null,null,"",null,null,"",null,null,null,null,null,null,null,null,null,null,0,0,0,0,null,"","","","","",""]
[873,null,null,null,null,null,null,null,null,null,null,null,null,null,null,null,0,null,null,null,null,null,null,null,null,null,null,null,"",null,null,"",null,null,null,null,null,null,null,null,null,null,0,0,0,0,null,"","","","","",""]
[874,null,null,null,null,null,null,null,null,null,null,null,null,null,null,null,0,null,null,null,null,null,null,null,null,null,null,null,"",null,null,"",null,null,null,null,null,null,null,null,null,null,0,0,0,0,null,"","","","","",""]
[875,null,null,null,null,null,null,null,null,null,null,null,null,null,null,null,0,null,null,null,null,null,null,null,null,null,null,null,"",null,null,"",null,null,null,null,null,null,null,null,null,null,0,0,0,0,null,"","","","","",""]
[876,null,null,null,null,null,null,null,null,null,null,null,null,null,null,null,0,null,null,null,null,null,null,null,null,null,null,null,"",null,null,"",null,null,null,null,null,null,null,null,null,null,0,0,0,0,null,"","","","","",""]
[877,null,null,null,null,null,null,null,null,null,null,null,null,null,null,null,0,null,null,null,null,null,null,null,null,null,null,null,"",null,null,"",null,null,null,null,null,null,null,null,null,null,0,0,0,0,null,"","","","","",""]
[878,null,null,null,null,null,null,null,null,null,null,null,null,null,null,null,0,null,null,null,null,null,null,null,null,null,null,null,"",null,null,"",null,null,null,null,null,null,null,null,null,null,0,0,0,0,null,"","","","","",""]
[879,null,null,null,null,null,null,null,null,null,null,null,null,null,null,null,0,null,null,null,null,null,null,null,null,null,null,null,"",null,null,"",null,null,null,null,null,null,null,null,null,null,0,0,0,0,null,"","","","","",""]
[880,null,null,null,null,null,null,null,null,null,null,null,null,null,null,null,0,null,null,null,null,null,null,null,null,null,null,null,"",null,null,"",null,null,null,null,null,null,null,null,null,null,0,0,0,0,null,"","","","","",""]
[881,null,null,null,null,null,null,null,null,null,null,null,null,null,null,null,0,null,null,null,null,null,null,null,null,null,null,null,"",null,null,"",null,null,null,null,null,null,null,null,null,null,0,0,0,0,null,"","","","","",""]
[882,null,null,null,null,null,null,null,null,null,null,null,null,null,null,null,0,null,null,null,null,null,null,null,null,null,null,null,"",null,null,"",null,null,null,null,null,null,null,null,null,null,0,0,0,0,null,"","","","","",""]
[883,null,null,null,null,null,null,null,null,null,null,null,null,null,null,null,0,null,null,null,null,null,null,null,null,null,null,null,"",null,null,"",null,null,null,null,null,null,null,null,null,null,0,0,0,0,null,"","","","","",""]
[884,null,null,null,null,null,null,null,null,null,null,null,null,null,null,null,0,null,null,null,null,null,null,null,null,null,null,null,"",null,null,"",null,null,null,null,null,null,null,null,null,null,0,0,0,0,null,"","","","","",""]
[885,null,null,null,null,null,null,null,null,null,null,null,null,null,null,null,0,null,null,null,null,null,null,null,null,null,null,null,"",null,null,"",null,null,null,null,null,null,null,null,null,null,0,0,0,0,null,"","","","","",""]
[886,null,null,null,null,null,null,null,null,null,null,null,null,null,null,null,0,null,null,null,null,null,null,null,null,null,null,null,"",null,null,"",null,null,null,null,null,null,null,null,null,null,0,0,0,0,null,"","","","","",""]
[887,null,null,null,null,null,null,null,null,null,null,null,null,null,null,null,0,null,null,null,null,null,null,null,null,null,null,null,"",null,null,"",null,null,null,null,null,null,null,null,null,null,0,0,0,0,null,"","","","","",""]
[888,null,null,null,null,null,null,null,null,null,null,null,null,null,null,null,0,null,null,null,null,null,null,null,null,null,null,null,"",null,null,"",null,null,null,null,null,null,null,null,null,null,0,0,0,0,null,"","","","","",""]
[889,null,null,null,null,null,null,null,null,null,null,null,null,null,null,null,0,null,null,null,null,null,null,null,null,null,null,null,"",null,null,"",null,null,null,null,null,null,null,null,null,null,0,0,0,0,null,"","","","","",""]
[890,null,null,null,null,null,null,null,null,null,null,null,null,null,null,null,0,null,null,null,null,null,null,null,null,null,null,null,"",null,null,"",null,null,null,null,null,null,null,null,null,null,0,0,0,0,null,"","","","","",""]
[891,null,null,null,null,null,null,null,null,null,null,null,null,null,null,null,0,null,null,null,null,null,null,null,null,null,null,null,"",null,null,"",null,null,null,null,null,null,null,null,null,null,0,0,0,0,null,"","","","","",""]
[892,null,null,null,null,null,null,null,null,null,null,null,null,null,null,null,0,null,null,null,null,null,null,null,null,null,null,null,"",null,null,"",null,null,null,null,null,null,null,null,null,null,0,0,0,0,null,"","","","","",""]
[893,null,null,null,null,null,null,null,null,null,null,null,null,null,null,null,0,null,null,null,null,null,null,null,null,null,null,null,"",null,null,"",null,null,null,null,null,null,null,null,null,null,0,0,0,0,null,"","","","","",""]
[894,null,null,null,null,null,null,null,null,null,null,null,null,null,null,null,0,null,null,null,null,null,null,null,null,null,null,null,"",null,null,"",null,null,null,null,null,null,null,null,null,null,0,0,0,0,null,"","","","","",""]
[895,null,null,null,null,null,null,null,null,null,null,null,null,null,null,null,0,null,null,null,null,null,null,null,null,null,null,null,"",null,null,"",null,null,null,null,null,null,null,null,null,null,0,0,0,0,null,"","","","","",""]
[896,null,null,null,null,null,null,null,null,null,null,null,null,null,null,null,0,null,null,null,null,null,null,null,null,null,null,null,"",null,null,"",null,null,null,null,null,null,null,null,null,null,0,0,0,0,null,"","","","","",""]
[897,null,null,null,null,null,null,null,null,null,null,null,null,null,null,null,{"$f":"SUM(IF(AND(W$3=\"Additional Property Coverage\",W$4=\"Sublimit\"),W910,0),IF(AND(X$3=\"Additional Property Coverage\",X$4=\"Sublimit\"),X910,0),IF(AND(Y$3=\"Additional Property Coverage\",Y$4=\"Sublimit\"),Y910,0),IF(AND(Z$3=\"Additional Property Coverage\",Z$4=\"Sublimit\"),Z910,0),IF(AND(AA$3=\"Additional Property Coverage\",AA$4=\"Sublimit\"),AA910,0),IF(AND(AB$3=\"Additional Property Coverage\",AB$4=\"Sublimit\"),AB910,0))","v":0},null,null,null,null,null,null,null,null,null,null,null,{"$f":"IF(SUM(P910,Q910:T910,W910:AB910)>0,SUM(P910,Q910:T910)+SUMIFS(W910:AB910,$W$4:$AB$4,\"Coverage\"),\"\")","v":""},null,null,"",null,null,null,null,null,null,null,null,null,null,{"$f":"IF(AND(ISBLANK(blanket_deductible),P910>0,AF910=\"per unit\"),$AE910,0)","v":0},{"$f":"IF(AND(ISBLANK(blanket_deductible),Q910>0,AF910=\"per unit\"),$AE910,0)","v":0},{"$f":"IF(AND(ISBLANK(blanket_deductible),R910>0,AF910=\"per unit\"),$AE910,0)","v":0},{"$f":"IF(AND(ISBLANK(blanket_deductible),S910>0,AF910=\"per unit\"),$AE910,0)","v":0},null,{"$f":"IF(ISNUMBER(W910),$W$4,\"\")","v":""},{"$f":"IF(ISNUMBER(X910),$X$4,\"\")","v":""},{"$f":"IF(ISNUMBER(Y910),$Y$4,\"\")","v":""},{"$f":"IF(ISNUMBER(Z910),$Z$4,\"\")","v":""},{"$f":"IF(ISNUMBER(AA910),$AA$4,\"\")","v":""},{"$f":"IF(ISNUMBER(AB910),$AB$4,\"\")","v":""}]
[{"$f":"ROW(A911)-ROWS($A$1:$A$13)","v":898},null,null,null,null,null,null,null,null,null,null,null,null,null,null,null,0,null,null,null,null,null,null,null,null,null,null,null,"",null,null,{"$f":"IF(OR(ISBLANK(AE911),AE911=\"\"),\"\",\"per unit\")","v":""},null,null,null,null,null,null,null,null,null,null,0,0,0,0,null,"","","","","",""]
[899,null,null,null,null,null,null,null,null,null,null,null,null,null,null,null,0,null,null,null,null,null,null,null,null,null,null,null,"",null,null,"",null,null,null,null,null,null,null,null,null,null,0,0,0,0,null,"","","","","",""]
[900,null,null,null,null,null,null,null,null,null,null,null,null,null,null,null,0,null,null,null,null,null,null,null,null,null,null,null,"",null,null,"",null,null,null,null,null,null,null,null,null,null,0,0,0,0,null,"","","","","",""]
[901,null,null,null,null,null,null,null,null,null,null,null,null,null,null,null,0,null,null,null,null,null,null,null,null,null,null,null,"",null,null,"",null,null,null,null,null,null,null,null,null,null,0,0,0,0,null,"","","","","",""]
[902,null,null,null,null,null,null,null,null,null,null,null,null,null,null,null,0,null,null,null,null,null,null,null,null,null,null,null,"",null,null,"",null,null,null,null,null,null,null,null,null,null,0,0,0,0,null,"","","","","",""]
[903,null,null,null,null,null,null,null,null,null,null,null,null,null,null,null,0,null,null,null,null,null,null,null,null,null,null,null,"",null,null,"",null,null,null,null,null,null,null,null,null,null,0,0,0,0,null,"","","","","",""]
[904,null,null,null,null,null,null,null,null,null,null,null,null,null,null,null,0,null,null,null,null,null,null,null,null,null,null,null,"",null,null,"",null,null,null,null,null,null,null,null,null,null,0,0,0,0,null,"","","","","",""]
[905,null,null,null,null,null,null,null,null,null,null,null,null,null,null,null,0,null,null,null,null,null,null,null,null,null,null,null,"",null,null,"",null,null,null,null,null,null,null,null,null,null,0,0,0,0,null,"","","","","",""]
[906,null,null,null,null,null,null,null,null,null,null,null,null,null,null,null,0,null,null,null,null,null,null,null,null,null,null,null,"",null,null,"",null,null,null,null,null,null,null,null,null,null,0,0,0,0,null,"","","","","",""]
[907,null,null,null,null,null,null,null,null,null,null,null,null,null,null,null,0,null,null,null,null,null,null,null,null,null,null,null,"",null,null,"",null,null,null,null,null,null,null,null,null,null,0,0,0,0,null,"","","","","",""]
[908,null,null,null,null,null,null,null,null,null,null,null,null,null,null,null,0,null,null,null,null,null,null,null,null,null,null,null,"",null,null,"",null,null,null,null,null,null,null,null,null,null,0,0,0,0,null,"","","","","",""]
[909,null,null,null,null,null,null,null,null,null,null,null,null,null,null,null,0,null,null,null,null,null,null,null,null,null,null,null,"",null,null,"",null,null,null,null,null,null,null,null,null,null,0,0,0,0,null,"","","","","",""]
[910,null,null,null,null,null,null,null,null,null,null,null,null,null,null,null,0,null,null,null,null,null,null,null,null,null,null,null,"",null,null,"",null,null,null,null,null,null,null,null,null,null,0,0,0,0,null,"","","","","",""]
[911,null,null,null,null,null,null,null,null,null,null,null,null,null,null,null,0,null,null,null,null,null,null,null,null,null,null,null,"",null,null,"",null,null,null,null,null,null,null,null,null,null,0,0,0,0,null,"","","","","",""]
[912,null,null,null,null,null,null,null,null,null,null,null,null,null,null,null,0,null,null,null,null,null,null,null,null,null,null,null,"",null,null,"",null,null,null,null,null,null,null,null,null,null,0,0,0,0,null,"","","","","",""]
[913,null,null,null,null,null,null,null,null,null,null,null,null,null,null,null,0,null,null,null,null,null,null,null,null,null,null,null,"",null,null,"",null,null,null,null,null,null,null,null,null,null,0,0,0,0,null,"","","","","",""]
[914,null,null,null,null,null,null,null,null,null,null,null,null,null,null,null,0,null,null,null,null,null,null,null,null,null,null,null,"",null,null,"",null,null,null,null,null,null,null,null,null,null,0,0,0,0,null,"","","","","",""]
[915,null,null,null,null,null,null,null,null,null,null,null,null,null,null,null,0,null,null,null,null,null,null,null,null,null,null,null,"",null,null,"",null,null,null,null,null,null,null,null,null,null,0,0,0,0,null,"","","","","",""]
[916,null,null,null,null,null,null,null,null,null,null,null,null,null,null,null,0,null,null,null,null,null,null,null,null,null,null,null,"",null,null,"",null,null,null,null,null,null,null,null,null,null,0,0,0,0,null,"","","","","",""]
[917,null,null,null,null,null,null,null,null,null,null,null,null,null,null,null,0,null,null,null,null,null,null,null,null,null,null,null,"",null,null,"",null,null,null,null,null,null,null,null,null,null,0,0,0,0,null,"","","","","",""]
[918,null,null,null,null,null,null,null,null,null,null,null,null,null,null,null,0,null,null,null,null,null,null,null,null,null,null,null,"",null,null,"",null,null,null,null,null,null,null,null,null,null,0,0,0,0,null,"","","","","",""]
[919,null,null,null,null,null,null,null,null,null,null,null,null,null,null,null,0,null,null,null,null,null,null,null,null,null,null,null,"",null,null,"",null,null,null,null,null,null,null,null,null,null,0,0,0,0,null,"","","","","",""]
[920,null,null,null,null,null,null,null,null,null,null,null,null,null,null,null,0,null,null,null,null,null,null,null,null,null,null,null,"",null,null,"",null,null,null,null,null,null,null,null,null,null,0,0,0,0,null,"","","","","",""]
[921,null,null,null,null,null,null,null,null,null,null,null,null,null,null,null,0,null,null,null,null,null,null,null,null,null,null,null,"",null,null,"",null,null,null,null,null,null,null,null,null,null,0,0,0,0,null,"","","","","",""]
[922,null,null,null,null,null,null,null,null,null,null,null,null,null,null,null,0,null,null,null,null,null,null,null,null,null,null,null,"",null,null,"",null,null,null,null,null,null,null,null,null,null,0,0,0,0,null,"","","","","",""]
[923,null,null,null,null,null,null,null,null,null,null,null,null,null,null,null,0,null,null,null,null,null,null,null,null,null,null,null,"",null,null,"",null,null,null,null,null,null,null,null,null,null,0,0,0,0,null,"","","","","",""]
[924,null,null,null,null,null,null,null,null,null,null,null,null,null,null,null,0,null,null,null,null,null,null,null,null,null,null,null,"",null,null,"",null,null,null,null,null,null,null,null,null,null,0,0,0,0,null,"","","","","",""]
[925,null,null,null,null,null,null,null,null,null,null,null,null,null,null,null,0,null,null,null,null,null,null,null,null,null,null,null,"",null,null,"",null,null,null,null,null,null,null,null,null,null,0,0,0,0,null,"","","","","",""]
[926,null,null,null,null,null,null,null,null,null,null,null,null,null,null,null,0,null,null,null,null,null,null,null,null,null,null,null,"",null,null,"",null,null,null,null,null,null,null,null,null,null,0,0,0,0,null,"","","","","",""]
[927,null,null,null,null,null,null,null,null,null,null,null,null,null,null,null,0,null,null,null,null,null,null,null,null,null,null,null,"",null,null,"",null,null,null,null,null,null,null,null,null,null,0,0,0,0,null,"","","","","",""]
[928,null,null,null,null,null,null,null,null,null,null,null,null,null,null,null,0,null,null,null,null,null,null,null,null,null,null,null,"",null,null,"",null,null,null,null,null,null,null,null,null,null,0,0,0,0,null,"","","","","",""]
[929,null,null,null,null,null,null,null,null,null,null,null,null,null,null,null,0,null,null,null,null,null,null,null,null,null,null,null,"",null,null,"",null,null,null,null,null,null,null,null,null,null,0,0,0,0,null,"","","","","",""]
[930,null,null,null,null,null,null,null,null,null,null,null,null,null,null,null,0,null,null,null,null,null,null,null,null,null,null,null,"",null,null,"",null,null,null,null,null,null,null,null,null,null,0,0,0,0,null,"","","","","",""]
[931,null,null,null,null,null,null,null,null,null,null,null,null,null,null,null,0,null,null,null,null,null,null,null,null,null,null,null,"",null,null,"",null,null,null,null,null,null,null,null,null,null,0,0,0,0,null,"","","","","",""]
[932,null,null,null,null,null,null,null,null,null,null,null,null,null,null,null,0,null,null,null,null,null,null,null,null,null,null,null,"",null,null,"",null,null,null,null,null,null,null,null,null,null,0,0,0,0,null,"","","","","",""]
[933,null,null,null,null,null,null,null,null,null,null,null,null,null,null,null,0,null,null,null,null,null,null,null,null,null,null,null,"",null,null,"",null,null,null,null,null,null,null,null,null,null,0,0,0,0,null,"","","","","",""]
[934,null,null,null,null,null,null,null,null,null,null,null,null,null,null,null,0,null,null,null,null,null,null,null,null,null,null,null,"",null,null,"",null,null,null,null,null,null,null,null,null,null,0,0,0,0,null,"","","","","",""]
[935,null,null,null,null,null,null,null,null,null,null,null,null,null,null,null,0,null,null,null,null,null,null,null,null,null,null,null,"",null,null,"",null,null,null,null,null,null,null,null,null,null,0,0,0,0,null,"","","","","",""]
[936,null,null,null,null,null,null,null,null,null,null,null,null,null,null,null,0,null,null,null,null,null,null,null,null,null,null,null,"",null,null,"",null,null,null,null,null,null,null,null,null,null,0,0,0,0,null,"","","","","",""]
[937,null,null,null,null,null,null,null,null,null,null,null,null,null,null,null,0,null,null,null,null,null,null,null,null,null,null,null,"",null,null,"",null,null,null,null,null,null,null,null,null,null,0,0,0,0,null,"","","","","",""]
[938,null,null,null,null,null,null,null,null,null,null,null,null,null,null,null,0,null,null,null,null,null,null,null,null,null,null,null,"",null,null,"",null,null,null,null,null,null,null,null,null,null,0,0,0,0,null,"","","","","",""]
[939,null,null,null,null,null,null,null,null,null,null,null,null,null,null,null,0,null,null,null,null,null,null,null,null,null,null,null,"",null,null,"",null,null,null,null,null,null,null,null,null,null,0,0,0,0,null,"","","","","",""]
[940,null,null,null,null,null,null,null,null,null,null,null,null,null,null,null,0,null,null,null,null,null,null,null,null,null,null,null,"",null,null,"",null,null,null,null,null,null,null,null,null,null,0,0,0,0,null,"","","","","",""]
[941,null,null,null,null,null,null,null,null,null,null,null,null,null,null,null,0,null,null,null,null,null,null,null,null,null,null,null,"",null,null,"",null,null,null,null,null,null,null,null,null,null,0,0,0,0,null,"","","","","",""]
[942,null,null,null,null,null,null,null,null,null,null,null,null,null,null,null,0,null,null,null,null,null,null,null,null,null,null,null,"",null,null,"",null,null,null,null,null,null,null,null,null,null,0,0,0,0,null,"","","","","",""]
[943,null,null,null,null,null,null,null,null,null,null,null,null,null,null,null,0,null,null,null,null,null,null,null,null,null,null,null,"",null,null,"",null,null,null,null,null,null,null,null,null,null,0,0,0,0,null,"","","","","",""]
[944,null,null,null,null,null,null,null,null,null,null,null,null,null,null,null,0,null,null,null,null,null,null,null,null,null,null,null,"",null,null,"",null,null,null,null,null,null,null,null,null,null,0,0,0,0,null,"","","","","",""]
[945,null,null,null,null,null,null,null,null,null,null,null,null,null,null,null,0,null,null,null,null,null,null,null,null,null,null,null,"",null,null,"",null,null,null,null,null,null,null,null,null,null,0,0,0,0,null,"","","","","",""]
[946,null,null,null,null,null,null,null,null,null,null,null,null,null,null,null,0,null,null,null,null,null,null,null,null,null,null,null,"",null,null,"",null,null,null,null,null,null,null,null,null,null,0,0,0,0,null,"","","","","",""]
[947,null,null,null,null,null,null,null,null,null,null,null,null,null,null,null,0,null,null,null,null,null,null,null,null,null,null,null,"",null,null,"",null,null,null,null,null,null,null,null,null,null,0,0,0,0,null,"","","","","",""]
[948,null,null,null,null,null,null,null,null,null,null,null,null,null,null,null,0,null,null,null,null,null,null,null,null,null,null,null,"",null,null,"",null,null,null,null,null,null,null,null,null,null,0,0,0,0,null,"","","","","",""]
[949,null,null,null,null,null,null,null,null,null,null,null,null,null,null,null,0,null,null,null,null,null,null,null,null,null,null,null,"",null,null,"",null,null,null,null,null,null,null,null,null,null,0,0,0,0,null,"","","","","",""]
[950,null,null,null,null,null,null,null,null,null,null,null,null,null,null,null,0,null,null,null,null,null,null,null,null,null,null,null,"",null,null,"",null,null,null,null,null,null,null,null,null,null,0,0,0,0,null,"","","","","",""]
[951,null,null,null,null,null,null,null,null,null,null,null,null,null,null,null,0,null,null,null,null,null,null,null,null,null,null,null,"",null,null,"",null,null,null,null,null,null,null,null,null,null,0,0,0,0,null,"","","","","",""]
[952,null,null,null,null,null,null,null,null,null,null,null,null,null,null,null,0,null,null,null,null,null,null,null,null,null,null,null,"",null,null,"",null,null,null,null,null,null,null,null,null,null,0,0,0,0,null,"","","","","",""]
[953,null,null,null,null,null,null,null,null,null,null,null,null,null,null,null,0,null,null,null,null,null,null,null,null,null,null,null,"",null,null,"",null,null,null,null,null,null,null,null,null,null,0,0,0,0,null,"","","","","",""]
[954,null,null,null,null,null,null,null,null,null,null,null,null,null,null,null,0,null,null,null,null,null,null,null,null,null,null,null,"",null,null,"",null,null,null,null,null,null,null,null,null,null,0,0,0,0,null,"","","","","",""]
[955,null,null,null,null,null,null,null,null,null,null,null,null,null,null,null,0,null,null,null,null,null,null,null,null,null,null,null,"",null,null,"",null,null,null,null,null,null,null,null,null,null,0,0,0,0,null,"","","","","",""]
[956,null,null,null,null,null,null,null,null,null,null,null,null,null,null,null,0,null,null,null,null,null,null,null,null,null,null,null,"",null,null,"",null,null,null,null,null,null,null,null,null,null,0,0,0,0,null,"","","","","",""]
[957,null,null,null,null,null,null,null,null,null,null,null,null,null,null,null,0,null,null,null,null,null,null,null,null,null,null,null,"",null,null,"",null,null,null,null,null,null,null,null,null,null,0,0,0,0,null,"","","","","",""]
[958,null,null,null,null,null,null,null,null,null,null,null,null,null,null,null,0,null,null,null,null,null,null,null,null,null,null,null,"",null,null,"",null,null,null,null,null,null,null,null,null,null,0,0,0,0,null,"","","","","",""]
[959,null,null,null,null,null,null,null,null,null,null,null,null,null,null,null,0,null,null,null,null,null,null,null,null,null,null,null,"",null,null,"",null,null,null,null,null,null,null,null,null,null,0,0,0,0,null,"","","","","",""]
[960,null,null,null,null,null,null,null,null,null,null,null,null,null,null,null,0,null,null,null,null,null,null,null,null,null,null,null,"",null,null,"",null,null,null,null,null,null,null,null,null,null,0,0,0,0,null,"","","","","",""]
[961,null,null,null,null,null,null,null,null,null,null,null,null,null,null,null,{"$f":"SUM(IF(AND(W$3=\"Additional Property Coverage\",W$4=\"Sublimit\"),W974,0),IF(AND(X$3=\"Additional Property Coverage\",X$4=\"Sublimit\"),X974,0),IF(AND(Y$3=\"Additional Property Coverage\",Y$4=\"Sublimit\"),Y974,0),IF(AND(Z$3=\"Additional Property Coverage\",Z$4=\"Sublimit\"),Z974,0),IF(AND(AA$3=\"Additional Property Coverage\",AA$4=\"Sublimit\"),AA974,0),IF(AND(AB$3=\"Additional Property Coverage\",AB$4=\"Sublimit\"),AB974,0))","v":0},null,null,null,null,null,null,null,null,null,null,null,{"$f":"IF(SUM(P974,Q974:T974,W974:AB974)>0,SUM(P974,Q974:T974)+SUMIFS(W974:AB974,$W$4:$AB$4,\"Coverage\"),\"\")","v":""},null,null,"",null,null,null,null,null,null,null,null,null,null,{"$f":"IF(AND(ISBLANK(blanket_deductible),P974>0,AF974=\"per unit\"),$AE974,0)","v":0},{"$f":"IF(AND(ISBLANK(blanket_deductible),Q974>0,AF974=\"per unit\"),$AE974,0)","v":0},{"$f":"IF(AND(ISBLANK(blanket_deductible),R974>0,AF974=\"per unit\"),$AE974,0)","v":0},{"$f":"IF(AND(ISBLANK(blanket_deductible),S974>0,AF974=\"per unit\"),$AE974,0)","v":0},null,{"$f":"IF(ISNUMBER(W974),$W$4,\"\")","v":""},{"$f":"IF(ISNUMBER(X974),$X$4,\"\")","v":""},{"$f":"IF(ISNUMBER(Y974),$Y$4,\"\")","v":""},{"$f":"IF(ISNUMBER(Z974),$Z$4,\"\")","v":""},{"$f":"IF(ISNUMBER(AA974),$AA$4,\"\")","v":""},{"$f":"IF(ISNUMBER(AB974),$AB$4,\"\")","v":""}]
[{"$f":"ROW(A975)-ROWS($A$1:$A$13)","v":962},null,null,null,null,null,null,null,null,null,null,null,null,null,null,null,0,null,null,null,null,null,null,null,null,null,null,null,"",null,null,{"$f":"IF(OR(ISBLANK(AE975),AE975=\"\"),\"\",\"per unit\")","v":""},null,null,null,null,null,null,null,null,null,null,0,0,0,0,null,"","","","","",""]
[963,null,null,null,null,null,null,null,null,null,null,null,null,null,null,null,0,null,null,null,null,null,null,null,null,null,null,null,"",null,null,"",null,null,null,null,null,null,null,null,null,null,0,0,0,0,null,"","","","","",""]
[964,null,null,null,null,null,null,null,null,null,null,null,null,null,null,null,0,null,null,null,null,null,null,null,null,null,null,null,"",null,null,"",null,null,null,null,null,null,null,null,null,null,0,0,0,0,null,"","","","","",""]
[965,null,null,null,null,null,null,null,null,null,null,null,null,null,null,null,0,null,null,null,null,null,null,null,null,null,null,null,"",null,null,"",null,null,null,null,null,null,null,null,null,null,0,0,0,0,null,"","","","","",""]
[966,null,null,null,null,null,null,null,null,null,null,null,null,null,null,null,0,null,null,null,null,null,null,null,null,null,null,null,"",null,null,"",null,null,null,null,null,null,null,null,null,null,0,0,0,0,null,"","","","","",""]
[967,null,null,null,null,null,null,null,null,null,null,null,null,null,null,null,0,null,null,null,null,null,null,null,null,null,null,null,"",null,null,"",null,null,null,null,null,null,null,null,null,null,0,0,0,0,null,"","","","","",""]
[968,null,null,null,null,null,null,null,null,null,null,null,null,null,null,null,0,null,null,null,null,null,null,null,null,null,null,null,"",null,null,"",null,null,null,null,null,null,null,null,null,null,0,0,0,0,null,"","","","","",""]
[969,null,null,null,null,null,null,null,null,null,null,null,null,null,null,null,0,null,null,null,null,null,null,null,null,null,null,null,"",null,null,"",null,null,null,null,null,null,null,null,null,null,0,0,0,0,null,"","","","","",""]
[970,null,null,null,null,null,null,null,null,null,null,null,null,null,null,null,0,null,null,null,null,null,null,null,null,null,null,null,"",null,null,"",null,null,null,null,null,null,null,null,null,null,0,0,0,0,null,"","","","","",""]
[971,null,null,null,null,null,null,null,null,null,null,null,null,null,null,null,0,null,null,null,null,null,null,null,null,null,null,null,"",null,null,"",null,null,null,null,null,null,null,null,null,null,0,0,0,0,null,"","","","","",""]
[972,null,null,null,null,null,null,null,null,null,null,null,null,null,null,null,0,null,null,null,null,null,null,null,null,null,null,null,"",null,null,"",null,null,null,null,null,null,null,null,null,null,0,0,0,0,null,"","","","","",""]
[973,null,null,null,null,null,null,null,null,null,null,null,null,null,null,null,0,null,null,null,null,null,null,null,null,null,null,null,"",null,null,"",null,null,null,null,null,null,null,null,null,null,0,0,0,0,null,"","","","","",""]
[974,null,null,null,null,null,null,null,null,null,null,null,null,null,null,null,0,null,null,null,null,null,null,null,null,null,null,null,"",null,null,"",null,null,null,null,null,null,null,null,null,null,0,0,0,0,null,"","","","","",""]
[975,null,null,null,null,null,null,null,null,null,null,null,null,null,null,null,0,null,null,null,null,null,null,null,null,null,null,null,"",null,null,"",null,null,null,null,null,null,null,null,null,null,0,0,0,0,null,"","","","","",""]
[976,null,null,null,null,null,null,null,null,null,null,null,null,null,null,null,0,null,null,null,null,null,null,null,null,null,null,null,"",null,null,"",null,null,null,null,null,null,null,null,null,null,0,0,0,0,null,"","","","","",""]
[977,null,null,null,null,null,null,null,null,null,null,null,null,null,null,null,0,null,null,null,null,null,null,null,null,null,null,null,"",null,null,"",null,null,null,null,null,null,null,null,null,null,0,0,0,0,null,"","","","","",""]
[978,null,null,null,null,null,null,null,null,null,null,null,null,null,null,null,0,null,null,null,null,null,null,null,null,null,null,null,"",null,null,"",null,null,null,null,null,null,null,null,null,null,0,0,0,0,null,"","","","","",""]
[979,null,null,null,null,null,null,null,null,null,null,null,null,null,null,null,0,null,null,null,null,null,null,null,null,null,null,null,"",null,null,"",null,null,null,null,null,null,null,null,null,null,0,0,0,0,null,"","","","","",""]
[980,null,null,null,null,null,null,null,null,null,null,null,null,null,null,null,0,null,null,null,null,null,null,null,null,null,null,null,"",null,null,"",null,null,null,null,null,null,null,null,null,null,0,0,0,0,null,"","","","","",""]
[981,null,null,null,null,null,null,null,null,null,null,null,null,null,null,null,0,null,null,null,null,null,null,null,null,null,null,null,"",null,null,"",null,null,null,null,null,null,null,null,null,null,0,0,0,0,null,"","","","","",""]
[982,null,null,null,null,null,null,null,null,null,null,null,null,null,null,null,0,null,null,null,null,null,null,null,null,null,null,null,"",null,null,"",null,null,null,null,null,null,null,null,null,null,0,0,0,0,null,"","","","","",""]
[983,null,null,null,null,null,null,null,null,null,null,null,null,null,null,null,0,null,null,null,null,null,null,null,null,null,null,null,"",null,null,"",null,null,null,null,null,null,null,null,null,null,0,0,0,0,null,"","","","","",""]
[984,null,null,null,null,null,null,null,null,null,null,null,null,null,null,null,0,null,null,null,null,null,null,null,null,null,null,null,"",null,null,"",null,null,null,null,null,null,null,null,null,null,0,0,0,0,null,"","","","","",""]
[985,null,null,null,null,null,null,null,null,null,null,null,null,null,null,null,0,null,null,null,null,null,null,null,null,null,null,null,"",null,null,"",null,null,null,null,null,null,null,null,null,null,0,0,0,0,null,"","","","","",""]
[986,null,null,null,null,null,null,null,null,null,null,null,null,null,null,null,0,null,null,null,null,null,null,null,null,null,null,null,"",null,null,"",null,null,null,null,null,null,null,null,null,null,0,0,0,0,null,"","","","","",""]
[987,null,null,null,null,null,null,null,null,null,null,null,null,null,null,null,0,null,null,null,null,null,null,null,null,null,null,null,"",null,null,"",null,null,null,null,null,null,null,null,null,null,0,0,0,0,null,"","","","","",""]
[988,null,null,null,null,null,null,null,null,null,null,null,null,null,null,null,0,null,null,null,null,null,null,null,null,null,null,null,"",null,null,"",null,null,null,null,null,null,null,null,null,null,0,0,0,0,null,"","","","","",""]
[989,null,null,null,null,null,null,null,null,null,null,null,null,null,null,null,0,null,null,null,null,null,null,null,null,null,null,null,"",null,null,"",null,null,null,null,null,null,null,null,null,null,0,0,0,0,null,"","","","","",""]
[990,null,null,null,null,null,null,null,null,null,null,null,null,null,null,null,0,null,null,null,null,null,null,null,null,null,null,null,"",null,null,"",null,null,null,null,null,null,null,null,null,null,0,0,0,0,null,"","","","","",""]
[991,null,null,null,null,null,null,null,null,null,null,null,null,null,null,null,0,null,null,null,null,null,null,null,null,null,null,null,"",null,null,"",null,null,null,null,null,null,null,null,null,null,0,0,0,0,null,"","","","","",""]
[992,null,null,null,null,null,null,null,null,null,null,null,null,null,null,null,0,null,null,null,null,null,null,null,null,null,null,null,"",null,null,"",null,null,null,null,null,null,null,null,null,null,0,0,0,0,null,"","","","","",""]
[993,null,null,null,null,null,null,null,null,null,null,null,null,null,null,null,0,null,null,null,null,null,null,null,null,null,null,null,"",null,null,"",null,null,null,null,null,null,null,null,null,null,0,0,0,0,null,"","","","","",""]
[994,null,null,null,null,null,null,null,null,null,null,null,null,null,null,null,0,null,null,null,null,null,null,null,null,null,null,null,"",null,null,"",null,null,null,null,null,null,null,null,null,null,0,0,0,0,null,"","","","","",""]
[995,null,null,null,null,null,null,null,null,null,null,null,null,null,null,null,0,null,null,null,null,null,null,null,null,null,null,null,"",null,null,"",null,null,null,null,null,null,null,null,null,null,0,0,0,0,null,"","","","","",""]
[996,null,null,null,null,null,null,null,null,null,null,null,null,null,null,null,0,null,null,null,null,null,null,null,null,null,null,null,"",null,null,"",null,null,null,null,null,null,null,null,null,null,0,0,0,0,null,"","","","","",""]
[997,null,null,null,null,null,null,null,null,null,null,null,null,null,null,null,0,null,null,null,null,null,null,null,null,null,null,null,"",null,null,"",null,null,null,null,null,null,null,null,null,null,0,0,0,0,null,"","","","","",""]
[998,null,null,null,null,null,null,null,null,null,null,null,null,null,null,null,0,null,null,null,null,null,null,null,null,null,null,null,"",null,null,"",null,null,null,null,null,null,null,null,null,null,0,0,0,0,null,"","","","","",""]
[999,null,null,null,null,null,null,null,null,null,null,null,null,null,null,null,0,null,null,null,null,null,null,null,null,null,null,null,"",null,null,"",null,null,null,null,null,null,null,null,null,null,0,0,0,0,null,"","","","","",""]
[1000,null,null,null,null,null,null,null,null,null,null,null,null,null,null,null,0,null,null,null,null,null,null,null,null,null,null,null,"",null,null,"",null,null,null,null,null,null,null,null,null,null,0,0,0,0,null,"","","","","",""]
[1001,null,null,null,null,null,null,null,null,null,null,null,null,null,null,null,0,null,null,null,null,null,null,null,null,null,null,null,"",null,null,"",null,null,null,null,null,null,null,null,null,null,0,0,0,0,null,"","","","","",""]
[1002,null,null,null,null,null,null,null,null,null,null,null,null,null,null,null,0,null,null,null,null,null,null,null,null,null,null,null,"",null,null,"",null,null,null,null,null,null,null,null,null,null,0,0,0,0,null,"","","","","",""]
[1003,null,null,null,null,null,null,null,null,null,null,null,null,null,null,null,0,null,null,null,null,null,null,null,null,null,null,null,"",null,null,"",null,null,null,null,null,null,null,null,null,null,0,0,0,0,null,"","","","","",""]
[1004,null,null,null,null,null,null,null,null,null,null,null,null,null,null,null,0,null,null,null,null,null,null,null,null,null,null,null,"",null,null,"",null,null,null,null,null,null,null,null,null,null,0,0,0,0,null,"","","","","",""]
[1005,null,null,null,null,null,null,null,null,null,null,null,null,null,null,null,0,null,null,null,null,null,null,null,null,null,null,null,"",null,null,"",null,null,null,null,null,null,null,null,null,null,0,0,0,0,null,"","","","","",""]
[1006,null,null,null,null,null,null,null,null,null,null,null,null,null,null,null,0,null,null,null,null,null,null,null,null,null,null,null,"",null,null,"",null,null,null,null,null,null,null,null,null,null,0,0,0,0,null,"","","","","",""]
[1007,null,null,null,null,null,null,null,null,null,null,null,null,null,null,null,0,null,null,null,null,null,null,null,null,null,null,null,"",null,null,"",null,null,null,null,null,null,null,null,null,null,0,0,0,0,null,"","","","","",""]
[1008,null,null,null,null,null,null,null,null,null,null,null,null,null,null,null,0,null,null,null,null,null,null,null,null,null,null,null,"",null,null,"",null,null,null,null,null,null,null,null,null,null,0,0,0,0,null,"","","","","",""]
[1009,null,null,null,null,null,null,null,null,null,null,null,null,null,null,null,0,null,null,null,null,null,null,null,null,null,null,null,"",null,null,"",null,null,null,null,null,null,null,null,null,null,0,0,0,0,null,"","","","","",""]
[1010,null,null,null,null,null,null,null,null,null,null,null,null,null,null,null,0,null,null,null,null,null,null,null,null,null,null,null,"",null,null,"",null,null,null,null,null,null,null,null,null,null,0,0,0,0,null,"","","","","",""]
[1011,null,null,null,null,null,null,null,null,null,null,null,null,null,null,null,0,null,null,null,null,null,null,null,null,null,null,null,"",null,null,"",null,null,null,null,null,null,null,null,null,null,0,0,0,0,null,"","","","","",""]
[1012,null,null,null,null,null,null,null,null,null,null,null,null,null,null,null,0,null,null,null,null,null,null,null,null,null,null,null,"",null,null,"",null,null,null,null,null,null,null,null,null,null,0,0,0,0,null,"","","","","",""]
[1013,null,null,null,null,null,null,null,null,null,null,null,null,null,null,null,0,null,null,null,null,null,null,null,null,null,null,null,"",null,null,"",null,null,null,null,null,null,null,null,null,null,0,0,0,0,null,"","","","","",""]
[1014,null,null,null,null,null,null,null,null,null,null,null,null,null,null,null,0,null,null,null,null,null,null,null,null,null,null,null,"",null,null,"",null,null,null,null,null,null,null,null,null,null,0,0,0,0,null,"","","","","",""]
[1015,null,null,null,null,null,null,null,null,null,null,null,null,null,null,null,0,null,null,null,null,null,null,null,null,null,null,null,"",null,null,"",null,null,null,null,null,null,null,null,null,null,0,0,0,0,null,"","","","","",""]
[1016,null,null,null,null,null,null,null,null,null,null,null,null,null,null,null,0,null,null,null,null,null,null,null,null,null,null,null,"",null,null,"",null,null,null,null,null,null,null,null,null,null,0,0,0,0,null,"","","","","",""]
[1017,null,null,null,null,null,null,null,null,null,null,null,null,null,null,null,0,null,null,null,null,null,null,null,null,null,null,null,"",null,null,"",null,null,null,null,null,null,null,null,null,null,0,0,0,0,null,"","","","","",""]
[1018,null,null,null,null,null,null,null,null,null,null,null,null,null,null,null,0,null,null,null,null,null,null,null,null,null,null,null,"",null,null,"",null,null,null,null,null,null,null,null,null,null,0,0,0,0,null,"","","","","",""]
[1019,null,null,null,null,null,null,null,null,null,null,null,null,null,null,null,0,null,null,null,null,null,null,null,null,null,null,null,"",null,null,"",null,null,null,null,null,null,null,null,null,null,0,0,0,0,null,"","","","","",""]
[1020,null,null,null,null,null,null,null,null,null,null,null,null,null,null,null,0,null,null,null,null,null,null,null,null,null,null,null,"",null,null,"",null,null,null,null,null,null,null,null,null,null,0,0,0,0,null,"","","","","",""]
[1021,null,null,null,null,null,null,null,null,null,null,null,null,null,null,null,0,null,null,null,null,null,null,null,null,null,null,null,"",null,null,"",null,null,null,null,null,null,null,null,null,null,0,0,0,0,null,"","","","","",""]
[1022,null,null,null,null,null,null,null,null,null,null,null,null,null,null,null,0,null,null,null,null,null,null,null,null,null,null,null,"",null,null,"",null,null,null,null,null,null,null,null,null,null,0,0,0,0,null,"","","","","",""]
[1023,null,null,null,null,null,null,null,null,null,null,null,null,null,null,null,0,null,null,null,null,null,null,null,null,null,null,null,"",null,null,"",null,null,null,null,null,null,null,null,null,null,0,0,0,0,null,"","","","","",""]
[1024,null,null,null,null,null,null,null,null,null,null,null,null,null,null,null,0,null,null,null,null,null,null,null,null,null,null,null,"",null,null,"",null,null,null,null,null,null,null,null,null,null,0,0,0,0,null,"","","","","",""]
[1025,null,null,null,null,null,null,null,null,null,null,null,null,null,null,null,{"$f":"SUM(IF(AND(W$3=\"Additional Property Coverage\",W$4=\"Sublimit\"),W1038,0),IF(AND(X$3=\"Additional Property Coverage\",X$4=\"Sublimit\"),X1038,0),IF(AND(Y$3=\"Additional Property Coverage\",Y$4=\"Sublimit\"),Y1038,0),IF(AND(Z$3=\"Additional Property Coverage\",Z$4=\"Sublimit\"),Z1038,0),IF(AND(AA$3=\"Additional Property Coverage\",AA$4=\"Sublimit\"),AA1038,0),IF(AND(AB$3=\"Additional Property Coverage\",AB$4=\"Sublimit\"),AB1038,0))","v":0},null,null,null,null,null,null,null,null,null,null,null,{"$f":"IF(SUM(P1038,Q1038:T1038,W1038:AB1038)>0,SUM(P1038,Q1038:T1038)+SUMIFS(W1038:AB1038,$W$4:$AB$4,\"Coverage\"),\"\")","v":""},null,null,"",null,null,null,null,null,null,null,null,null,null,{"$f":"IF(AND(ISBLANK(blanket_deductible),P1038>0,AF1038=\"per unit\"),$AE1038,0)","v":0},{"$f":"IF(AND(ISBLANK(blanket_deductible),Q1038>0,AF1038=\"per unit\"),$AE1038,0)","v":0},{"$f":"IF(AND(ISBLANK(blanket_deductible),R1038>0,AF1038=\"per unit\"),$AE1038,0)","v":0},{"$f":"IF(AND(ISBLANK(blanket_deductible),S1038>0,AF1038=\"per unit\"),$AE1038,0)","v":0},null,{"$f":"IF(ISNUMBER(W1038),$W$4,\"\")","v":""},{"$f":"IF(ISNUMBER(X1038),$X$4,\"\")","v":""},{"$f":"IF(ISNUMBER(Y1038),$Y$4,\"\")","v":""},{"$f":"IF(ISNUMBER(Z1038),$Z$4,\"\")","v":""},{"$f":"IF(ISNUMBER(AA1038),$AA$4,\"\")","v":""},{"$f":"IF(ISNUMBER(AB1038),$AB$4,\"\")","v":""}]
[{"$f":"ROW(A1039)-ROWS($A$1:$A$13)","v":1026},null,null,null,null,null,null,null,null,null,null,null,null,null,null,null,0,null,null,null,null,null,null,null,null,null,null,null,"",null,null,{"$f":"IF(OR(ISBLANK(AE1039),AE1039=\"\"),\"\",\"per unit\")","v":""},null,null,null,null,null,null,null,null,null,null,0,0,0,0,null,"","","","","",""]
[1027,null,null,null,null,null,null,null,null,null,null,null,null,null,null,null,0,null,null,null,null,null,null,null,null,null,null,null,"",null,null,"",null,null,null,null,null,null,null,null,null,null,0,0,0,0,null,"","","","","",""]
[1028,null,null,null,null,null,null,null,null,null,null,null,null,null,null,null,0,null,null,null,null,null,null,null,null,null,null,null,"",null,null,"",null,null,null,null,null,null,null,null,null,null,0,0,0,0,null,"","","","","",""]
[1029,null,null,null,null,null,null,null,null,null,null,null,null,null,null,null,0,null,null,null,null,null,null,null,null,null,null,null,"",null,null,"",null,null,null,null,null,null,null,null,null,null,0,0,0,0,null,"","","","","",""]
[1030,null,null,null,null,null,null,null,null,null,null,null,null,null,null,null,0,null,null,null,null,null,null,null,null,null,null,null,"",null,null,"",null,null,null,null,null,null,null,null,null,null,0,0,0,0,null,"","","","","",""]
[1031,null,null,null,null,null,null,null,null,null,null,null,null,null,null,null,0,null,null,null,null,null,null,null,null,null,null,null,"",null,null,"",null,null,null,null,null,null,null,null,null,null,0,0,0,0,null,"","","","","",""]
[1032,null,null,null,null,null,null,null,null,null,null,null,null,null,null,null,0,null,null,null,null,null,null,null,null,null,null,null,"",null,null,"",null,null,null,null,null,null,null,null,null,null,0,0,0,0,null,"","","","","",""]
[1033,null,null,null,null,null,null,null,null,null,null,null,null,null,null,null,0,null,null,null,null,null,null,null,null,null,null,null,"",null,null,"",null,null,null,null,null,null,null,null,null,null,0,0,0,0,null,"","","","","",""]
[1034,null,null,null,null,null,null,null,null,null,null,null,null,null,null,null,0,null,null,null,null,null,null,null,null,null,null,null,"",null,null,"",null,null,null,null,null,null,null,null,null,null,0,0,0,0,null,"","","","","",""]
[1035,null,null,null,null,null,null,null,null,null,null,null,null,null,null,null,0,null,null,null,null,null,null,null,null,null,null,null,"",null,null,"",null,null,null,null,null,null,null,null,null,null,0,0,0,0,null,"","","","","",""]
[1036,null,null,null,null,null,null,null,null,null,null,null,null,null,null,null,0,null,null,null,null,null,null,null,null,null,null,null,"",null,null,"",null,null,null,null,null,null,null,null,null,null,0,0,0,0,null,"","","","","",""]
[1037,null,null,null,null,null,null,null,null,null,null,null,null,null,null,null,0,null,null,null,null,null,null,null,null,null,null,null,"",null,null,"",null,null,null,null,null,null,null,null,null,null,0,0,0,0,null,"","","","","",""]
[1038,null,null,null,null,null,null,null,null,null,null,null,null,null,null,null,0,null,null,null,null,null,null,null,null,null,null,null,"",null,null,"",null,null,null,null,null,null,null,null,null,null,0,0,0,0,null,"","","","","",""]
[1039,null,null,null,null,null,null,null,null,null,null,null,null,null,null,null,0,null,null,null,null,null,null,null,null,null,null,null,"",null,null,"",null,null,null,null,null,null,null,null,null,null,0,0,0,0,null,"","","","","",""]
[1040,null,null,null,null,null,null,null,null,null,null,null,null,null,null,null,0,null,null,null,null,null,null,null,null,null,null,null,"",null,null,"",null,null,null,null,null,null,null,null,null,null,0,0,0,0,null,"","","","","",""]
[1041,null,null,null,null,null,null,null,null,null,null,null,null,null,null,null,0,null,null,null,null,null,null,null,null,null,null,null,"",null,null,"",null,null,null,null,null,null,null,null,null,null,0,0,0,0,null,"","","","","",""]
[1042,null,null,null,null,null,null,null,null,null,null,null,null,null,null,null,0,null,null,null,null,null,null,null,null,null,null,null,"",null,null,"",null,null,null,null,null,null,null,null,null,null,0,0,0,0,null,"","","","","",""]
[1043,null,null,null,null,null,null,null,null,null,null,null,null,null,null,null,0,null,null,null,null,null,null,null,null,null,null,null,"",null,null,"",null,null,null,null,null,null,null,null,null,null,0,0,0,0,null,"","","","","",""]
[1044,null,null,null,null,null,null,null,null,null,null,null,null,null,null,null,0,null,null,null,null,null,null,null,null,null,null,null,"",null,null,"",null,null,null,null,null,null,null,null,null,null,0,0,0,0,null,"","","","","",""]
[1045,null,null,null,null,null,null,null,null,null,null,null,null,null,null,null,0,null,null,null,null,null,null,null,null,null,null,null,"",null,null,"",null,null,null,null,null,null,null,null,null,null,0,0,0,0,null,"","","","","",""]
[1046,null,null,null,null,null,null,null,null,null,null,null,null,null,null,null,0,null,null,null,null,null,null,null,null,null,null,null,"",null,null,"",null,null,null,null,null,null,null,null,null,null,0,0,0,0,null,"","","","","",""]
[1047,null,null,null,null,null,null,null,null,null,null,null,null,null,null,null,0,null,null,null,null,null,null,null,null,null,null,null,"",null,null,"",null,null,null,null,null,null,null,null,null,null,0,0,0,0,null,"","","","","",""]
[1048,null,null,null,null,null,null,null,null,null,null,null,null,null,null,null,0,null,null,null,null,null,null,null,null,null,null,null,"",null,null,"",null,null,null,null,null,null,null,null,null,null,0,0,0,0,null,"","","","","",""]
[1049,null,null,null,null,null,null,null,null,null,null,null,null,null,null,null,0,null,null,null,null,null,null,null,null,null,null,null,"",null,null,"",null,null,null,null,null,null,null,null,null,null,0,0,0,0,null,"","","","","",""]
[1050,null,null,null,null,null,null,null,null,null,null,null,null,null,null,null,0,null,null,null,null,null,null,null,null,null,null,null,"",null,null,"",null,null,null,null,null,null,null,null,null,null,0,0,0,0,null,"","","","","",""]
[1051,null,null,null,null,null,null,null,null,null,null,null,null,null,null,null,0,null,null,null,null,null,null,null,null,null,null,null,"",null,null,"",null,null,null,null,null,null,null,null,null,null,0,0,0,0,null,"","","","","",""]
[1052,null,null,null,null,null,null,null,null,null,null,null,null,null,null,null,0,null,null,null,null,null,null,null,null,null,null,null,"",null,null,"",null,null,null,null,null,null,null,null,null,null,0,0,0,0,null,"","","","","",""]
[1053,null,null,null,null,null,null,null,null,null,null,null,null,null,null,null,0,null,null,null,null,null,null,null,null,null,null,null,"",null,null,"",null,null,null,null,null,null,null,null,null,null,0,0,0,0,null,"","","","","",""]
[1054,null,null,null,null,null,null,null,null,null,null,null,null,null,null,null,0,null,null,null,null,null,null,null,null,null,null,null,"",null,null,"",null,null,null,null,null,null,null,null,null,null,0,0,0,0,null,"","","","","",""]
[1055,null,null,null,null,null,null,null,null,null,null,null,null,null,null,null,0,null,null,null,null,null,null,null,null,null,null,null,"",null,null,"",null,null,null,null,null,null,null,null,null,null,0,0,0,0,null,"","","","","",""]
[1056,null,null,null,null,null,null,null,null,null,null,null,null,null,null,null,0,null,null,null,null,null,null,null,null,null,null,null,"",null,null,"",null,null,null,null,null,null,null,null,null,null,0,0,0,0,null,"","","","","",""]
[1057,null,null,null,null,null,null,null,null,null,null,null,null,null,null,null,0,null,null,null,null,null,null,null,null,null,null,null,"",null,null,"",null,null,null,null,null,null,null,null,null,null,0,0,0,0,null,"","","","","",""]
[1058,null,null,null,null,null,null,null,null,null,null,null,null,null,null,null,0,null,null,null,null,null,null,null,null,null,null,null,"",null,null,"",null,null,null,null,null,null,null,null,null,null,0,0,0,0,null,"","","","","",""]
[1059,null,null,null,null,null,null,null,null,null,null,null,null,null,null,null,0,null,null,null,null,null,null,null,null,null,null,null,"",null,null,"",null,null,null,null,null,null,null,null,null,null,0,0,0,0,null,"","","","","",""]
[1060,null,null,null,null,null,null,null,null,null,null,null,null,null,null,null,0,null,null,null,null,null,null,null,null,null,null,null,"",null,null,"",null,null,null,null,null,null,null,null,null,null,0,0,0,0,null,"","","","","",""]
[1061,null,null,null,null,null,null,null,null,null,null,null,null,null,null,null,0,null,null,null,null,null,null,null,null,null,null,null,"",null,null,"",null,null,null,null,null,null,null,null,null,null,0,0,0,0,null,"","","","","",""]
[1062,null,null,null,null,null,null,null,null,null,null,null,null,null,null,null,0,null,null,null,null,null,null,null,null,null,null,null,"",null,null,"",null,null,null,null,null,null,null,null,null,null,0,0,0,0,null,"","","","","",""]
[1063,null,null,null,null,null,null,null,null,null,null,null,null,null,null,null,0,null,null,null,null,null,null,null,null,null,null,null,"",null,null,"",null,null,null,null,null,null,null,null,null,null,0,0,0,0,null,"","","","","",""]
[1064,null,null,null,null,null,null,null,null,null,null,null,null,null,null,null,0,null,null,null,null,null,null,null,null,null,null,null,"",null,null,"",null,null,null,null,null,null,null,null,null,null,0,0,0,0,null,"","","","","",""]
[1065,null,null,null,null,null,null,null,null,null,null,null,null,null,null,null,0,null,null,null,null,null,null,null,null,null,null,null,"",null,null,"",null,null,null,null,null,null,null,null,null,null,0,0,0,0,null,"","","","","",""]
[1066,null,null,null,null,null,null,null,null,null,null,null,null,null,null,null,0,null,null,null,null,null,null,null,null,null,null,null,"",null,null,"",null,null,null,null,null,null,null,null,null,null,0,0,0,0,null,"","","","","",""]
[1067,null,null,null,null,null,null,null,null,null,null,null,null,null,null,null,0,null,null,null,null,null,null,null,null,null,null,null,"",null,null,"",null,null,null,null,null,null,null,null,null,null,0,0,0,0,null,"","","","","",""]
[1068,null,null,null,null,null,null,null,null,null,null,null,null,null,null,null,0,null,null,null,null,null,null,null,null,null,null,null,"",null,null,"",null,null,null,null,null,null,null,null,null,null,0,0,0,0,null,"","","","","",""]
[1069,null,null,null,null,null,null,null,null,null,null,null,null,null,null,null,0,null,null,null,null,null,null,null,null,null,null,null,"",null,null,"",null,null,null,null,null,null,null,null,null,null,0,0,0,0,null,"","","","","",""]
[1070,null,null,null,null,null,null,null,null,null,null,null,null,null,null,null,0,null,null,null,null,null,null,null,null,null,null,null,"",null,null,"",null,null,null,null,null,null,null,null,null,null,0,0,0,0,null,"","","","","",""]
[1071,null,null,null,null,null,null,null,null,null,null,null,null,null,null,null,0,null,null,null,null,null,null,null,null,null,null,null,"",null,null,"",null,null,null,null,null,null,null,null,null,null,0,0,0,0,null,"","","","","",""]
[1072,null,null,null,null,null,null,null,null,null,null,null,null,null,null,null,0,null,null,null,null,null,null,null,null,null,null,null,"",null,null,"",null,null,null,null,null,null,null,null,null,null,0,0,0,0,null,"","","","","",""]
[1073,null,null,null,null,null,null,null,null,null,null,null,null,null,null,null,0,null,null,null,null,null,null,null,null,null,null,null,"",null,null,"",null,null,null,null,null,null,null,null,null,null,0,0,0,0,null,"","","","","",""]
[1074,null,null,null,null,null,null,null,null,null,null,null,null,null,null,null,0,null,null,null,null,null,null,null,null,null,null,null,"",null,null,"",null,null,null,null,null,null,null,null,null,null,0,0,0,0,null,"","","","","",""]
[1075,null,null,null,null,null,null,null,null,null,null,null,null,null,null,null,0,null,null,null,null,null,null,null,null,null,null,null,"",null,null,"",null,null,null,null,null,null,null,null,null,null,0,0,0,0,null,"","","","","",""]
[1076,null,null,null,null,null,null,null,null,null,null,null,null,null,null,null,0,null,null,null,null,null,null,null,null,null,null,null,"",null,null,"",null,null,null,null,null,null,null,null,null,null,0,0,0,0,null,"","","","","",""]
[1077,null,null,null,null,null,null,null,null,null,null,null,null,null,null,null,0,null,null,null,null,null,null,null,null,null,null,null,"",null,null,"",null,null,null,null,null,null,null,null,null,null,0,0,0,0,null,"","","","","",""]
[1078,null,null,null,null,null,null,null,null,null,null,null,null,null,null,null,0,null,null,null,null,null,null,null,null,null,null,null,"",null,null,"",null,null,null,null,null,null,null,null,null,null,0,0,0,0,null,"","","","","",""]
[1079,null,null,null,null,null,null,null,null,null,null,null,null,null,null,null,0,null,null,null,null,null,null,null,null,null,null,null,"",null,null,"",null,null,null,null,null,null,null,null,null,null,0,0,0,0,null,"","","","","",""]
[1080,null,null,null,null,null,null,null,null,null,null,null,null,null,null,null,0,null,null,null,null,null,null,null,null,null,null,null,"",null,null,"",null,null,null,null,null,null,null,null,null,null,0,0,0,0,null,"","","","","",""]
[1081,null,null,null,null,null,null,null,null,null,null,null,null,null,null,null,0,null,null,null,null,null,null,null,null,null,null,null,"",null,null,"",null,null,null,null,null,null,null,null,null,null,0,0,0,0,null,"","","","","",""]
[1082,null,null,null,null,null,null,null,null,null,null,null,null,null,null,null,0,null,null,null,null,null,null,null,null,null,null,null,"",null,null,"",null,null,null,null,null,null,null,null,null,null,0,0,0,0,null,"","","","","",""]
[1083,null,null,null,null,null,null,null,null,null,null,null,null,null,null,null,0,null,null,null,null,null,null,null,null,null,null,null,"",null,null,"",null,null,null,null,null,null,null,null,null,null,0,0,0,0,null,"","","","","",""]
[1084,null,null,null,null,null,null,null,null,null,null,null,null,null,null,null,0,null,null,null,null,null,null,null,null,null,null,null,"",null,null,"",null,null,null,null,null,null,null,null,null,null,0,0,0,0,null,"","","","","",""]
[1085,null,null,null,null,null,null,null,null,null,null,null,null,null,null,null,0,null,null,null,null,null,null,null,null,null,null,null,"",null,null,"",null,null,null,null,null,null,null,null,null,null,0,0,0,0,null,"","","","","",""]
[1086,null,null,null,null,null,null,null,null,null,null,null,null,null,null,null,0,null,null,null,null,null,null,null,null,null,null,null,"",null,null,"",null,null,null,null,null,null,null,null,null,null,0,0,0,0,null,"","","","","",""]
[1087,null,null,null,null,null,null,null,null,null,null,null,null,null,null,null,0,null,null,null,null,null,null,null,null,null,null,null,"",null,null,"",null,null,null,null,null,null,null,null,null,null,0,0,0,0,null,"","","","","",""]
[1088,null,null,null,null,null,null,null,null,null,null,null,null,null,null,null,0,null,null,null,null,null,null,null,null,null,null,null,"",null,null,"",null,null,null,null,null,null,null,null,null,null,0,0,0,0,null,"","","","","",""]
[1089,null,null,null,null,null,null,null,null,null,null,null,null,null,null,null,{"$f":"SUM(IF(AND(W$3=\"Additional Property Coverage\",W$4=\"Sublimit\"),W1102,0),IF(AND(X$3=\"Additional Property Coverage\",X$4=\"Sublimit\"),X1102,0),IF(AND(Y$3=\"Additional Property Coverage\",Y$4=\"Sublimit\"),Y1102,0),IF(AND(Z$3=\"Additional Property Coverage\",Z$4=\"Sublimit\"),Z1102,0),IF(AND(AA$3=\"Additional Property Coverage\",AA$4=\"Sublimit\"),AA1102,0),IF(AND(AB$3=\"Additional Property Coverage\",AB$4=\"Sublimit\"),AB1102,0))","v":0},null,null,null,null,null,null,null,null,null,null,null,{"$f":"IF(SUM(P1102,Q1102:T1102,W1102:AB1102)>0,SUM(P1102,Q1102:T1102)+SUMIFS(W1102:AB1102,$W$4:$AB$4,\"Coverage\"),\"\")","v":""},null,null,"",null,null,null,null,null,null,null,null,null,null,{"$f":"IF(AND(ISBLANK(blanket_deductible),P1102>0,AF1102=\"per unit\"),$AE1102,0)","v":0},{"$f":"IF(AND(ISBLANK(blanket_deductible),Q1102>0,AF1102=\"per unit\"),$AE1102,0)","v":0},{"$f":"IF(AND(ISBLANK(blanket_deductible),R1102>0,AF1102=\"per unit\"),$AE1102,0)","v":0},{"$f":"IF(AND(ISBLANK(blanket_deductible),S1102>0,AF1102=\"per unit\"),$AE1102,0)","v":0},null,{"$f":"IF(ISNUMBER(W1102),$W$4,\"\")","v":""},{"$f":"IF(ISNUMBER(X1102),$X$4,\"\")","v":""},{"$f":"IF(ISNUMBER(Y1102),$Y$4,\"\")","v":""},{"$f":"IF(ISNUMBER(Z1102),$Z$4,\"\")","v":""},{"$f":"IF(ISNUMBER(AA1102),$AA$4,\"\")","v":""},{"$f":"IF(ISNUMBER(AB1102),$AB$4,\"\")","v":""}]
[{"$f":"ROW(A1103)-ROWS($A$1:$A$13)","v":1090},null,null,null,null,null,null,null,null,null,null,null,null,null,null,null,0,null,null,null,null,null,null,null,null,null,null,null,"",null,null,{"$f":"IF(OR(ISBLANK(AE1103),AE1103=\"\"),\"\",\"per unit\")","v":""},null,null,null,null,null,null,null,null,null,null,0,0,0,0,null,"","","","","",""]
[1091,null,null,null,null,null,null,null,null,null,null,null,null,null,null,null,0,null,null,null,null,null,null,null,null,null,null,null,"",null,null,"",null,null,null,null,null,null,null,null,null,null,0,0,0,0,null,"","","","","",""]
[1092,null,null,null,null,null,null,null,null,null,null,null,null,null,null,null,0,null,null,null,null,null,null,null,null,null,null,null,"",null,null,"",null,null,null,null,null,null,null,null,null,null,0,0,0,0,null,"","","","","",""]
[1093,null,null,null,null,null,null,null,null,null,null,null,null,null,null,null,0,null,null,null,null,null,null,null,null,null,null,null,"",null,null,"",null,null,null,null,null,null,null,null,null,null,0,0,0,0,null,"","","","","",""]
[1094,null,null,null,null,null,null,null,null,null,null,null,null,null,null,null,0,null,null,null,null,null,null,null,null,null,null,null,"",null,null,"",null,null,null,null,null,null,null,null,null,null,0,0,0,0,null,"","","","","",""]
[1095,null,null,null,null,null,null,null,null,null,null,null,null,null,null,null,0,null,null,null,null,null,null,null,null,null,null,null,"",null,null,"",null,null,null,null,null,null,null,null,null,null,0,0,0,0,null,"","","","","",""]
[1096,null,null,null,null,null,null,null,null,null,null,null,null,null,null,null,0,null,null,null,null,null,null,null,null,null,null,null,"",null,null,"",null,null,null,null,null,null,null,null,null,null,0,0,0,0,null,"","","","","",""]
[1097,null,null,null,null,null,null,null,null,null,null,null,null,null,null,null,0,null,null,null,null,null,null,null,null,null,null,null,"",null,null,"",null,null,null,null,null,null,null,null,null,null,0,0,0,0,null,"","","","","",""]
[1098,null,null,null,null,null,null,null,null,null,null,null,null,null,null,null,0,null,null,null,null,null,null,null,null,null,null,null,"",null,null,"",null,null,null,null,null,null,null,null,null,null,0,0,0,0,null,"","","","","",""]
[1099,null,null,null,null,null,null,null,null,null,null,null,null,null,null,null,0,null,null,null,null,null,null,null,null,null,null,null,"",null,null,"",null,null,null,null,null,null,null,null,null,null,0,0,0,0,null,"","","","","",""]
[1100,null,null,null,null,null,null,null,null,null,null,null,null,null,null,null,0,null,null,null,null,null,null,null,null,null,null,null,"",null,null,"",null,null,null,null,null,null,null,null,null,null,0,0,0,0,null,"","","","","",""]
[1101,null,null,null,null,null,null,null,null,null,null,null,null,null,null,null,0,null,null,null,null,null,null,null,null,null,null,null,"",null,null,"",null,null,null,null,null,null,null,null,null,null,0,0,0,0,null,"","","","","",""]
[1102,null,null,null,null,null,null,null,null,null,null,null,null,null,null,null,0,null,null,null,null,null,null,null,null,null,null,null,"",null,null,"",null,null,null,null,null,null,null,null,null,null,0,0,0,0,null,"","","","","",""]
[1103,null,null,null,null,null,null,null,null,null,null,null,null,null,null,null,0,null,null,null,null,null,null,null,null,null,null,null,"",null,null,"",null,null,null,null,null,null,null,null,null,null,0,0,0,0,null,"","","","","",""]
[1104,null,null,null,null,null,null,null,null,null,null,null,null,null,null,null,0,null,null,null,null,null,null,null,null,null,null,null,"",null,null,"",null,null,null,null,null,null,null,null,null,null,0,0,0,0,null,"","","","","",""]
[1105,null,null,null,null,null,null,null,null,null,null,null,null,null,null,null,0,null,null,null,null,null,null,null,null,null,null,null,"",null,null,"",null,null,null,null,null,null,null,null,null,null,0,0,0,0,null,"","","","","",""]
[1106,null,null,null,null,null,null,null,null,null,null,null,null,null,null,null,0,null,null,null,null,null,null,null,null,null,null,null,"",null,null,"",null,null,null,null,null,null,null,null,null,null,0,0,0,0,null,"","","","","",""]
[1107,null,null,null,null,null,null,null,null,null,null,null,null,null,null,null,0,null,null,null,null,null,null,null,null,null,null,null,"",null,null,"",null,null,null,null,null,null,null,null,null,null,0,0,0,0,null,"","","","","",""]
[1108,null,null,null,null,null,null,null,null,null,null,null,null,null,null,null,0,null,null,null,null,null,null,null,null,null,null,null,"",null,null,"",null,null,null,null,null,null,null,null,null,null,0,0,0,0,null,"","","","","",""]
[1109,null,null,null,null,null,null,null,null,null,null,null,null,null,null,null,0,null,null,null,null,null,null,null,null,null,null,null,"",null,null,"",null,null,null,null,null,null,null,null,null,null,0,0,0,0,null,"","","","","",""]
[1110,null,null,null,null,null,null,null,null,null,null,null,null,null,null,null,0,null,null,null,null,null,null,null,null,null,null,null,"",null,null,"",null,null,null,null,null,null,null,null,null,null,0,0,0,0,null,"","","","","",""]
[1111,null,null,null,null,null,null,null,null,null,null,null,null,null,null,null,0,null,null,null,null,null,null,null,null,null,null,null,"",null,null,"",null,null,null,null,null,null,null,null,null,null,0,0,0,0,null,"","","","","",""]
[1112,null,null,null,null,null,null,null,null,null,null,null,null,null,null,null,0,null,null,null,null,null,null,null,null,null,null,null,"",null,null,"",null,null,null,null,null,null,null,null,null,null,0,0,0,0,null,"","","","","",""]
[1113,null,null,null,null,null,null,null,null,null,null,null,null,null,null,null,0,null,null,null,null,null,null,null,null,null,null,null,"",null,null,"",null,null,null,null,null,null,null,null,null,null,0,0,0,0,null,"","","","","",""]
[1114,null,null,null,null,null,null,null,null,null,null,null,null,null,null,null,0,null,null,null,null,null,null,null,null,null,null,null,"",null,null,"",null,null,null,null,null,null,null,null,null,null,0,0,0,0,null,"","","","","",""]
[1115,null,null,null,null,null,null,null,null,null,null,null,null,null,null,null,0,null,null,null,null,null,null,null,null,null,null,null,"",null,null,"",null,null,null,null,null,null,null,null,null,null,0,0,0,0,null,"","","","","",""]
[1116,null,null,null,null,null,null,null,null,null,null,null,null,null,null,null,0,null,null,null,null,null,null,null,null,null,null,null,"",null,null,"",null,null,null,null,null,null,null,null,null,null,0,0,0,0,null,"","","","","",""]
[1117,null,null,null,null,null,null,null,null,null,null,null,null,null,null,null,0,null,null,null,null,null,null,null,null,null,null,null,"",null,null,"",null,null,null,null,null,null,null,null,null,null,0,0,0,0,null,"","","","","",""]
[1118,null,null,null,null,null,null,null,null,null,null,null,null,null,null,null,0,null,null,null,null,null,null,null,null,null,null,null,"",null,null,"",null,null,null,null,null,null,null,null,null,null,0,0,0,0,null,"","","","","",""]
[1119,null,null,null,null,null,null,null,null,null,null,null,null,null,null,null,0,null,null,null,null,null,null,null,null,null,null,null,"",null,null,"",null,null,null,null,null,null,null,null,null,null,0,0,0,0,null,"","","","","",""]
[1120,null,null,null,null,null,null,null,null,null,null,null,null,null,null,null,0,null,null,null,null,null,null,null,null,null,null,null,"",null,null,"",null,null,null,null,null,null,null,null,null,null,0,0,0,0,null,"","","","","",""]
[1121,null,null,null,null,null,null,null,null,null,null,null,null,null,null,null,0,null,null,null,null,null,null,null,null,null,null,null,"",null,null,"",null,null,null,null,null,null,null,null,null,null,0,0,0,0,null,"","","","","",""]
[1122,null,null,null,null,null,null,null,null,null,null,null,null,null,null,null,0,null,null,null,null,null,null,null,null,null,null,null,"",null,null,"",null,null,null,null,null,null,null,null,null,null,0,0,0,0,null,"","","","","",""]
[1123,null,null,null,null,null,null,null,null,null,null,null,null,null,null,null,0,null,null,null,null,null,null,null,null,null,null,null,"",null,null,"",null,null,null,null,null,null,null,null,null,null,0,0,0,0,null,"","","","","",""]
[1124,null,null,null,null,null,null,null,null,null,null,null,null,null,null,null,0,null,null,null,null,null,null,null,null,null,null,null,"",null,null,"",null,null,null,null,null,null,null,null,null,null,0,0,0,0,null,"","","","","",""]
[1125,null,null,null,null,null,null,null,null,null,null,null,null,null,null,null,0,null,null,null,null,null,null,null,null,null,null,null,"",null,null,"",null,null,null,null,null,null,null,null,null,null,0,0,0,0,null,"","","","","",""]
[1126,null,null,null,null,null,null,null,null,null,null,null,null,null,null,null,0,null,null,null,null,null,null,null,null,null,null,null,"",null,null,"",null,null,null,null,null,null,null,null,null,null,0,0,0,0,null,"","","","","",""]
[1127,null,null,null,null,null,null,null,null,null,null,null,null,null,null,null,0,null,null,null,null,null,null,null,null,null,null,null,"",null,null,"",null,null,null,null,null,null,null,null,null,null,0,0,0,0,null,"","","","","",""]
[1128,null,null,null,null,null,null,null,null,null,null,null,null,null,null,null,0,null,null,null,null,null,null,null,null,null,null,null,"",null,null,"",null,null,null,null,null,null,null,null,null,null,0,0,0,0,null,"","","","","",""]
[1129,null,null,null,null,null,null,null,null,null,null,null,null,null,null,null,0,null,null,null,null,null,null,null,null,null,null,null,"",null,null,"",null,null,null,null,null,null,null,null,null,null,0,0,0,0,null,"","","","","",""]
[1130,null,null,null,null,null,null,null,null,null,null,null,null,null,null,null,0,null,null,null,null,null,null,null,null,null,null,null,"",null,null,"",null,null,null,null,null,null,null,null,null,null,0,0,0,0,null,"","","","","",""]
[1131,null,null,null,null,null,null,null,null,null,null,null,null,null,null,null,0,null,null,null,null,null,null,null,null,null,null,null,"",null,null,"",null,null,null,null,null,null,null,null,null,null,0,0,0,0,null,"","","","","",""]
[1132,null,null,null,null,null,null,null,null,null,null,null,null,null,null,null,0,null,null,null,null,null,null,null,null,null,null,null,"",null,null,"",null,null,null,null,null,null,null,null,null,null,0,0,0,0,null,"","","","","",""]
[1133,null,null,null,null,null,null,null,null,null,null,null,null,null,null,null,0,null,null,null,null,null,null,null,null,null,null,null,"",null,null,"",null,null,null,null,null,null,null,null,null,null,0,0,0,0,null,"","","","","",""]
[1134,null,null,null,null,null,null,null,null,null,null,null,null,null,null,null,0,null,null,null,null,null,null,null,null,null,null,null,"",null,null,"",null,null,null,null,null,null,null,null,null,null,0,0,0,0,null,"","","","","",""]
[1135,null,null,null,null,null,null,null,null,null,null,null,null,null,null,null,0,null,null,null,null,null,null,null,null,null,null,null,"",null,null,"",null,null,null,null,null,null,null,null,null,null,0,0,0,0,null,"","","","","",""]
[1136,null,null,null,null,null,null,null,null,null,null,null,null,null,null,null,0,null,null,null,null,null,null,null,null,null,null,null,"",null,null,"",null,null,null,null,null,null,null,null,null,null,0,0,0,0,null,"","","","","",""]
[1137,null,null,null,null,null,null,null,null,null,null,null,null,null,null,null,0,null,null,null,null,null,null,null,null,null,null,null,"",null,null,"",null,null,null,null,null,null,null,null,null,null,0,0,0,0,null,"","","","","",""]
[1138,null,null,null,null,null,null,null,null,null,null,null,null,null,null,null,0,null,null,null,null,null,null,null,null,null,null,null,"",null,null,"",null,null,null,null,null,null,null,null,null,null,0,0,0,0,null,"","","","","",""]
[1139,null,null,null,null,null,null,null,null,null,null,null,null,null,null,null,0,null,null,null,null,null,null,null,null,null,null,null,"",null,null,"",null,null,null,null,null,null,null,null,null,null,0,0,0,0,null,"","","","","",""]
[1140,null,null,null,null,null,null,null,null,null,null,null,null,null,null,null,0,null,null,null,null,null,null,null,null,null,null,null,"",null,null,"",null,null,null,null,null,null,null,null,null,null,0,0,0,0,null,"","","","","",""]
[1141,null,null,null,null,null,null,null,null,null,null,null,null,null,null,null,0,null,null,null,null,null,null,null,null,null,null,null,"",null,null,"",null,null,null,null,null,null,null,null,null,null,0,0,0,0,null,"","","","","",""]
[1142,null,null,null,null,null,null,null,null,null,null,null,null,null,null,null,0,null,null,null,null,null,null,null,null,null,null,null,"",null,null,"",null,null,null,null,null,null,null,null,null,null,0,0,0,0,null,"","","","","",""]
[1143,null,null,null,null,null,null,null,null,null,null,null,null,null,null,null,0,null,null,null,null,null,null,null,null,null,null,null,"",null,null,"",null,null,null,null,null,null,null,null,null,null,0,0,0,0,null,"","","","","",""]
[1144,null,null,null,null,null,null,null,null,null,null,null,null,null,null,null,0,null,null,null,null,null,null,null,null,null,null,null,"",null,null,"",null,null,null,null,null,null,null,null,null,null,0,0,0,0,null,"","","","","",""]
[1145,null,null,null,null,null,null,null,null,null,null,null,null,null,null,null,0,null,null,null,null,null,null,null,null,null,null,null,"",null,null,"",null,null,null,null,null,null,null,null,null,null,0,0,0,0,null,"","","","","",""]
[1146,null,null,null,null,null,null,null,null,null,null,null,null,null,null,null,0,null,null,null,null,null,null,null,null,null,null,null,"",null,null,"",null,null,null,null,null,null,null,null,null,null,0,0,0,0,null,"","","","","",""]
[1147,null,null,null,null,null,null,null,null,null,null,null,null,null,null,null,0,null,null,null,null,null,null,null,null,null,null,null,"",null,null,"",null,null,null,null,null,null,null,null,null,null,0,0,0,0,null,"","","","","",""]
[1148,null,null,null,null,null,null,null,null,null,null,null,null,null,null,null,0,null,null,null,null,null,null,null,null,null,null,null,"",null,null,"",null,null,null,null,null,null,null,null,null,null,0,0,0,0,null,"","","","","",""]
[1149,null,null,null,null,null,null,null,null,null,null,null,null,null,null,null,0,null,null,null,null,null,null,null,null,null,null,null,"",null,null,"",null,null,null,null,null,null,null,null,null,null,0,0,0,0,null,"","","","","",""]
[1150,null,null,null,null,null,null,null,null,null,null,null,null,null,null,null,0,null,null,null,null,null,null,null,null,null,null,null,"",null,null,"",null,null,null,null,null,null,null,null,null,null,0,0,0,0,null,"","","","","",""]
[1151,null,null,null,null,null,null,null,null,null,null,null,null,null,null,null,0,null,null,null,null,null,null,null,null,null,null,null,"",null,null,"",null,null,null,null,null,null,null,null,null,null,0,0,0,0,null,"","","","","",""]
[1152,null,null,null,null,null,null,null,null,null,null,null,null,null,null,null,0,null,null,null,null,null,null,null,null,null,null,null,"",null,null,"",null,null,null,null,null,null,null,null,null,null,0,0,0,0,null,"","","","","",""]
[1153,null,null,null,null,null,null,null,null,null,null,null,null,null,null,null,0,null,null,null,null,null,null,null,null,null,null,null,{"$f":"IF(SUM(P1166,Q1166:T1166,W1166:AB1166)>0,SUM(P1166,Q1166:T1166)+SUMIFS(W1166:AB1166,$W$4:$AB$4,\"Coverage\"),\"\")","v":""},null,null,"",null,null,null,null,null,null,null,null,null,null,0,0,0,0,null,"","","","","",""]
[{"$f":"ROW(A1167)-ROWS($A$1:$A$13)","v":1154},null,null,null,null,null,null,null,null,null,null,null,null,null,null,null,0,null,null,null,null,null,null,null,null,null,null,null,"",null,null,{"$f":"IF(OR(ISBLANK(AE1167),AE1167=\"\"),\"\",\"per unit\")","v":""},null,null,null,null,null,null,null,null,null,null,0,0,0,0,null,"","","","","",""]

{"sheet":"notes","index":1,"n_rows":2,"n_cols":1,"rows_kept":2,"cut":false,"hidden":false,"merged":[]}
["Coinsurance Percentage:"]
["other notes:"]

{"sheet":"Dropdown Lists","index":2,"n_rows":161,"n_cols":55,"rows_kept":161,"cut":false,"hidden":true,"merged":[]}
["County","Zone",null,"SC counties","GA counties",null,null,"see note cell A71",null,"ISO Construction","Occupancy"]
[]
["ALACHUA COUNTY","Northeast",null,"ABBEVILLE COUNTY","APPLING COUNTY",null,"Current Yr +1","State",null,"Unknown_0","Unknown_0",null,"Roof Shape","Basement","Roof Framing","Construction Quality","Roof Covering","Roof Anchor","Exterior Wall/Cladding","Roof Equipment Hurricane Bracing","Roof Sheathing Attachment","Opening Protection","EIFS?",null,"Deductible Occ/Loc","Deductible Flat/%","Inspection Types See Roof from Below",null,"Inspection Types Can Not See Roof",null,"Monthly Limits of Indemnity",null,"Sublimit or Coverage",null,null,null,null,null,null,null,null,null,null,null,null,null,null,null,null,null,null,"Deductibles","Deductible Type","Pool or Spa","Underwriter"]
["BAKER COUNTY","Northeast",null,"AIKEN COUNTY","ATHENS-CLARKE COUNTY",null,{"$f":"YEAR(TODAY())+1","v":2017}," ",null,"NCII: Light Metal Frame_4B","Permanent Dwelling (single family housing)_1",null,null,null,null,null,null,null,null,null,null,null,null,null,null,null,null,null,null,null,null,null,null,null,null,"LOSSTYPE"]
["BAY COUNTY","Panhandle",null,"ALLENDALE COUNTY","ATKINSON COUNTY",null,null,"FL",null,"Wood Frame_1","Permanent Dwelling (multi-family housing)_2",null,"Unknown_0","Unknown_0","Unknown_0","Unknown_0","Unknown_0","Unknown_0","Unknown_0","Unknown_0","Unknown_0","Unknown_0","Y",null,"Occ","Flat","WIN-01",125,"WIN-01",100,8.3333333333333329E-2,null,"Sublimit",null,"Building",1,null,{"$f":"SOV!W13","v":"Pool"},{"$f":"SOV!X13","v":"Tennis Court"},{"$f":"SOV!Y13","v":"Sign"},{"$f":"SOV!Z13","v":"EnterOther1"},{"$f":"SOV!AA13","v":"EnterOther2"},{"$f":"SOV!AB13","v":"EnterOther3"},"Building","Additional Property Coverage","Business Personal Property","Business Income","Improvements and Betterments",null,null,null,0.02,"per unit","Pool or Spa","Robbins, Bobby"]
["BRADFORD COUNTY","Northeast",null,"ANDERSON COUNTY","AUGUSTA-RICHMOND COUNTY",null,"Date + 365","GA",null,"JM_2","Temporary Lodging_3",null,"Flat roof with parapets_1","No basement_1","Bolted_1","Obvious signs of deterioration or distress_1","Metal sheathing with exposed fasteners_1","Toe nailing / No anchorage_1","Brick veneer_1","Proper, w/ adequate anchorage_1","Batten decking / Skipped sheathing_1","All Openings Designed for Pressure & Large Missiles (including Doors)_1","N",null,"Loc","Percentage","WIN-02",75,"WIN-02",55,0.16666666666666666,null,"Coverage",null,"Additional Property Coverage",1,null,{"$f":"SOV!W3","v":"Additional Property Coverage"},{"$f":"SOV!X3","v":"Additional Property Coverage"},{"$f":"SOV!Y3","v":"Additional Property Coverage"},{"$f":"SOV!Z3","v":"Additional Property Coverage"},{"$f":"SOV!AA3","v":"Additional Property Coverage"},{"$f":"SOV!AB3","v":"Additional Property Coverage"},"Building","Additional Property Coverage","Business Personal Property","Business Income","Improvements and Betterments",null,null,null,0.03,"per location",null,"Anthony, Kim"]
["BREVARD COUNTY","Central",null,"BAMBERG COUNTY","BACON COUNTY",null,null,"SC",null,"MNC_4","Group Institutional Housing_4",null,"Flat roof without parapets_2","Basement with flood protection_2","Unbolted_2","Certified design & construction_9","Metal sheathing with concealed fasteners_2","Clips_2","Metal sheathing_2","Obvious signs of deficiencies_2","6d Nails – Any nail schedule_2","All Openings Designed for Pressure & Medium Missiles (including Doors)_2",null,null,null,null,"PIC-02",50,"PIC-02",35,0.25,null,null,null,"Business Personal Property",2,null,{"$f":"VLOOKUP(AL6,Coverage_text_LOSSTYPE,2,0)","v":1},1,1,1,1,1,1,1,2,3,2,null,null,null,0.05,"per policy"]
["BROWARD COUNTY","Tri-County",null,"BARNWELL COUNTY","BAKER COUNTY",null,null,null,null,"NCI: Braced Steel Frame_8","Retail Trade_5",null,"Hip roof with slope less than or equal to 6:12 (26.5 degrees)_3","Basement without flood protection_3",null,null,"Built-up roof or single-ply membrane roof with the presence of gutters_3","Single wraps_3","Wood_3",null,"8d Nails – Minimum nail schedule_3","All Openings Designed for Pressure & Small Missiles (including Doors)_3",null,null,null,null,null,null,null,null,0.33333333333333331,null,null,null,"Business Income",3,null,null,null,null,null,null,null,null,null,null,null,null,null,null,null,0.1]
["CALHOUN COUNTY","Panhandle",null,"BEAUFORT COUNTY","BALDWIN COUNTY",null,null,null,null,"MFR_5","Wholesale Trade_6",null,"Hip roof with slope greater than 6:12 (26.5 degrees)_4","Basement with unknown flood protection_4",null,null,"Built-up roof or single-ply membrane roof without the presence of gutters_4","Double wraps_4","EIFS / Stucco_4",null,"8d Nails – High wind nail schedule_4","All Glazed Openings Designed for Pressure & Large Missiles (Doors not Designed for Pressure/Impact)_4",null,null,null,null,null,null,null,null,null,null,null,null,"Improvements and Betterments",2]
["CHARLOTTE COUNTY","Tampa Bay & Southwest",null,"BERKELEY COUNTY","BANKS COUNTY",null,null,null,null,"SWF / FR_6","Personal and Repair Services_7",null,"Gable roof with slope less than or equal to 6:12 (26.5 degrees)_5",null,null,null,"Concrete/clay tiles_5","Structural_5","Impact rated glazing_5",null,"10d Nails – High wind nail schedule_5","All Glazed Openings Designed for Pressure & Medium Missiles (Doors not Designed for Pressure/Impact)_5"]
["CITRUS COUNTY","Central",null,"CALHOUN COUNTY","BARROW COUNTY",null,null,null,null,null,"Professional,Technical, and Business Services_8",null,"Gable roof with slope greater than 6:12 (26.5 degrees)_6",null,null,null,"Wood shakes_6",null,"Glazing not designed for impact with gravel rooftop within 1000 ft_6",null,"Dimensional lumber / Tongue & groove decking with a minimum of 2 nails per board_6","All Glazed Openings Designed for Pressure & Small Missiles (Doors not Designed for Pressure/Impact)_6"]
["CLAY COUNTY","Northeast",null,"CHARLESTON COUNTY","BARTOW COUNTY",null,null,null,null,null,"Health Care Service_9",null,"Braced gable roof with slope less than or equal to 6:12 (26.5 degrees)_7",null,null,null,"Normal shingle (55 mph)_7",null,"Glazing not designed for impact without gravel rooftop within 1000 ft_7",null,null,"All Glazed Openings Covered with Plywood/Oriented Strand Board (OSB) (Doors not Designed for Pressure/Impact)_7"]
["COLLIER COUNTY","Tampa Bay & Southwest",null,"CHEROKEE COUNTY","BEN HILL COUNTY",null,null,null,null,null,"Entertainment and Recreation_10",null,"Braced gable roof with slope greater than 6:12 (26.5 degrees)_8",null,null,null,"Normal shingle (55 mph) with Secondary Water Resistance (SWR)_8",null,"Vinyl / Aluminum siding_8",null,null,"At Least One Glazed Exterior Opening Does Not Have Wind-Borne Debris Protection (Doors not Designed for Pressure/Impact)_8"]
["COLUMBIA COUNTY","Northeast",null,"CHESTER COUNTY","BERRIEN COUNTY",null,null,null,null,null,"Parking_11",null,null,null,null,null,"Shingle rated for high wind speeds (110 mph)_9",null,null,null,null,"No Exterior Openings (Glazed or Non-Glazed) Have Wind-Borne Debris Protection_9"]
["DESOTO COUNTY","Central",null,"CHESTERFIELD COUNTY","BIBB COUNTY",null,null,null,null,null,"Heavy Fabrication and Assembly_12",null,null,null,null,null,"Shingle rated for high wind speeds (110 mph) with Secondary Water Resistance (SWR)_10",null,null,null,null,"All Glazed Openings Designed for Pressure & Large Missiles & Doors Designed for Pressure Only_10"]
["DIXIE COUNTY","Northeast",null,"CLARENDON COUNTY","BLECKLEY COUNTY",null,null,null,null,null,"Light Fabrication and Assembly_13",null,null,null,null,null,null,null,null,null,null,"All Glazed Openings Designed for Pressure & Medium Missiles & Doors Designed for Pressure Only_11"]
["DUVAL COUNTY","Northeast",null,"COLLETON COUNTY","BRANTLEY COUNTY",null,null,null,null,null,"Food and Drug Processing_14",null,null,null,null,null,null,null,null,null,null,"All Glazed Openings Designed for Pressure & Small Missiles & Doors Designed for Pressure Only_12"]
["ESCAMBIA COUNTY","Panhandle",null,"DARLINGTON COUNTY","BROOKS COUNTY",null,null,null,null,null,"High Technology_17",null,null,null,null,null,null,null,null,null,null,"All Glazed Openings Covered with Plywood/OSB & Doors Designed for Pressure & Missile Impact_13"]
["FLAGLER COUNTY","Northeast",null,"DILLON COUNTY","BRYAN COUNTY",null,null,null,null,null,"Construction_18",null,null,null,null,null,null,null,null,null,null,"All Glazed Openings Covered with Plywood/OSB & Doors Designed for Pressure Only_14"]
["FRANKLIN COUNTY","Panhandle",null,"DORCHESTER COUNTY","BULLOCH COUNTY",null,null,null,null,null,"Agriculture_20",null,null,null,null,null,null,null,null,null,null,"No Glazed Openings with Windborne Debris Protection but Doors Designed for Pressure & Missile Impact_15"]
["GADSDEN COUNTY","Panhandle",null,"EDGEFIELD COUNTY","BURKE COUNTY",null,null,null,null,null,"Religion and Nonprofit_22",null,null,null,null,null,null,null,null,null,null,"No Glazed Openings with Windborne Debris Protection but Doors Designed for Pressure Only_16"]
["GILCHRIST COUNTY","Northeast",null,"FAIRFIELD COUNTY","BUTTS COUNTY",null,null,null,null,null,"General Services_23"]
["GLADES COUNTY","Tampa Bay & Southwest",null,"FLORENCE COUNTY","CALHOUN COUNTY",null,null,null,null,null,"Education_25",null,null,null," "]
["GULF COUNTY","Panhandle",null,"GEORGETOWN COUNTY","CAMDEN COUNTY",null,null,null,null,null,"General Commercial_37"]
["HAMILTON COUNTY","Northeast",null,"GREENVILLE COUNTY","CANDLER COUNTY",null,null,null,null,null,"Restaurants_47"]
["HARDEE COUNTY","Central",null,"GREENWOOD COUNTY","CARROLL COUNTY",null,null,null,null,null,"Casinos_48"]
["HENDRY COUNTY","Tampa Bay & Southwest",null,"HAMPTON COUNTY","CATOOSA COUNTY",null,null,null,null,null,"Acute Care Services Hospitals_49"]
["HERNANDO COUNTY","Central",null,"HORRY COUNTY","CHARLTON COUNTY"]
["HIGHLANDS COUNTY","Central",null,"JASPER COUNTY","CHATHAM COUNTY"]
["HILLSBOROUGH COUNTY","Tampa Bay & Southwest",null,"KERSHAW COUNTY","CHATTOOGA COUNTY"]
["HOLMES COUNTY","Panhandle",null,"LANCASTER COUNTY","CHEROKEE COUNTY"]
["INDIAN RIVER COUNTY","Central",null,"LAURENS COUNTY","CLAY COUNTY"]
["JACKSON COUNTY","Panhandle",null,"LEE COUNTY","CLAYTON COUNTY"]
["JEFFERSON COUNTY","Northeast",null,"LEXINGTON COUNTY","CLINCH COUNTY"]
["LAFAYETTE COUNTY","Northeast",null,"MARION COUNTY","COBB COUNTY"]
["LAKE COUNTY","Central",null,"MARLBORO COUNTY","COFFEE COUNTY"]
["LEE COUNTY","Tampa Bay & Southwest",null,"MCCORMICK COUNTY","COLQUITT COUNTY"]
["LEON COUNTY","Panhandle",null,"NEWBERRY COUNTY","COLUMBIA COUNTY"]
["LEVY COUNTY","Northeast",null,"OCONEE COUNTY","COLUMBUS-MUSCOGEE COUNTY"]
["LIBERTY COUNTY","Panhandle",null,"ORANGEBURG COUNTY","COOK COUNTY"]
["MADISON COUNTY","Northeast",null,"PICKENS COUNTY","COWETA COUNTY"]
["MANATEE COUNTY","Central",null,"RICHLAND COUNTY","CRAWFORD COUNTY"]
["MARION COUNTY","Northeast",null,"SALUDA COUNTY","CRISP COUNTY"]
["MARTIN COUNTY","Central",null,"SPARTANBURG COUNTY","CUSSETA-CHATTAHOOCHEE COUNTY"]
["MIAMI-DADE COUNTY","Tri-County",null,"SUMTER COUNTY","DADE COUNTY"]
["MONROE COUNTY","Excluded",null,"UNION COUNTY","DAWSON COUNTY"]
["NASSAU COUNTY","Northeast",null,"WILLIAMSBURG COUNTY","DECATUR COUNTY"]
["OKALOOSA COUNTY","Panhandle",null,"YORK COUNTY","DEKALB COUNTY"]
["OKEECHOBEE COUNTY","Central",null,null,"DODGE COUNTY"]
["ORANGE COUNTY","Central",null,null,"DOOLY COUNTY"]
["OSCEOLA COUNTY","Central",null,null,"DOUGHERTY COUNTY"]
["PALM BEACH COUNTY","Tri-County",null,null,"DOUGLAS COUNTY"]
["PASCO COUNTY","Central",null,null,"EARLY COUNTY"]
["PINELLAS COUNTY","Tampa Bay & Southwest",null,null,"ECHOLS COUNTY"]
["POLK COUNTY","Central",null,null,"EFFINGHAM COUNTY"]
["PUTNAM COUNTY","Northeast",null,null,"ELBERT COUNTY"]
["SANTA ROSA COUNTY","Panhandle",null,null,"EMANUEL COUNTY"]
["SARASOTA COUNTY","Central",null,null,"EVANS COUNTY"]
["SEMINOLE COUNTY","Central",null,null,"FANNIN COUNTY"]
["ST. JOHNS COUNTY","Northeast",null,null,"FAYETTE COUNTY"]
["ST. LUCIE COUNTY","Central",null,null,"FLOYD COUNTY"]
["SUMTER COUNTY","Central",null,null,"FORSYTH COUNTY"]
["SUWANNEE COUNTY","Northeast",null,null,"FRANKLIN COUNTY"]
["TAYLOR COUNTY","Northeast",null,null,"FULTON COUNTY"]
["UNION COUNTY","Northeast",null,null,"GEORGETOWN-QUITMAN COUNTY"]
["VOLUSIA COUNTY","Central",null,null,"GILMER COUNTY"]
["WAKULLA COUNTY","Panhandle",null,null,"GLASCOCK COUNTY"]
["WALTON COUNTY","Panhandle",null,null,"GLYNN COUNTY"]
["WASHINGTON COUNTY","Panhandle",null,null,"GORDON COUNTY"]
[null,null,null,null,"GRADY COUNTY"]
["During a zonal moratorium, cut from the above table (Counties_table) & paste below this line the counties temporarily not writing; then resize the above table--DO NOT LEAVE BLANK SPACE except at the top; county dropdown (column J on SOV tab) will automatically adjust to exclude; when moratorium is over, place the county back into the table",null,null,null,"GREENE COUNTY"]
[null,null,null,null,"GWINNETT COUNTY"]
[null,null,null,null,"HABERSHAM COUNTY",null,null,"AL"]
[null,null,null,null,"HALL COUNTY",null,null,"AK"]
[null,null,null,null,"HANCOCK COUNTY",null,null,"AZ"]
[null,null,null,null,"HARALSON COUNTY",null,null,"AR"]
[null,null,null,null,"HARRIS COUNTY",null,null,"CA"]
[null,null,null,null,"HART COUNTY",null,null,"CO"]
[null,null,null,null,"HEARD COUNTY",null,null,"CT"]
[null,null,null,null,"HENRY COUNTY",null,null,"DE"]
[null,null,null,null,"HOUSTON COUNTY",null,null,"FL"]
[null,null,null,null,"IRWIN COUNTY",null,null,"GA"]
[null,null,null,null,"JACKSON COUNTY",null,null,"HI"]
[null,null,null,null,"JASPER COUNTY",null,null,"ID"]
[null,null,null,null,"JEFF DAVIS COUNTY",null,null,"IL"]
[null,null,null,null,"JEFFERSON COUNTY",null,null,"IN"]
[null,null,null,null,"JENKINS COUNTY",null,null,"IA"]
[null,null,null,null,"JOHNSON COUNTY",null,null,"KS"]
[null,null,null,null,"JONES COUNTY",null,null,"KY"]
[null,null,null,null,"LAMAR COUNTY",null,null,"LA"]
[null,null,null,null,"LANIER COUNTY",null,null,"ME"]
[null,null,null,null,"LAURENS COUNTY",null,null,"MD"]
[null,null,null,null,"LEE COUNTY",null,null,"MA"]
[null,null,null,null,"LIBERTY COUNTY",null,null,"MI"]
[null,null,null,null,"LINCOLN COUNTY",null,null,"MN"]
[null,null,null,null,"LONG COUNTY",null,null,"MS"]
[null,null,null,null,"LOWNDES COUNTY",null,null,"MO"]
[null,null,null,null,"LUMPKIN COUNTY",null,null,"MT"]
[null,null,null,null,"MACON COUNTY",null,null,"NE"]
[null,null,null,null,"MADISON COUNTY",null,null,"NV"]
[null,null,null,null,"MARION COUNTY",null,null,"NH"]
[null,null,null,null,"MCDUFFIE COUNTY",null,null,"NJ"]
[null,null,null,null,"MCINTOSH COUNTY",null,null,"NM"]
[null,null,null,null,"MERIWETHER COUNTY",null,null,"NY"]
[null,null,null,null,"MILLER COUNTY",null,null,"NC"]
[null,null,null,null,"MITCHELL COUNTY",null,null,"ND"]
[null,null,null,null,"MONROE COUNTY",null,null,"OH"]
[null,null,null,null,"MONTGOMERY COUNTY",null,null,"OK"]
[null,null,null,null,"MORGAN COUNTY",null,null,"OR"]
[null,null,null,null,"MURRAY COUNTY",null,null,"PA"]
[null,null,null,null,"NEWTON COUNTY",null,null,"RI"]
[null,null,null,null,"OCONEE COUNTY",null,null,"SC"]
[null,null,null,null,"OGLETHORPE COUNTY",null,null,"SD"]
[null,null,null,null,"PAULDING COUNTY",null,null,"TN"]
[null,null,null,null,"PEACH COUNTY",null,null,"TX"]
[null,null,null,null,"PICKENS COUNTY",null,null,"UT"]
[null,null,null,null,"PIERCE COUNTY",null,null,"VT"]
[null,null,null,null,"PIKE COUNTY",null,null,"VA"]
[null,null,null,null,"POLK COUNTY",null,null,"WA"]
[null,null,null,null,"PULASKI COUNTY",null,null,"WV"]
[null,null,null,null,"PUTNAM COUNTY",null,null,"WI"]
[null,null,null,null,"RABUN COUNTY",null,null,"WY"]
[null,null,null,null,"RANDOLPH COUNTY",null,null,"AS"]
[null,null,null,null,"ROCKDALE COUNTY",null,null,"DC"]
[null,null,null,null,"SCHLEY COUNTY",null,null,"FM"]
[null,null,null,null,"SCREVEN COUNTY",null,null,"GU"]
[null,null,null,null,"SEMINOLE COUNTY",null,null,"MH"]
[null,null,null,null,"SPALDING COUNTY",null,null,"MP"]
[null,null,null,null,"STEPHENS COUNTY",null,null,"PW"]
[null,null,null,null,"STEWART COUNTY",null,null,"PR"]
[null,null,null,null,"SUMTER COUNTY",null,null,"VI"]
[null,null,null,null,"TALBOT COUNTY"]
[null,null,null,null,"TALIAFERRO COUNTY"]
[null,null,null,null,"TATTNALL COUNTY"]
[null,null,null,null,"TAYLOR COUNTY"]
[null,null,null,null,"TELFAIR COUNTY"]
[null,null,null,null,"TERRELL COUNTY"]
[null,null,null,null,"THOMAS COUNTY"]
[null,null,null,null,"TIFT COUNTY"]
[null,null,null,null,"TOOMBS COUNTY"]
[null,null,null,null,"TOWNS COUNTY"]
[null,null,null,null,"TREUTLEN COUNTY"]
[null,null,null,null,"TROUP COUNTY"]
[null,null,null,null,"TURNER COUNTY"]
[null,null,null,null,"TWIGGS COUNTY"]
[null,null,null,null,"UNION COUNTY"]
[null,null,null,null,"UPSON COUNTY"]
[null,null,null,null,"WALKER COUNTY"]
[null,null,null,null,"WALTON COUNTY"]
[null,null,null,null,"WARE COUNTY"]
[null,null,null,null,"WARREN COUNTY"]
[null,null,null,null,"WASHINGTON COUNTY"]
[null,null,null,null,"WAYNE COUNTY"]
[null,null,null,null,"WEBSTER COUNTY"]
[null,null,null,null,"WHEELER COUNTY"]
[null,null,null,null,"WHITE COUNTY"]
[null,null,null,null,"WHITFIELD COUNTY"]
[null,null,null,null,"WILCOX COUNTY"]
[null,null,null,null,"WILKES COUNTY"]
[null,null,null,null,"WILKINSON COUNTY"]
[null,null,null,null,"WORTH COUNTY"]

{"sheet":"Lookup Lists","index":3,"n_rows":22,"n_cols":19,"rows_kept":22,"cut":false,"hidden":true,"merged":[]}
["Distance to Coast",null,"Zones",null,"YearBuilt","Construction","Roof Age","Roof Geometry"]
["0-1 miles",null,"Northeast",null,"Post 2001","Frame / NCII","15 yrs","Flat",null,null,null,null,null,"0-1 miles",0,"0-1 miles",null,"Unknown_0","Flat"]
["1-2 miles",null,"Panhandle",null,"1995-2000","JM / NCI","10 yrs","Gable",null,null,null,null,null,"1-2 miles",1,"1-2 miles",null,"Flat roof with parapets_1","Flat"]
["2-5 miles",null,"Central",null,"Pre-1994","MNC","5 yrs","Hip",null,null,null,null,null,"2-5 miles",2,"1-2 miles",null,"Flat roof without parapets_2","Flat"]
["5-10 miles",null,"Tri-County",null,null,"SWF/FR","unknown or 15+",null,null,null,null,null,null,"5-10 miles",3,"2-5 miles",null,"Hip roof with slope less than or equal to 6:12 (26.5 degrees)_3","Hip"]
["10-20 miles",null,"Tampa Bay & Southwest",null,null,null,null,null,null,null,null,null,null,"10-20 miles",4,"2-5 miles",null,"Hip roof with slope greater than 6:12 (26.5 degrees)_4","Hip"]
["20+ miles",null,"Excluded",null,null,null,null,null,null,null,null,null,null,"20+ miles",5,"5-10 miles",null,"Gable roof with slope less than or equal to 6:12 (26.5 degrees)_5","Gable"]
[null,null,null,null,null,null,null,null,null,null,null,null,null,null,6,"5-10 miles",null,"Gable roof with slope greater than 6:12 (26.5 degrees)_6","Gable"]
[null,null,null,null,null,null,null,null,null,null,null,null,null,null,7,"5-10 miles",null,"Braced gable roof with slope less than or equal to 6:12 (26.5 degrees)_7","Gable"]
[null,null,null,null,null,null,null,null,null,null,null,null,null,null,8,"5-10 miles",null,"Braced gable roof with slope greater than 6:12 (26.5 degrees)_8","Gable"]
[null,null,null,null,null,null,null,null,null,null,null,null,null,null,9,"5-10 miles"]
[null,null,null,null,null,null,null,null,null,null,null,null,null,null,10,"10-20 miles"]
[null,null,null,null,null,null,null,null,null,null,null,null,null,null,11,"10-20 miles"]
[null,null,null,null,null,null,null,null,null,null,null,null,null,null,12,"10-20 miles"]
[null,null,null,null,null,null,null,null,null,null,null,null,null,null,13,"10-20 miles"]
[null,null,null,null,null,null,null,null,null,null,null,null,null,null,14,"10-20 miles"]
[null,null,null,null,null,null,null,null,null,null,null,null,null,null,15,"10-20 miles"]
[null,null,null,null,null,null,null,null,null,null,null,null,null,null,16,"10-20 miles"]
[null,null,null,null,null,null,null,null,null,null,null,null,null,null,17,"10-20 miles"]
[null,null,null,null,null,null,null,null,null,null,null,null,null,null,18,"10-20 miles"]
[null,null,null,null,null,null,null,null,null,null,null,null,null,null,19,"10-20 miles"]
[null,null,null,null,null,null,null,null,null,null,null,null,null,null,20,"10-20 miles"]